Business Unit Description,Expense Code,Expense Code Description,GL Date,Document No.,Invoice No.,Invoiced Value,Supplier Name,Address Book No.,Proclass Details Level 1,Thomson Classification Description
MOSBOROUGH                    ,1161,NC&A MAIN CONTRACT            ,03/10/2011,3122371,VYO07370                 ,187415.04,INTERSERVE CONSTRUCTION LIMITED         ,547901,Construction,BUILDERS                      
STREET FORCE BALANCE SHEET    ,776,4332101 INVOICES PAID         ,03/10/2011,3123220,2870387,2302.97,LAFARGE UK SERVICES                     ,493084,Building Construction Materials,CONCRETE & MORTAR READY MIXED 
STREET FORCE BALANCE SHEET    ,776,4332101 INVOICES PAID         ,03/10/2011,3123221,3139,877.50,JOHN-HENRY HAULAGE SHEFFIELD            ,475313,Transport,ROAD HAULAGE SERVICES         
STREET FORCE BALANCE SHEET    ,776,4332101 INVOICES PAID         ,03/10/2011,3123223,481,7640.50,M L SHEPHERD                            ,501200,Vehicles Not Buses,CAR & TRUCK LEASING & CONTRACT
STREET FORCE BALANCE SHEET    ,776,4332101 INVOICES PAID         ,03/10/2011,3123224,482,4432.50,M L SHEPHERD                            ,501200,Vehicles Not Buses,CAR & TRUCK LEASING & CONTRACT
STREET FORCE BALANCE SHEET    ,776,4332101 INVOICES PAID         ,03/10/2011,3123226,6225,1350.50,A & W HELLIWELL & SONS LTD              ,202556,Unclassified Trade,FARMING - LIVESTOCK & OTHER AN
STREET FORCE BALANCE SHEET    ,776,4332101 INVOICES PAID         ,03/10/2011,3123227,7504,2182.95,GLEADLESS CIVIL ENGINEERING LTD         ,412782,Highway Equipment and Materials,PAVING & DRIVEWAY CONTRACTORS 
STREET FORCE BALANCE SHEET    ,776,4332101 INVOICES PAID         ,03/10/2011,3123228,7505,2182.95,GLEADLESS CIVIL ENGINEERING LTD         ,412782,Highway Equipment and Materials,PAVING & DRIVEWAY CONTRACTORS 
STREET FORCE BALANCE SHEET    ,776,4332101 INVOICES PAID         ,03/10/2011,3123229,7506,2182.95,GLEADLESS CIVIL ENGINEERING LTD         ,412782,Highway Equipment and Materials,PAVING & DRIVEWAY CONTRACTORS 
STREET FORCE BALANCE SHEET    ,776,4332101 INVOICES PAID         ,03/10/2011,3123231,7507,1413.45,GLEADLESS CIVIL ENGINEERING LTD         ,412782,Highway Equipment and Materials,PAVING & DRIVEWAY CONTRACTORS 
STREET FORCE BALANCE SHEET    ,776,4332101 INVOICES PAID         ,03/10/2011,3123232,7508,889.95,GLEADLESS CIVIL ENGINEERING LTD         ,412782,Highway Equipment and Materials,PAVING & DRIVEWAY CONTRACTORS 
STREET FORCE BALANCE SHEET    ,776,4332101 INVOICES PAID         ,03/10/2011,3123233,7509,1587.95,GLEADLESS CIVIL ENGINEERING LTD         ,412782,Highway Equipment and Materials,PAVING & DRIVEWAY CONTRACTORS 
STREET FORCE BALANCE SHEET    ,776,4332101 INVOICES PAID         ,03/10/2011,3123234,7510,1483.25,GLEADLESS CIVIL ENGINEERING LTD         ,412782,Highway Equipment and Materials,PAVING & DRIVEWAY CONTRACTORS 
STREET FORCE BALANCE SHEET    ,776,4332101 INVOICES PAID         ,03/10/2011,3123235,7511,2290.75,GLEADLESS CIVIL ENGINEERING LTD         ,412782,Highway Equipment and Materials,PAVING & DRIVEWAY CONTRACTORS 
STREET FORCE BALANCE SHEET    ,776,4332101 INVOICES PAID         ,03/10/2011,3123236,7512,1568.25,GLEADLESS CIVIL ENGINEERING LTD         ,412782,Highway Equipment and Materials,PAVING & DRIVEWAY CONTRACTORS 
STREET FORCE BALANCE SHEET    ,776,4332101 INVOICES PAID         ,03/10/2011,3123237,7513,1483.25,GLEADLESS CIVIL ENGINEERING LTD         ,412782,Highway Equipment and Materials,PAVING & DRIVEWAY CONTRACTORS 
STREET FORCE BALANCE SHEET    ,776,4332101 INVOICES PAID         ,03/10/2011,3123238,7514,1553.05,GLEADLESS CIVIL ENGINEERING LTD         ,412782,Highway Equipment and Materials,PAVING & DRIVEWAY CONTRACTORS 
STREET FORCE BALANCE SHEET    ,776,4332101 INVOICES PAID         ,03/10/2011,3123239,7515,1752.65,GLEADLESS CIVIL ENGINEERING LTD         ,412782,Highway Equipment and Materials,PAVING & DRIVEWAY CONTRACTORS 
STREET FORCE BALANCE SHEET    ,776,4332101 INVOICES PAID         ,03/10/2011,3123240,7516,1752.65,GLEADLESS CIVIL ENGINEERING LTD         ,412782,Highway Equipment and Materials,PAVING & DRIVEWAY CONTRACTORS 
STREET FORCE BALANCE SHEET    ,776,4332101 INVOICES PAID         ,03/10/2011,3123243,9027284720,1365.76,TARMAC LTD                              ,463393,Building Construction Materials,BUILDING BLOCK MNFRS & DISTRIB
STREET FORCE BALANCE SHEET    ,776,4332101 INVOICES PAID         ,03/10/2011,3123244,YD20127698               ,4772.12,YEDL                                    ,349525,Utilities,ELECTRICITY COMPANIES         
STREET FORCE BALANCE SHEET    ,776,4332101 INVOICES PAID         ,03/10/2011,3123246,YD20127713               ,641.43,YEDL                                    ,349525,Utilities,ELECTRICITY COMPANIES         
STREET FORCE BALANCE SHEET    ,776,4332101 INVOICES PAID         ,03/10/2011,3123257,YD20127732               ,1003.50,YEDL                                    ,349525,Utilities,ELECTRICITY COMPANIES         
STREET FORCE BALANCE SHEET    ,776,4332101 INVOICES PAID         ,03/10/2011,3123258,YD20127733               ,669.00,YEDL                                    ,349525,Utilities,ELECTRICITY COMPANIES         
STREET FORCE BALANCE SHEET    ,776,4332101 INVOICES PAID         ,03/10/2011,3123260,YD20127735               ,595.32,YEDL                                    ,349525,Utilities,ELECTRICITY COMPANIES         
STREET FORCE BALANCE SHEET    ,776,4332101 INVOICES PAID         ,03/10/2011,3123262,157783RI                 ,5695.44,HARSCO METALS GROUP LTD                 ,493119,Vehicles Not Buses,PLANT & MACHINERY HIRE & LEASI
STREET FORCE BALANCE SHEET    ,776,4332101 INVOICES PAID         ,03/10/2011,3123264,157816RI/3261RM          ,715.40,HARSCO METALS GROUP LTD                 ,493119,Vehicles Not Buses,PLANT & MACHINERY HIRE & LEASI
STREET FORCE BALANCE SHEET    ,776,4332101 INVOICES PAID         ,03/10/2011,3123265,157818RI/3261RM          ,703.00,HARSCO METALS GROUP LTD                 ,493119,Vehicles Not Buses,PLANT & MACHINERY HIRE & LEASI
STREET FORCE BALANCE SHEET    ,776,4332101 INVOICES PAID         ,03/10/2011,3123266,18780,2276.44,ACIDISATION CO LIMITED                  ,414647,Environmental Services,WASTE DISPOSAL SERVICES       
STREET FORCE BALANCE SHEET    ,776,4332101 INVOICES PAID         ,03/10/2011,3123267,25109407,696.50,LONGVILLE LIMITED                       ,481603,Building Construction Materials,"PUMPS - SALES, SERVICING & REP"
FJF - SOCIAL ENTERPRISE       ,8440,FEE EXPENSES                  ,03/10/2011,3123584,ERS INVOICE57300         ,732.70,SCEDU                                   ,366068,Unclassified Non Trade,DEVELOPMENT AGENCIES          
FJF - SOCIAL ENTERPRISE       ,8440,FEE EXPENSES                  ,03/10/2011,3123585,ERS INVOICE57301         ,3663.50,GROUNDWORK SHEFFIELD                    ,390095,Unclassified Non Trade,CHARITIES & VOLUNTARY ORGANISA
CLAIMS                        ,8740,PUBLIC LIABILITY              ,03/10/2011,3123628,ERS INVOICE57344         ,3600.00,ACCOUNTANT GENERAL OF THE SENIOR COURTS ,353156,Unclassified Non Trade,CENTRAL GOVERNMENT            
CLAIMS                        ,8740,HIGHWAYS                      ,03/10/2011,3123629,ERS INVOICE57345         ,1500.00,MR MICHAEL NICHOLSON                    ,294897,Legal Services,BARRISTERS                    
CLAIMS                        ,8740,HIGHWAYS                      ,03/10/2011,3123630,ERS INVOICE57346         ,4900.00,DORIANS SOLICITORS                      ,555197,Legal Services,DEFAULT DO NOT DELETE         
MIGRATION COHESION TEAM       ,8180,GRANTS                        ,03/10/2011,3123631,ERS INVOICE57347         ,750.00,ASSIST SHEFFIELD                        ,423420,Unclassified Non Trade,CHARITIES & VOLUNTARY ORGANISA
CLAIMS                        ,8740,HIGHWAYS                      ,03/10/2011,3123632,ERS INVOICE57348         ,4600.00,IRWIN MITCHELL SOLICITORS               ,318760,Legal Services,SOLICITORS                    
ABST GRANTS                   ,9120,OTHER AGENCIES                ,03/10/2011,3123633,ERS INVOICE57349         ,25000.00,SHEFFIELD WELL-BEING CONSORTIUM         ,503588,Unclassified Non Trade,CHARITIES & VOLUNTARY ORGANISA
CLAIMS                        ,8740,PUBLIC LIABILITY              ,03/10/2011,3123634,ERS INVOICE57350         ,1000.00,REDACTED PERSONAL DATA,558654,Unclassified Non Trade,OUT OF SCOPE FOR SIC MONITORIN
CLAIMS                        ,8740,HIGHWAYS                      ,03/10/2011,3123635,ERS INVOICE57351         ,2500.00,REDACTED PERSONAL DATA,558656,Unclassified Non Trade,OUT OF SCOPE FOR SIC MONITORIN
CLAIMS                        ,8740,HIGHWAYS                      ,03/10/2011,3123636,ERS INVOICE57352         ,664.00,DEPARTMENT FOR WORK & PENSIONS          ,326920,Unclassified Non Trade,CENTRAL GOVERNMENT            
DIRECTOR-COMM CARE            ,8460,CONSULTANTS FEES              ,03/10/2011,3123640,ERS INVOICE57357         ,2523.00,LUCY O'LEARY                            ,554350,Leisure Services,PROFESSIONAL SPEAKERS         
COMMUNITY ASSEMBLY NORTH      ,9120,OTHER AGENCIES                ,03/10/2011,3123813,ERS INVOICE57358         ,1651.00,THORNCLIFFE CONSERVATION GROUP          ,484665,Environmental Services,CONSERVATION ORGANISATIONS    
COMMUNITY ASSEMBLY NORTH      ,9120,OTHER AGENCIES                ,03/10/2011,3123814,ERS INVOICE57359         ,529.00,SCOFF                                   ,484171,Unclassified Non Trade,CHARITIES & VOLUNTARY ORGANISA
VSP DELIVER                   ,9120,OTHER AGENCIES                ,03/10/2011,3123837,ERS INVOICE57382         ,12795.25,DIMENSIONS TRAINING SOLUTIONS           ,433070,Education,HAIRDRESSING SCHOOLS          
VSP DELIVER                   ,9120,OTHER AGENCIES                ,03/10/2011,3123838,ERS INVOICE57383         ,4032.25,HEELEY CITY FARM                        ,301277,Unclassified Non Trade,CHARITIES & VOLUNTARY ORGANISA
VSP DELIVER                   ,9120,OTHER AGENCIES                ,03/10/2011,3123845,ERS INVOICE57391         ,3843.75,SHEFFIELD WEDNESDAY ACADEMY             ,461589,Leisure Services,SPORTS CLUBS & ASSOCIATIONS   
VSP DELIVER                   ,9120,OTHER AGENCIES                ,03/10/2011,3123850,ERS INVOICE57397         ,9750.00,MEADOWHALL TRAINING LTD                 ,461797,Human Resources,TRAINING SERVICES             
VSP DELIVER                   ,9120,OTHER AGENCIES                ,03/10/2011,3123853,ERS INVOICE57400         ,1812.50,TINSLEY PARENTS & CHILDRENS CONSORTIUM  ,478244,Social Community Care,NURSERIES & CRECHES           
VSP DELIVER                   ,9140,PRIVATE CONTRACTORS           ,03/10/2011,3123855,ERS INVOICE57403         ,2032.00,A4E LTD                                 ,326975,Consultancy,BUSINESS & MANAGEMENT CONSULTA
VSP DELIVER                   ,9140,PRIVATE CONTRACTORS           ,03/10/2011,3123858,ERS INVOICE57407         ,2937.50,SOUTH YORKSHIRE & HALLAMSHIRE CYP       ,431967,Unclassified Non Trade,YOUTH ORGANISATIONS & CENTRES 
VSP DELIVER                   ,9140,PRIVATE CONTRACTORS           ,03/10/2011,3123859,ERS INVOICE57408         ,4222.75,LEARNING WORLD                          ,548077,Education,EDUCATIONAL TRAINING PROVIDERS
VSP DELIVER                   ,9140,PRIVATE CONTRACTORS           ,03/10/2011,3123860,ERS INVOICE57409         ,3159.13,SHEFFIELD INDUSTRIAL MUSEUMS TRUST LTD  ,307272,Leisure Services,MUSEUMS                       
VSP DELIVER                   ,9140,PRIVATE CONTRACTORS           ,03/10/2011,3123861,ERS INVOICE57410         ,698.50,ENDEAVOUR TRAINING                      ,347945,Human Resources,TRAINING SERVICES             
VSP DELIVER                   ,9140,PRIVATE CONTRACTORS           ,03/10/2011,3123862,ERS INVOICE57411         ,2843.75,KELVIN MEDIA PRODUCTIONS                ,475794,Human Resources,TRAINING CENTRES              
VSP DELIVER                   ,9140,PRIVATE CONTRACTORS           ,03/10/2011,3123864,ERS INVOICE57413         ,1682.75,NACRO                                   ,319900,Unclassified Non Trade,CHARITIES & VOLUNTARY ORGANISA
VSP DELIVER                   ,9140,PRIVATE CONTRACTORS           ,03/10/2011,3123865,ERS INVOICE57415         ,2667.00,HEELEY DEVELOPMENT TRUST                ,472941,Unclassified Non Trade,CHARITIES & VOLUNTARY ORGANISA
VSP DELIVER                   ,9140,PRIVATE CONTRACTORS           ,03/10/2011,3123867,ERS INVOICE57417         ,1218.75,SHEFFIELD UNITED FC ACADEMY             ,352656,Leisure Services,SPORTS CLUBS & ASSOCIATIONS   
VSP DELIVER                   ,9140,PRIVATE CONTRACTORS           ,03/10/2011,3123868,ERS INVOICE57418         ,1656.25,MANOR & CASTLE � OPERATIONS             ,422084,Unclassified Non Trade,DEVELOPMENT AGENCIES          
VSP DELIVER                   ,9140,PRIVATE CONTRACTORS           ,03/10/2011,3123869,ERS INVOICE57419         ,11080.75,SPRINT TRAINING LTD                     ,375572,Leisure Services,MOTOR SPORTS                  
WAKEFIELD - WY SUB REGION HAL ,1194,OTHER FEES                    ,03/10/2011,3123871,ERS INVOICE57423         ,5963.00,REDACTED PERSONAL DATA,553115,Unclassified Non Trade,OUT OF SCOPE FOR SIC MONITORIN
VSP DELIVER                   ,9140,PRIVATE CONTRACTORS           ,03/10/2011,3123873,ERS INVOICE57425         ,4093.75,Y A S Y                                 ,306981,Unclassified Non Trade,YOUTH ORGANISATIONS & CENTRES 
LEEDS - WY SUB REGION HAL     ,1194,OTHER FEES                    ,03/10/2011,3123874,ERS INVOICE57426         ,3522.71,EASIBATHE                               ,538552,Building Construction Materials,BATHROOM EQUIPMENT & FITTINGS 
LEEDS - WY SUB REGION HAL     ,1194,OTHER FEES                    ,03/10/2011,3123875,ERS INVOICE57427         ,4257.52,ABLE BATHING & BUILDING CONTRACTORS     ,503765,Construction,BUILDERS                      
HULL - HUMBER SUB REGION HAL  ,1194,OTHER FEES                    ,03/10/2011,3123877,ERS INVOICE57429         ,528.00,REDACTED PERSONAL DATA,556458,Unclassified Non Trade,OUT OF SCOPE FOR SIC MONITORIN
SHEFFIELD RHB LOANS HAL       ,1194,OTHER FEES                    ,03/10/2011,3123878,ERS INVOICE57430         ,5835.00,ARX                                     ,542941,Construction,BUILDERS                      
FINANCE CONTRACT              ,5340,TEACHING STAFF SUPERANN       ,03/10/2011,3123880,ERS INVOICE57432         ,543.13,HM REVENUE & CUSTOMS ONLY               ,473131,Unclassified Non Trade,CUSTOMS & EXCISE              
VSP DELIVER                   ,9120,OTHER AGENCIES                ,03/10/2011,3123882,ERS INVOICE57434         ,10195.76,THE SHEFFIELD COLLEGE                   ,297611,Unclassified Non Trade,SCHOOLS & COLLEGES - FURTHER E
EXECUTIVE DIRECTOR & SECRETARI,8350,MISCELLANEOUS EXPENSES        ,03/10/2011,3085175,1592,15000.00,FIELD ENTERPRISES LTD                   ,320627,Consultancy,BUSINESS & MANAGEMENT CONSULTA
VSP DELIVER                   ,8490,EXAM FEES                     ,03/10/2011,3104988,100111,638.00,SPRINT TRAINING LTD                     ,375572,Leisure Services,MOTOR SPORTS                  
MEDICO LEGAL CENTRE           ,8110,"CLOTHING, UNIFORM AND LAUNDRY ",03/10/2011,3107891,C5331                    ,1431.57,CHEMSOL LTD                             ,342893,Unclassified Trade,CHEMICALS - DISTRIBUTORS & WHO
WESTWAYS                      ,1183,PURCHASE OF EQUIPMENT         ,03/10/2011,3109403,12695,1063.68,PETER HOUSLEY REMOVALS                  ,207489,Transport,REMOVALS & STORAGE - HOUSEHOLD
MANSELL - REFURB PCP          ,1183,PURCHASE OF EQUIPMENT         ,03/10/2011,3110501,12703,2271.88,PETER HOUSLEY REMOVALS                  ,207489,Transport,REMOVALS & STORAGE - HOUSEHOLD
DOUGLAS ROAD                  ,8440,FEE EXPENSES                  ,03/10/2011,3110706,71703,4182.92,HARPERS ENVIRONMENTAL LTD               ,537022,Consultancy,ENVIRONMENTAL CONSULTANTS     
DOUGLAS ROAD                  ,8440,FEE EXPENSES                  ,03/10/2011,3110709,71674,3918.96,HARPERS ENVIRONMENTAL LTD               ,537022,Consultancy,ENVIRONMENTAL CONSULTANTS     
MAST STRATEGY                 ,8440,FEE EXPENSES                  ,03/10/2011,3114509,478,18318.87,SOVA                                    ,439114,Unclassified Non Trade,CHARITIES & VOLUNTARY ORGANISA
ACCOMMODATION STRATEGY        ,8550,OTHER SERVICES                ,03/10/2011,3115578,12731,736.80,PETER HOUSLEY REMOVALS                  ,207489,Transport,REMOVALS & STORAGE - HOUSEHOLD
SOUTHERN VALLEYS PROJ & STAFF ,8440,FEE EXPENSES                  ,03/10/2011,3116402,1471,505.00,SHEFFIELD COUNTRYSIDE CONSERVATION TRUST,308423,Unclassified Non Trade,CHARITIES & VOLUNTARY ORGANISA
MARKETING SHEFFIELD           ,4060,SALES                         ,03/10/2011,3116409,282059,858.00,EAST MIDLANDS TRAINS                    ,507769,Facilities Management,TRAIN STATIONS & INFORMATION  
SCHOOL SWIMMING SERVICE       ,6280,HIRE OF PREMISES              ,03/10/2011,3119447,3018981,1920.00,CONCORD SPORTS CENTRE                   ,315972,Leisure Services,"HEALTH CLUBS, GYMNASIUMS & BEA"
SHEFFIELD HOMES MANAGEMENT COS,8350,MISCELLANEOUS EXPENSES        ,03/10/2011,3119743,481,3211.86,SHEFFIELD HOMES LTD                     ,503889,Unclassified Non Trade,"HOUSING ASSOCIATIONS, SOCIETIE"
ADULT & COMM LEARN ADD GRANTS ,9120,OTHER AGENCIES                ,03/10/2011,3119775,32/11                    ,10000.00,DARNALL FORUM                           ,375452,Unclassified Non Trade,CHARITIES & VOLUNTARY ORGANISA
STATUTORY ADVERTISING         ,8420,ADVERTISING AND PUBL-INVOICED ,03/10/2011,3119914,7692560,583.43,SHEFFIELD NEWSPAPERS LTD                ,208391,Education,NEWSPAPER & MAGAZINE PUBLISHER
SECURE PLACEMENTS             ,9270,SECURE PLACEMENTS - REMAND    ,03/10/2011,3120525,QC10423                  ,638.25,QUAYSIDE CARE                           ,317889,Social Community Care,SOCIAL SERVICES               
STROKE CARE GRANT             ,9160,PARTNERSHIP CONTRACTS         ,03/10/2011,3121042,CRM1704                  ,7750.00,THE STROKE ASSOCIATION                  ,510532,Unclassified Non Trade,CHARITIES & VOLUNTARY ORGANISA
ARCHITECTS - SCHEME           ,8440,FEE EXPENSES                  ,03/10/2011,3121056,1146252,4650.00,WERNICK HIRE LIMITED                    ,367191,Construction,BUILDINGS - SECTIONAL & PORTAB
YOUTH JUSTICE ISSP GRANT      ,9120,OTHER AGENCIES                ,03/10/2011,3121288,42,15574.62,REMEDI                                  ,329612,Unclassified Non Trade,CHARITIES & VOLUNTARY ORGANISA
STATUTORY ADVERTISING         ,8420,ADVERTISING AND PUBL-INVOICED ,03/10/2011,3121316,7689302,983.79,YORKSHIRE POST PLC NEWSPAPERS           ,209673,Education,NEWSPAPER & MAGAZINE PUBLISHER
ELECTORAL REGISTRATION        ,8020,EQUIPMENT LEASE/ RENTAL/ HIRE ,03/10/2011,3121775,417804,1030.98,NEOPOST FINANCE LIMITED                 ,207084,Financial Services,LEASING SERVICES              
WORKSTYLE REDVERS             ,8550,OTHER SERVICES                ,03/10/2011,3122248,12758,2669.85,PETER HOUSLEY REMOVALS                  ,207489,Transport,REMOVALS & STORAGE - HOUSEHOLD
ABBEY LANE                    ,1183,PURCHASE OF EQUIPMENT         ,03/10/2011,3122355,697,970.00,SHEFFIELD LEP LTD                       ,482230,Unclassified Non Trade,LOCAL GOVERNMENT              
SECURE PLACEMENTS             ,9270,SECURE PLACEMENTS - REMAND    ,03/10/2011,3122358,6810036222,5750.81,LEEDS CITY COUNCIL                      ,316373,Unclassified Non Trade,LOCAL GOVERNMENT              
OWLER BROOK PCP               ,1194,OTHER FEES                    ,03/10/2011,3122359,715,23300.00,SHEFFIELD LEP LTD                       ,482230,Unclassified Non Trade,LOCAL GOVERNMENT              
HIGH STORRS                   ,1161,NC&A MAIN CONTRACT            ,03/10/2011,3122360,713,780.00,SHEFFIELD LEP LTD                       ,482230,Unclassified Non Trade,LOCAL GOVERNMENT              
MYERS GROVE                   ,1183,PURCHASE OF EQUIPMENT         ,03/10/2011,3122361,699,23164.03,SHEFFIELD LEP LTD                       ,482230,Unclassified Non Trade,LOCAL GOVERNMENT              
LEP BUSINESS PLAN - W4        ,1194,OTHER FEES                    ,03/10/2011,3122362,737,10941.73,SHEFFIELD LEP LTD                       ,482230,Unclassified Non Trade,LOCAL GOVERNMENT              
HANDSWORTH GRANGE             ,1161,NC&A MAIN CONTRACT            ,03/10/2011,3122363,735,191407.56,SHEFFIELD LEP LTD                       ,482230,Unclassified Non Trade,LOCAL GOVERNMENT              
FIR VALE EXPANSION            ,1161,NC&A MAIN CONTRACT            ,03/10/2011,3122366,714,36526.97,SHEFFIELD LEP LTD                       ,482230,Unclassified Non Trade,LOCAL GOVERNMENT              
PFI CONTRIBUTIONS             ,4460,RECHARGES                     ,03/10/2011,3122368,740,109565.96,SHEFFIELD LEP LTD                       ,482230,Unclassified Non Trade,LOCAL GOVERNMENT              
FIR VALE EXPANSION            ,1161,NC&A MAIN CONTRACT            ,03/10/2011,3122374,VYO7369                  ,457512.21,INTERSERVE CONSTRUCTION LIMITED         ,547901,Construction,BUILDERS                      
INSULATION                    ,1194,OTHER FEES                    ,03/10/2011,3123062,INV108655                ,1145.00,ACHILLES INFORMATION LTD                ,380618,ICT,INTERNET SERVICES             
INSULATION                    ,1194,OTHER FEES                    ,03/10/2011,3123063,INV108654                ,515.00,ACHILLES INFORMATION LTD                ,380618,ICT,INTERNET SERVICES             
NEETS 16+                     ,9120,OTHER AGENCIES                ,03/10/2011,3123095,100122,10797.60,SPRINT TRAINING LTD                     ,375572,Leisure Services,MOTOR SPORTS                  
SHEFFIELD HOMES GENERAL       ,9650,CORPORATE MAIL                ,03/10/2011,3123100,889229,13497.93,CHIEF EXECUTIVE DIRECTORATE (HOMES)     ,402954,Unclassified Non Trade,LOCAL GOVERNMENT              
RED TAPE CENTRAL              ,8490,EXAM FEES                     ,03/10/2011,3123135,802142075,1208.00,CITY & GUILDS                           ,424267,Education,EXAMINATION BOARDS            
SHEFFIELD HOMES ACCOMODATION  ,6030,REPAIRS AND MTCE - RESPONSIVE ,03/10/2011,3123156,110203,2000.00,KIER LIMITED                            ,516733,Facilities Management,FACILITIES MANAGEMENT         
NEETS 16+                     ,9120,OTHER AGENCIES                ,03/10/2011,3123205,CDD2/018A                ,9110.00,AUTISM PLUS LTD                         ,330606,Unclassified Non Trade,CHARITIES & VOLUNTARY ORGANISA
SIV 3 - FACILITIES            ,8180,GRANTS                        ,03/10/2011,3123383,3018970,265592.81,SHEFFIELD INTERNATIONAL VENUES LTD.     ,208389,Leisure Services,SPORTS GROUNDS & STADIUMS     
FAMILY WELFARE ASSOCIATION    ,8550,OTHER SERVICES                ,03/10/2011,3123397,13957,32725.00,FAMILY ACTION                           ,469656,Medical ,COUNSELLING & ADVICE SERVICES 
EMPLOYEE DEVELOPMENT          ,5750,EXTERNAL TRAINERS COSTS       ,03/10/2011,3123420,940811,9460.80,ORBIT SERVICES 2000 LTD                 ,542726,Financial Services,DEBT COLLECTION AGENCIES      
ELECTORAL REGISTRATION        ,8570,POSTAGE & DELIVERY            ,03/10/2011,3123484,9035724584,11618.08,ROYAL MAIL GROUP PLC                    ,295326,Mail Services,DELIVERY SERVICES             
DISTRICT HEATING GENERAL      ,6160,GAS                           ,03/10/2011,3123580,A3669279/S1862987        ,1242.62,BRITISH GAS BUSINESS                    ,370790,Utilities,GAS COMPANIES                 
DISTRICT HEATING GENERAL      ,6160,GAS                           ,03/10/2011,3123583,A3669279/S1862981        ,1205.61,BRITISH GAS BUSINESS                    ,370790,Utilities,GAS COMPANIES                 
HOMELESS INTERIM ACCOMM       ,6210,BED & BREAKFAST PAYMENTS      ,03/10/2011,3123345,037/2011                 ,2238.80,EARL MARSHALL GUEST HOUSE               ,391589,Facilities Management,GUEST HOUSES                  
HOMELESS INTERIM ACCOMM       ,6210,BED & BREAKFAST PAYMENTS      ,03/10/2011,3123346,224,1151.50,BURNGREAVE B & B                        ,466986,Facilities Management,GUEST HOUSES                  
PURCHASING LEARNING DISABILITI,9190,CITYWIDE SPOT                 ,03/10/2011,3123327,40735,1504.00,CRAEGMOOR                               ,537766,Social Community Care,RESIDENTIAL CARE HOMES        
PURCHASING LEARNING DISABILITI,9190,CITYWIDE SPOT                 ,03/10/2011,3123328,36300010,1504.00,CRAEGMOOR                               ,537766,Social Community Care,RESIDENTIAL CARE HOMES        
PURCHASING LEARNING DISABILITI,9190,CITYWIDE SPOT                 ,03/10/2011,3123329,1543695,934.52,MENCAP HOMECARE                         ,361858,Unclassified Non Trade,CHARITIES & VOLUNTARY ORGANISA
PURCHASING LEARNING DISABILITI,9190,CITYWIDE SPOT                 ,03/10/2011,3123330,1546539,2915.08,MENCAP HOMECARE                         ,361858,Unclassified Non Trade,CHARITIES & VOLUNTARY ORGANISA
PURCHASING LEARNING DISABILITI,9190,CITYWIDE SPOT                 ,03/10/2011,3123331,1546540,1024.40,MENCAP HOMECARE                         ,361858,Unclassified Non Trade,CHARITIES & VOLUNTARY ORGANISA
PURCHASING LEARNING DISABILITI,9190,CITYWIDE SPOT                 ,03/10/2011,3123332,1546542,2517.64,MENCAP HOMECARE                         ,361858,Unclassified Non Trade,CHARITIES & VOLUNTARY ORGANISA
PURCHASING LEARNING DISABILITI,9190,CITYWIDE SPOT                 ,03/10/2011,3123333,1546558,4140.92,MENCAP HOMECARE                         ,361858,Unclassified Non Trade,CHARITIES & VOLUNTARY ORGANISA
PURCHASING LEARNING DISABILITI,9190,CITYWIDE SPOT                 ,03/10/2011,3123334,1546566,2890.80,MENCAP HOMECARE                         ,361858,Unclassified Non Trade,CHARITIES & VOLUNTARY ORGANISA
NORTH SA - CIN S17            ,9270,CARELEAVERS INDEPENDENT LIVING,03/10/2011,3123326,18612,4248.40,SUTTON STAFF AGENCY LTD.                ,301604,Human Resources,EMPLOYMENT & RECRUITMENT AGENC
CONTRACT                      ,6210,RENTS                         ,03/10/2011,3123655,MPA20111003119 10        ,500.00,CAPITAL PROPERTIES                      ,478220,Unclassified Trade,LETTING AGENTS                
CONTRACT                      ,6210,RENTS                         ,03/10/2011,3123656,MPA20111003119 11        ,812.50,FLORENCE RODRIGUES                      ,518981,Unclassified Trade,PROPERTY & ESTATE MANAGEMENT  
CONTRACT                      ,6210,RENTS                         ,03/10/2011,3123660,MPA20111003119 15        ,975.00,J A SAVVA                               ,510440,Unclassified Trade,LETTING AGENTS                
CONTRACT                      ,6210,RENTS                         ,03/10/2011,3123661,MPA20111003119 16        ,650.00,PHILIP READ                             ,492067,Unclassified Trade,PROPERTY & ESTATE MANAGEMENT  
CONTRACT                      ,6210,RENTS                         ,03/10/2011,3123662,MPA20111003119 17        ,525.00,PHILIP READ                             ,492067,Unclassified Trade,PROPERTY & ESTATE MANAGEMENT  
CONTRACT                      ,6210,RENTS                         ,03/10/2011,3123663,MPA20111003119 18        ,650.00,VENTROMADE LTD                          ,449361,Construction,PROPERTY DEVELOPERS           
ERF GATEWAY PROGRAMME         ,6210,RENTS                         ,03/10/2011,3123664,MPA20111003119 19        ,525.00,PHILIP READ                             ,492067,Unclassified Trade,PROPERTY & ESTATE MANAGEMENT  
CONTRACT                      ,6210,RENTS                         ,03/10/2011,3123666,MPA20111003119 20        ,650.00,PHILIP READ                             ,492067,Unclassified Trade,PROPERTY & ESTATE MANAGEMENT  
CONTRACT                      ,6210,RENTS                         ,03/10/2011,3123668,MPA20111003119 22        ,800.00,CAPITAL PROPERTIES                      ,478220,Unclassified Trade,LETTING AGENTS                
CONTRACT                      ,6210,RENTS                         ,03/10/2011,3123669,MPA20111003119 23        ,812.50,REDACTED PERSONAL DATA,553376,Unclassified Non Trade,OUT OF SCOPE FOR SIC MONITORIN
CONTRACT                      ,6210,RENTS                         ,03/10/2011,3123670,MPA20111003119 24        ,800.00,CAPITAL PROPERTIES                      ,478220,Unclassified Trade,LETTING AGENTS                
CONTRACT                      ,6210,RENTS                         ,03/10/2011,3123671,MPA20111003119 25        ,1137.50,REDACTED PERSONAL DATA,553375,Unclassified Non Trade,OUT OF SCOPE FOR SIC MONITORIN
CONTRACT                      ,6210,RENTS                         ,03/10/2011,3123676,MPA20111003119 3         ,650.00,STEPHEN GEARY                           ,511645,Unclassified Trade,PROPERTY & ESTATE MANAGEMENT  
CONTRACT                      ,6210,RENTS                         ,03/10/2011,3123679,MPA20111003119 32        ,1183.00,BRAD TATE                               ,518499,Unclassified Trade,LETTING AGENTS                
CONTRACT                      ,6210,RENTS                         ,03/10/2011,3123680,MPA20111003119 33        ,650.00,PROPERTY PARTNERS                       ,535657,Financial Services,PROPERTY INVESTMENTS          
CONTRACT                      ,6210,RENTS                         ,03/10/2011,3123681,MPA20111003119 34        ,650.00,PROPERTY PARTNERS                       ,535657,Financial Services,PROPERTY INVESTMENTS          
CONTRACT                      ,6210,RENTS                         ,03/10/2011,3123682,MPA20111003119 35        ,975.00,IMRAN RAFIQUE                           ,519863,Unclassified Trade,LETTING AGENTS                
CONTRACT                      ,6210,RENTS                         ,03/10/2011,3123686,MPA20111003119 39        ,650.00,CAPITAL PROPERTIES                      ,478220,Unclassified Trade,LETTING AGENTS                
CONTRACT                      ,6210,RENTS                         ,03/10/2011,3123687,MPA20111003119 4         ,650.00,STEPHEN GEARY                           ,511645,Unclassified Trade,PROPERTY & ESTATE MANAGEMENT  
CONTRACT                      ,6210,RENTS                         ,03/10/2011,3123688,MPA20111003119 40        ,812.50,MR T JEFFCOATE                          ,516245,Unclassified Trade,LETTING AGENTS                
CONTRACT                      ,6210,RENTS                         ,03/10/2011,3123689,MPA20111003119 41        ,650.00,IMRAN RAFIQUE                           ,519863,Unclassified Trade,LETTING AGENTS                
CONTRACT                      ,6210,RENTS                         ,03/10/2011,3123693,MPA20111003119 45        ,650.00,CAPITAL PROPERTIES                      ,478220,Unclassified Trade,LETTING AGENTS                
CONTRACT                      ,6210,RENTS                         ,03/10/2011,3123694,MPA20111003119 46        ,1137.50,M S GHAZI                               ,513558,Unclassified Trade,PROPERTY & ESTATE MANAGEMENT  
CONTRACT                      ,6210,RENTS                         ,03/10/2011,3123697,MPA20111003119 49        ,975.00,J A & A L LAWRENCE                      ,511472,Unclassified Trade,LETTING AGENTS                
CONTRACT                      ,6210,RENTS                         ,03/10/2011,3123698,MPA20111003119 5         ,650.00,STEPHEN GEARY                           ,511645,Unclassified Trade,PROPERTY & ESTATE MANAGEMENT  
CONTRACT                      ,6210,RENTS                         ,03/10/2011,3123699,MPA20111003119 50        ,812.50,J A & A L LAWRENCE                      ,511472,Unclassified Trade,LETTING AGENTS                
CONTRACT                      ,6210,RENTS                         ,03/10/2011,3123700,MPA20111003119 51        ,875.00,EXCELL LETTINGS & MANAGEMENT LTD        ,547611,Unclassified Trade,LETTING AGENTS                
CONTRACT                      ,6210,RENTS                         ,03/10/2011,3123701,MPA20111003119 52        ,650.00,DR M D & MRS D J BLAGDEN                ,503150,Medical ,DOCTORS                       
CONTRACT                      ,6210,RENTS                         ,03/10/2011,3123702,MPA20111003119 53        ,650.00,CAPITAL PROPERTIES                      ,478220,Unclassified Trade,LETTING AGENTS                
CONTRACT                      ,6210,RENTS                         ,03/10/2011,3123703,MPA20111003119 54        ,585.00,EXCELL LETTINGS & MANAGEMENT LTD        ,547611,Unclassified Trade,LETTING AGENTS                
CONTRACT                      ,6210,RENTS                         ,03/10/2011,3123705,MPA20111003119 56        ,1625.00,KULJIT MALHI                            ,547154,Unclassified Trade,LETTING AGENTS                
CONTRACT                      ,6210,RENTS                         ,03/10/2011,3123706,MPA20111003119 57        ,525.00,GLORIA GIBSON                           ,519807,Unclassified Trade,LETTING AGENTS                
CONTRACT                      ,6210,RENTS                         ,03/10/2011,3123707,MPA20111003119 58        ,1137.50, BURGIN PROPERTIES                      ,519809,Unclassified Trade,LETTING AGENTS                
CONTRACT                      ,6210,RENTS                         ,03/10/2011,3123708,MPA20111003119 59        ,975.00,KULJIT MALHI                            ,547154,Unclassified Trade,LETTING AGENTS                
CONTRACT                      ,6210,RENTS                         ,03/10/2011,3123709,MPA20111003119 6         ,650.00,CAPITAL PROPERTIES                      ,478220,Unclassified Trade,LETTING AGENTS                
CONTRACT                      ,6210,RENTS                         ,03/10/2011,3123710,MPA20111003119 60        ,585.00,EXCELL LETTINGS & MANAGEMENT LTD        ,547611,Unclassified Trade,LETTING AGENTS                
ERF GATEWAY PROGRAMME         ,6210,RENTS                         ,03/10/2011,3123716,MPA20111003119 66        ,840.00,CAPITAL PROPERTIES                      ,478220,Unclassified Trade,LETTING AGENTS                
ERF GATEWAY PROGRAMME         ,6210,RENTS                         ,03/10/2011,3123717,MPA20111003119 67        ,840.00,CAPITAL PROPERTIES                      ,478220,Unclassified Trade,LETTING AGENTS                
CONTRACT                      ,6210,RENTS                         ,03/10/2011,3123718,MPA20111003119 68        ,800.00,CAPITAL PROPERTIES                      ,478220,Unclassified Trade,LETTING AGENTS                
ERF GATEWAY PROGRAMME         ,6210,RENTS                         ,03/10/2011,3123720,MPA20111003119 8         ,809.00,BAMFORTH SERVICES                       ,558405,Unclassified Trade,LETTING AGENTS                
CONTRACT                      ,6210,RENTS                         ,03/10/2011,3123721,MPA20111003119 9         ,650.00,SEYYED SHAH                             ,493436,Unclassified Trade,PROPERTY & ESTATE MANAGEMENT  
PURCHASING LEARNING DISABILITI,9210,CONTINUING NURSING CARE       ,03/10/2011,3123321,J410921 161011           ,6066.12,WHITWELL PARK                           ,362055,Social Community Care,NURSING HOMES                 
PURCHASING ELDERLY            ,9210,CONTINUING NURSING CARE       ,03/10/2011,3123322,J415483 161011           ,3750.00,FULWOOD LODGE NURSING HOME              ,361775,Social Community Care,NURSING HOMES                 
PURCHASING ELDERLY            ,9200,CONTINUING RESIDENTIAL CARE   ,03/10/2011,3123323,J415484 161011           ,6794.29,LOXLEY COURT                            ,362146,Social Community Care,NURSING HOMES                 
PURCHASING ELDERLY            ,9210,CONTINUING NURSING CARE       ,03/10/2011,3123323,J415484 161011           ,4603.71,LOXLEY COURT                            ,362146,Social Community Care,NURSING HOMES                 
THORNBRIDGE OUTDOOR CENTRE    ,8130,CATERING SUPPLIES             ,04/10/2011,3124449,1208,780.10,HAZEL'S QUALITY CATERING LTD            ,300944,Catering,CATERERS                      
STREET FORCE BALANCE SHEET    ,776,4332101 INVOICES PAID         ,04/10/2011,3124160,6657952,646.50,CARLTON FUELS                           ,466741,Vehicles Not Buses,FUEL DEALERS                  
STREET FORCE BALANCE SHEET    ,776,4332101 INVOICES PAID         ,04/10/2011,3124161,7517,1752.65,GLEADLESS CIVIL ENGINEERING LTD         ,412782,Highway Equipment and Materials,PAVING & DRIVEWAY CONTRACTORS 
STREET FORCE BALANCE SHEET    ,776,4332101 INVOICES PAID         ,04/10/2011,3124162,7518,1960.35,GLEADLESS CIVIL ENGINEERING LTD         ,412782,Highway Equipment and Materials,PAVING & DRIVEWAY CONTRACTORS 
STREET FORCE BALANCE SHEET    ,776,4332101 INVOICES PAID         ,04/10/2011,3124163,7519,2674.15,GLEADLESS CIVIL ENGINEERING LTD         ,412782,Highway Equipment and Materials,PAVING & DRIVEWAY CONTRACTORS 
STREET FORCE BALANCE SHEET    ,776,4332101 INVOICES PAID         ,04/10/2011,3124165,7520,1518.15,GLEADLESS CIVIL ENGINEERING LTD         ,412782,Highway Equipment and Materials,PAVING & DRIVEWAY CONTRACTORS 
STREET FORCE BALANCE SHEET    ,776,4332101 INVOICES PAID         ,04/10/2011,3124166,7521,1361.10,GLEADLESS CIVIL ENGINEERING LTD         ,412782,Highway Equipment and Materials,PAVING & DRIVEWAY CONTRACTORS 
STREET FORCE BALANCE SHEET    ,776,4332101 INVOICES PAID         ,04/10/2011,3124167,7522,1361.10,GLEADLESS CIVIL ENGINEERING LTD         ,412782,Highway Equipment and Materials,PAVING & DRIVEWAY CONTRACTORS 
STREET FORCE BALANCE SHEET    ,776,4332101 INVOICES PAID         ,04/10/2011,3124168,7523,1361.10,GLEADLESS CIVIL ENGINEERING LTD         ,412782,Highway Equipment and Materials,PAVING & DRIVEWAY CONTRACTORS 
STREET FORCE BALANCE SHEET    ,776,4332101 INVOICES PAID         ,04/10/2011,3124169,7524,2102.10,GLEADLESS CIVIL ENGINEERING LTD         ,412782,Highway Equipment and Materials,PAVING & DRIVEWAY CONTRACTORS 
STREET FORCE BALANCE SHEET    ,776,4332101 INVOICES PAID         ,04/10/2011,3124170,7525,1623.60,GLEADLESS CIVIL ENGINEERING LTD         ,412782,Highway Equipment and Materials,PAVING & DRIVEWAY CONTRACTORS 
STREET FORCE BALANCE SHEET    ,776,4332101 INVOICES PAID         ,04/10/2011,3124171,7526,1570.50,GLEADLESS CIVIL ENGINEERING LTD         ,412782,Highway Equipment and Materials,PAVING & DRIVEWAY CONTRACTORS 
STREET FORCE BALANCE SHEET    ,776,4332101 INVOICES PAID         ,04/10/2011,3124172,SR/CWL97-99A             ,21751.53,SR PAVING AND GROUNDWORKS LIMITED       ,502099,Highway Equipment and Materials,PAVING & DRIVEWAY CONTRACTORS 
SWAN                          ,1146,L&B PROFESSIONAL FEES         ,04/10/2011,3124676,ERS INVOICE57446         ,83596.94,ROSALIND WATCHORN SOLICITORS            ,361219,Legal Services,SOLICITORS                    
SWAN RHB LOANS RAL            ,1194,OTHER FEES                    ,04/10/2011,3124677,ERS INVOICE57447         ,20000.00,ROSALIND WATCHORN SOLICITORS            ,361219,Legal Services,SOLICITORS                    
NORTHERN COUNTIES             ,9200,CONTINUING RESIDENTIAL CARE   ,04/10/2011,3124678,ERS INVOICE57448         ,191737.00,NORTHERN COUNTIES HOUSING ASSOCIATION   ,385309,Unclassified Non Trade,"HOUSING ASSOCIATIONS, SOCIETIE"
SYHA                          ,9200,CONTINUING RESIDENTIAL CARE   ,04/10/2011,3124679,ERS INVOICE57449         ,280831.00,SOUTH YORKSHIRE HOUSING ASSOCIATION     ,297822,Unclassified Non Trade,"HOUSING ASSOCIATIONS, SOCIETIE"
CARE PROCEEDINGS (LEGAL FEES) ,8470,LEGAL FEES                    ,04/10/2011,3124680,ERS INVOICE57450         ,841.05,L & K CLARKE PSYCHOLOGY SERVICES LTD    ,443006,Medical ,PSYCHOLOGISTS                 
VSP DELIVER                   ,9120,OTHER AGENCIES                ,04/10/2011,3124681,ERS INVOICE57451         ,15494.00,DONCASTER ROTH & DIST (MOTOR TRADES)GTA ,204434,Human Resources,TRAINING CENTRES              
VSP DELIVER                   ,9120,OTHER AGENCIES                ,04/10/2011,3124682,ERS INVOICE57452         ,17280.00,WHITE ROSE SCHOOLS LTD                  ,334662,Education,BEAUTY SCHOOLS                
CARE PROCEEDINGS (LEGAL FEES) ,8470,LEGAL FEES                    ,04/10/2011,3124683,ERS INVOICE57453         ,2225.00,CEC MORLEY                              ,537729,Unclassified Non Trade,COURTS                        
CARE PROCEEDINGS (LEGAL FEES) ,8470,LEGAL FEES                    ,04/10/2011,3124684,ERS INVOICE57454         ,2225.00,CEC MORLEY                              ,537729,Unclassified Non Trade,COURTS                        
CARE PROCEEDINGS (LEGAL FEES) ,8470,LEGAL FEES                    ,04/10/2011,3124686,ERS INVOICE57456         ,1327.50,L & K CLARKE PSYCHOLOGY SERVICES LTD    ,443006,Medical ,PSYCHOLOGISTS                 
TREE MANAGEMENT               ,1165,NC&A OTHER                    ,04/10/2011,3124688,ERS INVOICE57458         ,980.00,J B HIBBERD LIMITED                     ,510434,Environmental Services,TREE WORK & FORESTRY SERVICES 
BUSINESS INTELLIGENCE         ,8440,FEE EXPENSES                  ,04/10/2011,3124694,ERS INVOICE57465         ,644.49,JOHN FARRAR                             ,505273,Consultancy,BUSINESS & MANAGEMENT CONSULTA
ALDINE HOUSE                  ,5610,AGENCY STAFF                  ,04/10/2011,3124761,ERS INVOICE57469         ,4943.60,REDACTED PERSONAL DATA,543584,Unclassified Non Trade,OUT OF SCOPE FOR SIC MONITORIN
MINOR ADAPTATIONS             ,6030,REPAIRS AND MTCE - RESPONSIVE ,04/10/2011,3124765,ERS INVOICE57473         ,1629.00,NEIL MARRISON                           ,459864,Construction,BUILDING SERVICES             
LEARNING & YOUNG PEOPLE       ,8060,MATERIALS AND SUPPLIES GENERAL,04/10/2011,3080656,16752,5799.00,THE READING AGENCY                      ,370437,Unclassified Non Trade,CHARITIES & VOLUNTARY ORGANISA
CAR PARKING MANAGEMENT        ,8370,PRINTING                      ,04/10/2011,3107083,2961,3667.65,NAGELS MULTI GRAPHIC                    ,535877,Facilities Management,PRINTERS                      
STANIFORTH ROAD WORKSHOPS     ,7010,ROUTINE VEHICLE REPAIR & MTCE ,04/10/2011,3107906,2745,4000.00,PUMP AND TANK SERVICES LTD              ,207724,Building Construction Materials,"PUMPS - SALES, SERVICING & REP"
"BRANDING, INT & BUSINESS      ",8250,MARKETING EXPENSES            ,04/10/2011,3116403,E1/3696374               ,7657.50,UBM INFORMATIOM LTD                     ,335397,Education,PUBLISHERS                    
PURCHASING ELDERLY            ,7060,EXTERNAL VEHICLE HIRE         ,04/10/2011,3121031,21760,1800.00,SHEFFIELD COMMUNITY TRANSPORT           ,296356,Unclassified Non Trade,CHARITIES & VOLUNTARY ORGANISA
SNIPS                         ,8180,GRANTS                        ,04/10/2011,3121332,SNIPS006                 ,805.20,MIDDLEWOOD WINNERS LTD 'LITTLE WINNERS' ,398202,Social Community Care,NURSERIES & CRECHES           
GROUNDS MAINTENANCE           ,7020,VEHICLE FUEL COSTS            ,04/10/2011,3121349,6681890,615.87,CARLTON FUELS                           ,466741,Vehicles Not Buses,FUEL DEALERS                  
GALVANISE                     ,8440,FEE EXPENSES                  ,04/10/2011,3121363,GF040411                 ,1310.00,OPUS                                    ,522081,Leisure Services,"CLUBS & ASSOCIATIONS - SOCIAL,"
BY ANY MEANS                  ,8440,FEE EXPENSES                  ,04/10/2011,3121393,710,800.00,DEAD EARNEST THEATRE                    ,408127,Leisure Services,THEATRE COMPANIES             
CORONIAL SERVICES             ,8550,OTHER SERVICES                ,04/10/2011,3122301,4000293473,559.56,SHEFFIELD TEACHING HOSPITALS NHS TRUST  ,308114,Unclassified Non Trade,HOSPITALS                     
RESPONSIVE REPAIRS            ,8440,FEE EXPENSES                  ,04/10/2011,3122311,290197,738.00,CRAWFORD UK LTD                         ,469681,Building Construction Materials,DOORS & SHUTTERS - SALES & INS
LD PARTNERSHIP CONTRACTS      ,9160,PARTNERSHIP CONTRACTS         ,04/10/2011,3122316,43384,4774.00,SHEFFIELD CITIZEN ADVOCACY              ,329510,Unclassified Non Trade,CHARITIES & VOLUNTARY ORGANISA
ADAPTATIONS                   ,1157,DWELLINGS MAIN CONTRACT       ,04/10/2011,3122370,09092/02-1               ,2080.70,HENRY BOOT CONSTRUCTION LTD             ,205461,Construction,CONSTRUCTION CONTRACTORS - GEN
ADAPTATIONS                   ,1157,DWELLINGS MAIN CONTRACT       ,04/10/2011,3122372,09092/03-1               ,2030.18,HENRY BOOT CONSTRUCTION LTD             ,205461,Construction,CONSTRUCTION CONTRACTORS - GEN
DISABLED ACCESS ADAPTATIONS   ,8010,EQUIPMENT PURCHASE AND REPAIR ,04/10/2011,3122841,34880,522.50,ENABLE ACCESS                           ,342938,Medical ,DISABILITY EQUIPMENT - MNFRS &
AREA TEAM 1                   ,6280,HIRE OF PREMISES              ,04/10/2011,3123064,10001279,720.00,KIER FACILITIES SERVICES LTD            ,467395,Facilities Management,FACILITIES MANAGEMENT         
INTENSIVE SUPPORT FOR LEARNING,5610,AGENCY STAFF - INVOICE        ,04/10/2011,3123108,3450667,685.50,CAPITA EDUCATION RESOURCING             ,203721,Human Resources,EMPLOYMENT & RECRUITMENT AGENC
INTENSIVE SUPPORT FOR LEARNING,5610,AGENCY STAFF - INVOICE        ,04/10/2011,3123109,3450670,606.90,CAPITA EDUCATION RESOURCING             ,203721,Human Resources,EMPLOYMENT & RECRUITMENT AGENC
INTENSIVE SUPPORT FOR LEARNING,5610,AGENCY STAFF - INVOICE        ,04/10/2011,3123111,3450671,606.90,CAPITA EDUCATION RESOURCING             ,203721,Human Resources,EMPLOYMENT & RECRUITMENT AGENC
INTENSIVE SUPPORT FOR LEARNING,5610,AGENCY STAFF - INVOICE        ,04/10/2011,3123114,3450669,606.90,CAPITA EDUCATION RESOURCING             ,203721,Human Resources,EMPLOYMENT & RECRUITMENT AGENC
FSSG                          ,8440,FEE EXPENSES                  ,04/10/2011,3123121,41790,43483.00,VELOS-IT LTD                            ,473485,Consultancy,COMPUTER SYSTEMS & SOFTWARE (D
MOORFOOT BUILDING             ,9650,OTHER SERVICE RECHARGES       ,04/10/2011,3123218,12761,1842.00,PETER HOUSLEY REMOVALS                  ,207489,Transport,REMOVALS & STORAGE - HOUSEHOLD
ADAPTATIONS                   ,1157,DWELLINGS MAIN CONTRACT       ,04/10/2011,3123356,202209,1765.55,PRISM MEDICAL UK WESTHOLME DIVISION     ,209483,Medical ,DISABILITY EQUIPMENT - MNFRS &
LEISURE GARDENS               ,6370,GROUNDS MTCE AND ARBORICULTURE,04/10/2011,3123377,35,930.00,HN WOODLAND & ESTATE MANAGEMENT         ,317072,Environmental Services,TREE WORK & FORESTRY SERVICES 
THORNBRIDGE OUTDOOR CENTRE    ,6110,CLEANING/DOMESTIC MAT./SUPPLY ,04/10/2011,3123400,8270,593.95, CLARKE'S SAFETY MIRRORS LTD            ,558333,Furniture,MIRRORS & DECORATIVE GLASS    
BUSINESS MANAGEMENT - SCHEME  ,8440,FEE EXPENSES                  ,04/10/2011,3123430,31NV11                   ,4017.71,BIRKETT COLE LOWE ARCHITECTS            ,314888,Consultancy,ARCHITECTS                    
MEDICO LEGAL CENTRE           ,8440,FEE EXPENSES                  ,04/10/2011,3123439,P00316                   ,7100.00,REDACTED PERSONAL DATA,558502,Unclassified Non Trade,OUT OF SCOPE FOR SIC MONITORIN
ALDINE HOUSE                  ,5610,AGENCY STAFF                  ,04/10/2011,3123444,693539,978.50,TEACHING PERSONNEL                      ,410695,Human Resources,EMPLOYMENT & RECRUITMENT AGENC
INTENSIVE SUPPORT FOR LEARNING,5610,AGENCY STAFF - INVOICE        ,04/10/2011,3123459,3449526,582.61,CAPITA EDUCATION RESOURCING             ,203721,Human Resources,EMPLOYMENT & RECRUITMENT AGENC
TARGETED YOUTH SUPPORT        ,9120,OTHER AGENCIES                ,04/10/2011,3123549,40815,3176.00,SHEFFIELD YOUNG CARERS PROJECT          ,330602,Unclassified Non Trade,CHARITIES & VOLUNTARY ORGANISA
EP DOOR ENTRY WORKS           ,1161,NC&A MAIN CONTRACT            ,04/10/2011,3123575,SH02430/2                ,170300.00,KIER SHEFFIELD LLP                      ,352687,Construction,PROPERTY MAINTENANCE & REPAIRS
SHIRECLIFFE NEW COUNCIL HOMES ,1162,NC&A MAIN CONT STREETF        ,04/10/2011,3123576,NH02899/15               ,27200.00,HENRY BOOT CONSTRUCTION LTD             ,205461,Construction,CONSTRUCTION CONTRACTORS - GEN
LEARNING & DEVELOPMT DELIVERY ,5750,TRAINING EXPENDITURE          ,04/10/2011,3123730,201039,650.00,PRE-RETIREMENT CONSULTANT SERVICES LTD  ,395141,Human Resources,TRAINING SERVICES             
SNIPS                         ,8180,GRANTS                        ,04/10/2011,3123775,21016,1800.00,VOLUNTARY ACTION SHEFFIELD              ,295283,Unclassified Non Trade,CHARITIES & VOLUNTARY ORGANISA
ACCOMMODATION STRATEGY        ,9650,OTHER SERVICE RECHARGES       ,04/10/2011,3123783,12774,1083.12,PETER HOUSLEY REMOVALS                  ,207489,Transport,REMOVALS & STORAGE - HOUSEHOLD
SNIPS                         ,8180,GRANTS                        ,04/10/2011,3123801,SNIPS/SAT12              ,666.02,STEPHEN HARRISON ACADEMY                ,479429,Leisure Services,"SNOOKER, BILLIARDS & POOL HALL"
LIFELONG LEARNING MANAGER     ,8080,LIBRARY MATERIALS             ,04/10/2011,3124108,1359431,610.50,BERTRAM LIBRARY SERVICES                ,418929,Education,EDUCATIONAL EQUIPMENT & SUPPLI
LIFELONG LEARNING MANAGER     ,8080,LIBRARY MATERIALS             ,04/10/2011,3124111,1358575,643.23,BERTRAM LIBRARY SERVICES                ,418929,Education,EDUCATIONAL EQUIPMENT & SUPPLI
PROGRAMME DELIVERY TEAM       ,8490,OTHER PROFESSIONAL FEES       ,04/10/2011,3124124,2100066111,1670.64,SHEFFIELD CARE TRUST (SP)               ,366826,Unclassified Non Trade,CHARITIES & VOLUNTARY ORGANISA
PROGRAMME DELIVERY TEAM       ,8490,OTHER PROFESSIONAL FEES       ,04/10/2011,3124125,2100066109,1547.68,SHEFFIELD CARE TRUST (SP)               ,366826,Unclassified Non Trade,CHARITIES & VOLUNTARY ORGANISA
SNIPS                         ,8180,GRANTS                        ,04/10/2011,3124127,SNIPS/SAT13              ,666.02,STEPHEN HARRISON ACADEMY                ,479429,Leisure Services,"SNOOKER, BILLIARDS & POOL HALL"
CAPITA CONTROL A/C            ,9620,FINANCIAL PROCESSES           ,04/10/2011,3124133,92224445,3513864.00,CAPITA BUSINESS SERVICES LTD            ,505663,Human Resources,BUSINESS INFORMATION SERVICES 
FURNISHED ACCOMMODATION       ,6020,VOID PAINTING INITIATIVE      ,04/10/2011,3124183,L06942                   ,584.00,BELL GROUP (LEEDS)                      ,441427,Construction,PAINTERS & DECORATORS         
FURNISHED ACCOMMODATION       ,6020,VOID PAINTING INITIATIVE      ,04/10/2011,3124187,L06943                   ,854.00,BELL GROUP (LEEDS)                      ,441427,Construction,PAINTERS & DECORATORS         
FURNISHED ACCOMMODATION       ,6020,VOID PAINTING INITIATIVE      ,04/10/2011,3124189,L06944                   ,854.00,BELL GROUP (LEEDS)                      ,441427,Construction,PAINTERS & DECORATORS         
FURNISHED ACCOMMODATION       ,6020,VOID PAINTING INITIATIVE      ,04/10/2011,3124191,L06941                   ,584.00,BELL GROUP (LEEDS)                      ,441427,Construction,PAINTERS & DECORATORS         
OCCUPATIONAL HEALTH & SAFETY  ,5750,TRAINING EXPENDITURE          ,04/10/2011,3124203,CI08296                  ,595.00,NORTH NOTTS CREATE LIMITED              ,484648,Human Resources,TRAINING SERVICES             
OCCUPATIONAL HEALTH & SAFETY  ,5750,TRAINING EXPENDITURE          ,04/10/2011,3124204,CI08295                  ,595.00,NORTH NOTTS CREATE LIMITED              ,484648,Human Resources,TRAINING SERVICES             
OCCUPATIONAL HEALTH & SAFETY  ,5750,TRAINING EXPENDITURE          ,04/10/2011,3124205,CI08297                  ,595.00,NORTH NOTTS CREATE LIMITED              ,484648,Human Resources,TRAINING SERVICES             
POST OFFICES PROJECT          ,8550,OTHER SERVICES                ,04/10/2011,3124368,40756,1750.00,OAKBROOK DELI                           ,552334,Catering,DELICATESSENS                 
THORNBRIDGE OUTDOOR CENTRE    ,8130,CATERING SUPPLIES             ,04/10/2011,3124447,1204,895.90,HAZEL'S QUALITY CATERING LTD            ,300944,Catering,CATERERS                      
MINIBUSES - SHEFFTAX TENDERED ,7060,EXTERNAL VEHICLE HIRE         ,04/10/2011,3124750,928,45936.80,SHEFFIELD TAXI SERVICES LTD             ,208407,Transport,TAXIS & PRIVATE HIRE          
NEWTON GRANGE                 ,6160,GAS                           ,04/10/2011,3124631,A3645302/S1862951        ,741.87,BRITISH GAS BUSINESS                    ,370790,Utilities,GAS COMPANIES                 
CONTRACT                      ,6160,GAS                           ,04/10/2011,3124712,850000000000,539.86,BRITISH GAS                             ,443401,Utilities,GAS COMPANIES                 
SYFP & FC                     ,6150,ELECTRICITY                   ,04/10/2011,3124728,27140029,1112.31,NPOWER NORTHERN LTD                     ,207191,Utilities,ELECTRICITY COMPANIES         
PURCHASING LEARNING DISABILITI,9250,INDEPENDENT DAY CARE          ,04/10/2011,3124232,Z/6/177103               ,2015.48,H F TRUST LIMITED                       ,362078,Unclassified Non Trade,CHARITIES & VOLUNTARY ORGANISA
PURCHASING LEARNING DISABILITI,9250,INDEPENDENT DAY CARE          ,04/10/2011,3124235,100661,504.00,SPECTRUM ACTIVE                         ,533308,Human Resources,TRAINING CENTRES              
PURCHASING LEARNING DISABILITI,9250,INDEPENDENT DAY CARE          ,04/10/2011,3124236,100663,840.00,SPECTRUM ACTIVE                         ,533308,Human Resources,TRAINING CENTRES              
PURCHASING LEARNING DISABILITI,9250,INDEPENDENT DAY CARE          ,04/10/2011,3124237,226,2458.80,THE GOOD DAYS PROJECT                   ,532126,Unclassified Non Trade,CHARITIES & VOLUNTARY ORGANISA
PURCHASING LEARNING DISABILITI,9250,INDEPENDENT DAY CARE          ,04/10/2011,3124240,A02411                   ,1277.28,AUTISM PLUS LTD                         ,330606,Unclassified Non Trade,CHARITIES & VOLUNTARY ORGANISA
PURCHASING                    ,9250,INDEPENDENT DAY CARE          ,04/10/2011,3124241,A02415                   ,922.48,AUTISM PLUS LTD                         ,330606,Unclassified Non Trade,CHARITIES & VOLUNTARY ORGANISA
PURCHASING LEARNING DISABILITI,9250,INDEPENDENT DAY CARE          ,04/10/2011,3124242,A02418                   ,2341.68,AUTISM PLUS LTD                         ,330606,Unclassified Non Trade,CHARITIES & VOLUNTARY ORGANISA
PURCHASING LEARNING DISABILITI,9250,INDEPENDENT DAY CARE          ,04/10/2011,3124244,100691,672.00,SPECTRUM ACTIVE                         ,533308,Human Resources,TRAINING CENTRES              
PURCHASING LEARNING DISABILITI,9190,CITYWIDE SPOT                 ,04/10/2011,3124245,JNA0052                  ,624.00,REDACTED PERSONAL DATA,387589,Social Community Care,HOME CARE SERVICES            
PURCHASING LEARNING DISABILITI,9190,CITYWIDE SPOT                 ,04/10/2011,3124247,RFL0041                  ,618.00,REDACTED PERSONAL DATA,387589,Social Community Care,HOME CARE SERVICES            
PURCHASING LEARNING DISABILITI,9190,CITYWIDE SPOT                 ,04/10/2011,3124248,SI076                    ,1816.96,REDACTED PERSONAL DATA,387589,Social Community Care,HOME CARE SERVICES            
PURCHASING LEARNING DISABILITI,9190,CITYWIDE SPOT                 ,04/10/2011,3124249,1585273+1584             ,773.01,RANDSTAD CARE LTD                       ,329324,Human Resources,EMPLOYMENT & RECRUITMENT AGENC
PURCHASING LEARNING DISABILITI,9190,CITYWIDE SPOT                 ,04/10/2011,3124250,SIMI024973               ,2225.56,REDACTED PERSONAL DATA,524237,Social Community Care,HOME CARE SERVICES            
PURCHASING LEARNING DISABILITI,9190,CITYWIDE SPOT                 ,04/10/2011,3124251,SIMI024975               ,2168.00,REDACTED PERSONAL DATA,524237,Social Community Care,HOME CARE SERVICES            
PURCHASING LEARNING DISABILITI,9190,CITYWIDE SPOT                 ,04/10/2011,3124252,SIMI024976               ,3111.32,REDACTED PERSONAL DATA,524237,Social Community Care,HOME CARE SERVICES            
PURCHASING LEARNING DISABILITI,9190,CITYWIDE SPOT                 ,04/10/2011,3124253,SIMI024977               ,1550.08,REDACTED PERSONAL DATA,524237,Social Community Care,HOME CARE SERVICES            
PURCHASING LEARNING DISABILITI,9190,CITYWIDE SPOT                 ,04/10/2011,3124254,SIMI024978               ,2334.08,REDACTED PERSONAL DATA,524237,Social Community Care,HOME CARE SERVICES            
PURCHASING LEARNING DISABILITI,9190,CITYWIDE SPOT                 ,04/10/2011,3124255,SIMI024979               ,2583.52,REDACTED PERSONAL DATA,524237,Social Community Care,HOME CARE SERVICES            
PURCHASING LEARNING DISABILITI,9190,CITYWIDE SPOT                 ,04/10/2011,3124256,SIMI024980               ,1943.20,REDACTED PERSONAL DATA,524237,Social Community Care,HOME CARE SERVICES            
PURCHASING LEARNING DISABILITI,9190,CITYWIDE SPOT                 ,04/10/2011,3124257,SIMI024981               ,2170.20,REDACTED PERSONAL DATA,524237,Social Community Care,HOME CARE SERVICES            
PHYSICAL DISABILITIES PURCHASI,9190,CITYWIDE SPOT                 ,04/10/2011,3124259,SMD0035                  ,3903.20,REDACTED PERSONAL DATA,387589,Social Community Care,HOME CARE SERVICES            
PURCHASING LEARNING DISABILITI,9190,CITYWIDE SPOT                 ,04/10/2011,3124260,1588093+1590             ,552.15,RANDSTAD CARE LTD                       ,329324,Human Resources,EMPLOYMENT & RECRUITMENT AGENC
PHYSICAL DISABILITIES PURCHASI,9190,CITYWIDE SPOT                 ,04/10/2011,3124261,YH094                    ,1479.76,REDACTED PERSONAL DATA,387589,Social Community Care,HOME CARE SERVICES            
PURCHASING LEARNING DISABILITI,9190,CITYWIDE SPOT                 ,04/10/2011,3124262,Z/5/175848               ,1017.76,H F TRUST LIMITED                       ,362078,Unclassified Non Trade,CHARITIES & VOLUNTARY ORGANISA
PURCHASING LEARNING DISABILITI,9190,CITYWIDE SPOT                 ,04/10/2011,3124263,Z/5/175850               ,781.76,H F TRUST LIMITED                       ,362078,Unclassified Non Trade,CHARITIES & VOLUNTARY ORGANISA
PURCHASING LEARNING DISABILITI,9190,CITYWIDE SPOT                 ,04/10/2011,3124265,Z/6/176108               ,1445.52,H F TRUST LIMITED                       ,362078,Unclassified Non Trade,CHARITIES & VOLUNTARY ORGANISA
PURCHASING LEARNING DISABILITI,9190,CITYWIDE SPOT                 ,04/10/2011,3124266,Z/6/176109               ,590.00,H F TRUST LIMITED                       ,362078,Unclassified Non Trade,CHARITIES & VOLUNTARY ORGANISA
PURCHASING LEARNING DISABILITI,9190,CITYWIDE SPOT                 ,04/10/2011,3124268,Z/6/176318               ,667.08,H F TRUST LIMITED                       ,362078,Unclassified Non Trade,CHARITIES & VOLUNTARY ORGANISA
PURCHASING LEARNING DISABILITI,9190,CITYWIDE SPOT                 ,04/10/2011,3124269,1590842+1593             ,552.15,RANDSTAD CARE LTD                       ,329324,Human Resources,EMPLOYMENT & RECRUITMENT AGENC
PURCHASING LEARNING DISABILITI,9190,CITYWIDE SPOT                 ,04/10/2011,3124270,Z/6/176319               ,704.24,H F TRUST LIMITED                       ,362078,Unclassified Non Trade,CHARITIES & VOLUNTARY ORGANISA
PURCHASING LEARNING DISABILITI,9190,CITYWIDE SPOT                 ,04/10/2011,3124271,Z/6/176321               ,5593.76,H F TRUST LIMITED                       ,362078,Unclassified Non Trade,CHARITIES & VOLUNTARY ORGANISA
PURCHASING LEARNING DISABILITI,9190,CITYWIDE SPOT                 ,04/10/2011,3124272,Z/6/176322               ,2299.96,H F TRUST LIMITED                       ,362078,Unclassified Non Trade,CHARITIES & VOLUNTARY ORGANISA
PURCHASING LEARNING DISABILITI,9190,CITYWIDE SPOT                 ,04/10/2011,3124273,Z/6/176323               ,2749.40,H F TRUST LIMITED                       ,362078,Unclassified Non Trade,CHARITIES & VOLUNTARY ORGANISA
PURCHASING LEARNING DISABILITI,9190,CITYWIDE SPOT                 ,04/10/2011,3124275,Z/6/176325               ,1354.52,H F TRUST LIMITED                       ,362078,Unclassified Non Trade,CHARITIES & VOLUNTARY ORGANISA
PURCHASING LEARNING DISABILITI,9190,CITYWIDE SPOT                 ,04/10/2011,3124277,Z/6/177245               ,1418.88,H F TRUST LIMITED                       ,362078,Unclassified Non Trade,CHARITIES & VOLUNTARY ORGANISA
PURCHASING LEARNING DISABILITI,9190,CITYWIDE SPOT                 ,04/10/2011,3124278,Z/6/177246               ,1216.44,H F TRUST LIMITED                       ,362078,Unclassified Non Trade,CHARITIES & VOLUNTARY ORGANISA
PURCHASING LEARNING DISABILITI,9190,CITYWIDE SPOT                 ,04/10/2011,3124279,1593122+494+             ,773.01,RANDSTAD CARE LTD                       ,329324,Human Resources,EMPLOYMENT & RECRUITMENT AGENC
PURCHASING ELDERLY            ,9190,CITYWIDE SPOT                 ,04/10/2011,3124291,18808,586.58,SUTTON STAFF AGENCY LTD.                ,301604,Human Resources,EMPLOYMENT & RECRUITMENT AGENC
PURCHASING ELDERLY            ,9190,CITYWIDE SPOT                 ,04/10/2011,3124297,18860,562.88,SUTTON STAFF AGENCY LTD.                ,301604,Human Resources,EMPLOYMENT & RECRUITMENT AGENC
PURCHASING ELDERLY            ,9190,CITYWIDE SPOT                 ,04/10/2011,3124299,18897,610.28,SUTTON STAFF AGENCY LTD.                ,301604,Human Resources,EMPLOYMENT & RECRUITMENT AGENC
PURCHASING ELDERLY            ,9190,CITYWIDE SPOT                 ,04/10/2011,3124300,18938,628.05,SUTTON STAFF AGENCY LTD.                ,301604,Human Resources,EMPLOYMENT & RECRUITMENT AGENC
PURCHASING                    ,9190,CITYWIDE SPOT                 ,04/10/2011,3124301,2000002395,819.08,REDACTED PERSONAL DATA,204388,Social Community Care,HOME CARE SERVICES            
PURCHASING LEARNING DISABILITI,9190,CITYWIDE SPOT                 ,04/10/2011,3124303,21546+541                ,2080.80,SPECTRUM SOCIAL CARE LTD                ,328608,Human Resources,EMPLOYMENT & RECRUITMENT AGENC
PURCHASING LEARNING DISABILITI,9190,CITYWIDE SPOT                 ,04/10/2011,3124304,21548+543                ,783.20,SPECTRUM SOCIAL CARE LTD                ,328608,Human Resources,EMPLOYMENT & RECRUITMENT AGENC
PURCHASING LEARNING DISABILITI,9190,CITYWIDE SPOT                 ,04/10/2011,3124308,21581+552                ,2080.80,SPECTRUM SOCIAL CARE LTD                ,328608,Human Resources,EMPLOYMENT & RECRUITMENT AGENC
PURCHASING LEARNING DISABILITI,9190,CITYWIDE SPOT                 ,04/10/2011,3124309,21582+554                ,783.20,SPECTRUM SOCIAL CARE LTD                ,328608,Human Resources,EMPLOYMENT & RECRUITMENT AGENC
PURCHASING LEARNING DISABILITI,9190,CITYWIDE SPOT                 ,04/10/2011,3124313,21617+563                ,2080.80,SPECTRUM SOCIAL CARE LTD                ,328608,Human Resources,EMPLOYMENT & RECRUITMENT AGENC
PURCHASING LEARNING DISABILITI,9190,CITYWIDE SPOT                 ,04/10/2011,3124314,21619+565                ,783.20,SPECTRUM SOCIAL CARE LTD                ,328608,Human Resources,EMPLOYMENT & RECRUITMENT AGENC
PURCHASING LEARNING DISABILITI,9190,CITYWIDE SPOT                 ,04/10/2011,3124318,21644+574                ,2080.80,SPECTRUM SOCIAL CARE LTD                ,328608,Human Resources,EMPLOYMENT & RECRUITMENT AGENC
PURCHASING LEARNING DISABILITI,9190,CITYWIDE SPOT                 ,04/10/2011,3124319,21645+576                ,783.20,SPECTRUM SOCIAL CARE LTD                ,328608,Human Resources,EMPLOYMENT & RECRUITMENT AGENC
PURCHASING LEARNING DISABILITI,9190,CITYWIDE SPOT                 ,04/10/2011,3124333,26797,1160.00,LINKAGE COMMUNITY TRUST                 ,362116,Unclassified Non Trade,CHARITIES & VOLUNTARY ORGANISA
PURCHASING LEARNING DISABILITI,9190,CITYWIDE SPOT                 ,04/10/2011,3124334,26867,1320.88,LINKAGE COMMUNITY TRUST                 ,362116,Unclassified Non Trade,CHARITIES & VOLUNTARY ORGANISA
PHYSICAL DISABILITIES PURCHASI,9190,CITYWIDE SPOT                 ,04/10/2011,3124335,5427/1                   ,505.20,REDACTED PERSONAL DATA,530605,Social Community Care,HOME CARE SERVICES            
PURCHASING LEARNING DISABILITI,9190,CITYWIDE SPOT                 ,04/10/2011,3124344,A02412                   ,851.52,AUTISM PLUS LTD                         ,330606,Unclassified Non Trade,CHARITIES & VOLUNTARY ORGANISA
PURCHASING                    ,9190,CITYWIDE SPOT                 ,04/10/2011,3124345,A02414                   ,1419.20,AUTISM PLUS LTD                         ,330606,Unclassified Non Trade,CHARITIES & VOLUNTARY ORGANISA
PHYSICAL DISABILITIES PURCHASI,9190,CITYWIDE SPOT                 ,04/10/2011,3124346,ANC0048                  ,1405.20,REDACTED PERSONAL DATA,387589,Social Community Care,HOME CARE SERVICES            
PHYSICAL DISABILITIES PURCHASI,9190,CITYWIDE SPOT                 ,04/10/2011,3124347,CZ0067                   ,660.32,REDACTED PERSONAL DATA,387589,Social Community Care,HOME CARE SERVICES            
PURCHASING LEARNING DISABILITI,9190,CITYWIDE SPOT                 ,04/10/2011,3124348,DE097                    ,655.76,REDACTED PERSONAL DATA,387589,Social Community Care,HOME CARE SERVICES            
PHYSICAL DISABILITIES PURCHASI,9190,CITYWIDE SPOT                 ,04/10/2011,3124349,GC074                    ,697.82,REDACTED PERSONAL DATA,387589,Social Community Care,HOME CARE SERVICES            
CWD INDEPENDENT PLACEMENTS    ,9270,CARELEAVERS ACCOMMODATION     ,04/10/2011,3124225,10418,9324.92,SEASHELL TRUST ROYAL SCHOOL             ,334750,Unclassified Non Trade,SCHOOLS - SPECIAL             
PURCHASING ELDERLY            ,9200,CONTINUING RESIDENTIAL CARE   ,04/10/2011,3124211,J412147 161011           ,24368.00,NORTON LEES HALL/LODGE                  ,433750,Unclassified Non Trade,SCHOOLS - LOCAL AUTHORITY     
PURCHASING LEARNING DISABILITI,9200,CONTINUING RESIDENTIAL CARE   ,04/10/2011,3124212,J382895 240711           ,9123.48,AUTISM PLUS LTD                         ,330606,Unclassified Non Trade,CHARITIES & VOLUNTARY ORGANISA
PURCHASING ELDERLY            ,9210,CONTINUING NURSING CARE       ,04/10/2011,3124213,J410912 161011           ,19256.00,CHATSWORTH GRANGE EMI N HOME            ,362033,Social Community Care,NURSING HOMES                 
PURCHASING LEARNING DISABILITI,9200,CONTINUING RESIDENTIAL CARE   ,04/10/2011,3124214,J410942 161011           ,7203.00,BRAMLEY GARDENS C/O HF TRUST LTD        ,361988,Social Community Care,RESIDENTIAL CARE HOMES        
PURCHASING LEARNING DISABILITI,9200,CONTINUING RESIDENTIAL CARE   ,04/10/2011,3124215,J410949 161011           ,2140.24,LINKAGE COMMUNITY TRUST                 ,362116,Unclassified Non Trade,CHARITIES & VOLUNTARY ORGANISA
PURCHASING ELDERLY            ,9200,CONTINUING RESIDENTIAL CARE   ,04/10/2011,3124216,J410987 161011           ,12875.20,ABBEYFIELD GRANGE                       ,336444,Social Community Care,RESIDENTIAL CARE HOMES        
PURCHASING LEARNING DISABILITI,9200,CONTINUING RESIDENTIAL CARE   ,04/10/2011,3124216,J410987 161011           ,1335.04,ABBEYFIELD GRANGE                       ,336444,Social Community Care,RESIDENTIAL CARE HOMES        
PURCHASING                    ,9200,CONTINUING RESIDENTIAL CARE   ,04/10/2011,3124216,J410987 161011           ,18882.64,ABBEYFIELD GRANGE                       ,336444,Social Community Care,RESIDENTIAL CARE HOMES        
PURCHASING ELDERLY            ,9200,CONTINUING RESIDENTIAL CARE   ,04/10/2011,3124217,J411001 161011           ,40484.85,BALMORAL NURSING HOME                   ,361851,Social Community Care,NURSING HOMES                 
PURCHASING ELDERLY            ,9210,CONTINUING NURSING CARE       ,04/10/2011,3124217,J411001 161011           ,21696.42,BALMORAL NURSING HOME                   ,361851,Social Community Care,NURSING HOMES                 
PURCHASING LEARNING DISABILITI,9200,CONTINUING RESIDENTIAL CARE   ,04/10/2011,3124218,J411058 161011           ,5507.36,SEVERN OAKS                             ,368306,Social Community Care,RESIDENTIAL CARE HOMES        
PURCHASING ELDERLY            ,9200,CONTINUING RESIDENTIAL CARE   ,04/10/2011,3124219,J411102 161011           ,1516.00,BRAILSFORD HOUSE RESIDENTIAL HOME       ,430727,Social Community Care,RESIDENTIAL CARE HOMES        
PURCHASING LEARNING DISABILITI,9200,CONTINUING RESIDENTIAL CARE   ,04/10/2011,3124220,J411144 161011           ,40795.80,CHOICE LIFESTYLES LTD                   ,501697,Social Community Care,DISABILITY & SPECIAL NEEDS - S
PURCHASING ELDERLY            ,9200,SHORT TERM RESIDENTIAL CARE   ,04/10/2011,3124222,J415465 180911           ,2597.00,NORTHFIELD NURSING HOME                 ,361770,Social Community Care,NURSING HOMES                 
PURCHASING ELDERLY            ,9200,SHORT TERM RESIDENTIAL CARE   ,04/10/2011,3124223,J415466 180911           ,2510.85,BALMORAL NURSING HOME                   ,361851,Social Community Care,NURSING HOMES                 
STREET FORCE BALANCE SHEET    ,776,4332101 INVOICES PAID         ,05/10/2011,3124769,30665,7146.46,MARTIN HAGUE                            ,205329,Construction,EXCAVATION & GROUNDWORK CONTRA
STREET FORCE BALANCE SHEET    ,776,4332101 INVOICES PAID         ,05/10/2011,3124771,380322189,611.00,WPD MIDLANDS NETWORK SERVICES LTD       ,460114,Utilities,ELECTRICITY COMPANIES         
STREET FORCE BALANCE SHEET    ,776,4332101 INVOICES PAID         ,05/10/2011,3124773,6330,1996.00,1ST CHOICE ROLLER SHUTTERS LIMITED      ,344645,Building Construction Materials,DOORS & SHUTTERS - SALES & INS
STREET FORCE BALANCE SHEET    ,776,4332101 INVOICES PAID         ,05/10/2011,3124775,2776,2068.00,PUMP AND TANK SERVICES LTD              ,207724,Building Construction Materials,"PUMPS - SALES, SERVICING & REP"
STREET FORCE BALANCE SHEET    ,776,4332101 INVOICES PAID         ,05/10/2011,3124776,2832/677                 ,2538.00,THE POST & COLUMN CO LTD                ,460157,Unclassified Trade,METAL PRODUCTS - FABRICATED   
STREET FORCE BALANCE SHEET    ,776,4332101 INVOICES PAID         ,05/10/2011,3124777,30320,4602.60,MARTIN HAGUE                            ,205329,Construction,EXCAVATION & GROUNDWORK CONTRA
STREET FORCE BALANCE SHEET    ,776,4332101 INVOICES PAID         ,05/10/2011,3124778,30324,4682.15,MARTIN HAGUE                            ,205329,Construction,EXCAVATION & GROUNDWORK CONTRA
STREET FORCE BALANCE SHEET    ,776,4332101 INVOICES PAID         ,05/10/2011,3124779,30326,23258.32,MARTIN HAGUE                            ,205329,Construction,EXCAVATION & GROUNDWORK CONTRA
STREET FORCE BALANCE SHEET    ,776,4332101 INVOICES PAID         ,05/10/2011,3124780,30329,4120.87,MARTIN HAGUE                            ,205329,Construction,EXCAVATION & GROUNDWORK CONTRA
STREET FORCE BALANCE SHEET    ,776,4332101 INVOICES PAID         ,05/10/2011,3124781,30655,4760.95,MARTIN HAGUE                            ,205329,Construction,EXCAVATION & GROUNDWORK CONTRA
STREET FORCE BALANCE SHEET    ,776,4332101 INVOICES PAID         ,05/10/2011,3124782,30661,29978.43,MARTIN HAGUE                            ,205329,Construction,EXCAVATION & GROUNDWORK CONTRA
ASSISTANCE SUPPORT GRANTS     ,1192,DESIGN FEES                   ,05/10/2011,3125596,ERS INVOICE57475         ,1648.56,LAWRENCE TATTERSALL                     ,311727,Unclassified Trade,ESTATE AGENTS                 
ASSISTANCE SUPPORT GRANTS     ,1192,DESIGN FEES                   ,05/10/2011,3125597,ERS INVOICE57476         ,1491.35,LAWRENCE TATTERSALL                     ,311727,Unclassified Trade,ESTATE AGENTS                 
SERVICE MANAGEMENT            ,8470,LEGAL FEES                    ,05/10/2011,3125598,ERS INVOICE57477         ,13000.00,HOWELLS SOLICITORS                      ,314902,Legal Services,SOLICITORS                    
LEEDS - WY SUB REGION HAL     ,1194,OTHER FEES                    ,05/10/2011,3125604,ERS INVOICE57483         ,23221.84,REDACTED PERSONAL DATA,557306,Unclassified Non Trade,OUT OF SCOPE FOR SIC MONITORIN
CARE PROCEEDINGS (LEGAL FEES) ,8470,LEGAL FEES                    ,05/10/2011,3125605,ERS INVOICE57484         ,951.13,DR GIRISH VAIDYA                        ,538291,Medical ,PSYCHIATRISTS                 
CARE PROCEEDINGS (LEGAL FEES) ,8470,LEGAL FEES                    ,05/10/2011,3125606,ERS INVOICE57485         ,587.50,HILTON LEATHER ASSOCIATES LTD           ,391205,Medical ,DOCTORS                       
CARE PROCEEDINGS (LEGAL FEES) ,8470,LEGAL FEES                    ,05/10/2011,3125607,ERS INVOICE57486         ,970.13,THE LUCY FAITHFULL FOUNDATION           ,493307,Unclassified Non Trade,CHARITIES & VOLUNTARY ORGANISA
COMMUNITY ASSEMBLY CENTRAL    ,9120,OTHER AGENCIES                ,05/10/2011,3125614,ERS INVOICE57495         ,2125.00,HILLSBOROUGH & OWLERTON NEIGHBOURHOOD   ,502919,Unclassified Non Trade,COMMUNITY PROJECTS            
DELEGATED BUDGETS             ,9120,OTHER AGENCIES                ,05/10/2011,3125616,ERS INVOICE57497         ,24304.13,AON LIMITED                             ,319158,Financial Services,INSURANCE - OTHER             
LEARNING AND ACHIEVEMENT SERV ,8440,FEE EXPENSES                  ,05/10/2011,3125725,ERS INVOICE57506         ,2400.00,PENNINE EDUCATIONAL CONSULTANCY         ,509853,Consultancy,BUSINESS & MANAGEMENT CONSULTA
TREES & WOODLAND EDUCATION    ,8060,MATERIALS AND SUPPLIES GENERAL,05/10/2011,3125730,ERS INVOICE57511         ,610.20,BARCHAM TREES PLC                       ,203253,Horticultural,NURSERIES - WHOLESALE         
YOUNG APPRENTICESHIPS         ,9120,OTHER AGENCIES                ,05/10/2011,3125732,ERS INVOICE57514         ,871.27,DONCASTER ROTH & DIST (MOTOR TRADES)GTA ,204434,Human Resources,TRAINING CENTRES              
SNIPS                         ,8180,GRANTS                        ,05/10/2011,3103337,C0222731056              ,1136.00,REED SOCIAL CARE                        ,329620,Human Resources,EMPLOYMENT & RECRUITMENT AGENC
SNIPS                         ,8180,GRANTS                        ,05/10/2011,3106150,C0222754848              ,976.00,REED SOCIAL CARE                        ,329620,Human Resources,EMPLOYMENT & RECRUITMENT AGENC
SNIPS                         ,8180,GRANTS                        ,05/10/2011,3113874,C0222801370              ,1008.00,REED SOCIAL CARE                        ,329620,Human Resources,EMPLOYMENT & RECRUITMENT AGENC
PURCHASING ELDERLY            ,9160,PARTNERSHIP CONTRACTS         ,05/10/2011,3116074,9,3263.40,TOTAL WEST LTD                          ,315080,Social Community Care,RESIDENTIAL CARE HOMES        
CONTRACT                      ,8050,FURNITURE PURCHASES           ,05/10/2011,3119400,14980,2394.68,MAKEPORT 2001 LTD                       ,350362,Furniture,FURNISHERS                    
CREATIVE SERVICES             ,9120,OTHER AGENCIES                ,05/10/2011,3119460,769526C                  ,5430.50,INTOPRINT (UK) LIMITED                  ,319560,Facilities Management,PRINTERS                      
E-BUSINESS PROGRAMME          ,8460,CONSULTANTS FEES              ,05/10/2011,3119742,3187,875.00,INSIGHT MANAGEMENT & SYSTEMS            ,424598,Consultancy,COMPUTER SYSTEMS & SOFTWARE (D
CREATIVE SERVICES             ,9120,OTHER AGENCIES                ,05/10/2011,3119776,59970,1304.10,INTOPRINT (UK) LIMITED                  ,319560,Facilities Management,PRINTERS                      
BSF PH1 - INFRASTRUCTURE      ,1165,NC&A OTHER                    ,05/10/2011,3119838,1674,1630.00,IDT LTD                                 ,528612,ICT,COMPUTER SYSTEMS & SOFTWARE (S
NORBURY                       ,7040,OTHER VEHICLE RUNNING COSTS   ,05/10/2011,3120380,2100066024,1092.64,SHEFFIELD HEALTH & SOCIAL CARE NHS      ,353994,Unclassified Non Trade,HOSPITALS                     
NORBURY                       ,7040,OTHER VEHICLE RUNNING COSTS   ,05/10/2011,3120449,2100066027,821.09,SHEFFIELD HEALTH & SOCIAL CARE NHS      ,353994,Unclassified Non Trade,HOSPITALS                     
 KEY STAGE 4 INCLUSION CENTRE ,5610,AGENCY STAFF - INVOICE        ,05/10/2011,3120517,8109,654.00,REACH EDUCATION LTD                     ,463592,Human Resources,EMPLOYMENT & RECRUITMENT AGENC
HIGHWAYS PFI                  ,8460,CONSULTANTS FEES              ,05/10/2011,3121025,IN00223182               ,36946.00,MOTT MACDONALD UK                       ,206976,Consultancy,ENGINEERS - CONSULTING        
HIGHWAYS PFI                  ,8460,CONSULTANTS FEES              ,05/10/2011,3121026,IN00221663               ,19135.00,MOTT MACDONALD UK                       ,206976,Consultancy,ENGINEERS - CONSULTING        
BANNERDALE CENTRE             ,8130,CATERING SUPPLIES             ,05/10/2011,3121038,22064,531.65,MELLORS CATERING SERVICES LTD           ,386434,Catering,CATERERS                      
LEARNING DIS DEVELOPMENT FUND ,9160,PARTNERSHIP CONTRACTS         ,05/10/2011,3122183,43384,7000.00,SPEAKING UP FOR ADVOCACY                ,331821,Social Community Care,DISABILITY & SPECIAL NEEDS - S
 KEY STAGE 4 INCLUSION CENTRE ,5610,AGENCY STAFF - INVOICE        ,05/10/2011,3122253,8130,545.00,REACH EDUCATION LTD                     ,463592,Human Resources,EMPLOYMENT & RECRUITMENT AGENC
KEY STAGE 3 INCLUSION CENTRE  ,5610,AGENCY STAFF - INVOICE        ,05/10/2011,3122255,3448806,606.90,CAPITA EDUCATION RESOURCING             ,203721,Human Resources,EMPLOYMENT & RECRUITMENT AGENC
KEY STAGE 3 INCLUSION CENTRE  ,5610,AGENCY STAFF - INVOICE        ,05/10/2011,3122256,3448807,589.56,CAPITA EDUCATION RESOURCING             ,203721,Human Resources,EMPLOYMENT & RECRUITMENT AGENC
KEY STAGE 3 INCLUSION CENTRE  ,5610,AGENCY STAFF - INVOICE        ,05/10/2011,3122263,3449697,563.55,CAPITA EDUCATION RESOURCING             ,203721,Human Resources,EMPLOYMENT & RECRUITMENT AGENC
KEY STAGE 3 INCLUSION CENTRE  ,5610,AGENCY STAFF - INVOICE        ,05/10/2011,3122267,3449696,628.57,CAPITA EDUCATION RESOURCING             ,203721,Human Resources,EMPLOYMENT & RECRUITMENT AGENC
KEY STAGE 3 INCLUSION CENTRE  ,5610,AGENCY STAFF - INVOICE        ,05/10/2011,3122270,3449695,628.57,CAPITA EDUCATION RESOURCING             ,203721,Human Resources,EMPLOYMENT & RECRUITMENT AGENC
KEY STAGE 3 INCLUSION CENTRE  ,5610,AGENCY STAFF - INVOICE        ,05/10/2011,3122273,3449694,563.55,CAPITA EDUCATION RESOURCING             ,203721,Human Resources,EMPLOYMENT & RECRUITMENT AGENC
KEY STAGE 3 INCLUSION CENTRE  ,5610,AGENCY STAFF - INVOICE        ,05/10/2011,3122276,3448809,589.56,CAPITA EDUCATION RESOURCING             ,203721,Human Resources,EMPLOYMENT & RECRUITMENT AGENC
 KEY STAGE 4 INCLUSION CENTRE ,5610,AGENCY STAFF - INVOICE        ,05/10/2011,3122279,3449169,1142.50,CAPITA EDUCATION RESOURCING             ,203721,Human Resources,EMPLOYMENT & RECRUITMENT AGENC
KEY STAGE 3 INCLUSION CENTRE  ,5610,AGENCY STAFF - INVOICE        ,05/10/2011,3122283,3449692,606.90,CAPITA EDUCATION RESOURCING             ,203721,Human Resources,EMPLOYMENT & RECRUITMENT AGENC
CREATIVE SERVICES             ,9120,OTHER AGENCIES                ,05/10/2011,3122288,60046,1310.00,INTOPRINT (UK) LIMITED                  ,319560,Facilities Management,PRINTERS                      
RED TAPE CENTRAL              ,8620,COMPUTER & HARDWARE PURCHASES ,05/10/2011,3122339,SI20372                  ,639.00,CBC COMPUTER SYSTEMS LTD                ,304631,ICT,COMPUTER SYSTEMS & SOFTWARE (S
TRANSFORMATION TEAM           ,8370,PRINTING                      ,05/10/2011,3122384,K3/I449805               ,579.76,XMA LIMITED                             ,480777,ICT,COMPUTER CONSUMABLES & STATION
HOMELESS INTERIM ACCOMM       ,7060,EXTERNAL VEHICLE HIRE         ,05/10/2011,3122409,541905,989.65,MERCURY CARS                            ,326445,Transport,TAXIS & PRIVATE HIRE          
CREMATORIA                    ,6020,REPAIRS AND MTCE - PROGRAMMED ,05/10/2011,3122418,181,698.10,FURNACE CONSTRUCTION CREMATORS LIMITED  ,204974,Cemetery & Crematorium ,FURNACES                      
CREMATORIA                    ,6020,REPAIRS AND MTCE - PROGRAMMED ,05/10/2011,3122419,364,1811.92,FURNACE CONSTRUCTION CREMATORS LIMITED  ,204974,Cemetery & Crematorium ,FURNACES                      
CREMATORIA                    ,8010,EQUIPMENT PURCHASE AND REPAIR ,05/10/2011,3122425,11128,934.40,ZAGOTA CREATIONS LIMITED                ,393736,Facilities Management,INTERIOR DESIGNERS & FURNISHER
BRADFIELD                     ,1161,NC&A MAIN CONTRACT            ,05/10/2011,3122742,1,292613.00,VINCI EDUCATION (BRADFIELD) LTD         ,558531,Construction,CONSTRUCTION CONTRACTORS - GEN
SEP (ERDF/SP)                 ,9120,OTHER AGENCIES                ,05/10/2011,3122921,43428,8727.00,CFFE LIMITED                            ,510667,Unclassified Non Trade,EMPLOYMENT SERVICE            
SEP (ERDF/SP)                 ,9120,OTHER AGENCIES                ,05/10/2011,3122934,43426,3639.00,CFFE LIMITED                            ,510667,Unclassified Non Trade,EMPLOYMENT SERVICE            
SEP (ERDF/SP)                 ,9120,OTHER AGENCIES                ,05/10/2011,3122971,43427,4196.00,CFFE LIMITED                            ,510667,Unclassified Non Trade,EMPLOYMENT SERVICE            
DISADVANTAGED AREA FUNDING    ,9120,OTHER AGENCIES                ,05/10/2011,3122974,120,4500.00,SCOOP AID                               ,303966,Unclassified Non Trade,CHARITIES & VOLUNTARY ORGANISA
BRADFIELD DUNGWORTH PRIMARY   ,1161,NC&A MAIN CONTRACT            ,05/10/2011,3123081,09821/9                  ,31229.09,KIER SHEFFIELD LLP                      ,352687,Construction,PROPERTY MAINTENANCE & REPAIRS
CORPORATE DEBT RECOVERY       ,8440,FEE EXPENSES                  ,05/10/2011,3123110,C92915                   ,814.88,ROSSENDALES COLLECT LTD                 ,477656,Financial Services,BAILIFFS                      
RED TAPE CENTRAL              ,8490,EXAM FEES                     ,05/10/2011,3123132,INV000198356             ,800.00,NCFE NATIONAL AWARDING BODY             ,348112,Education,EXAMINATION BOARDS            
SKILLS STRATEGY               ,9120,OTHER AGENCIES                ,05/10/2011,3123174,1674,6800.00,MANOR & CASTLE DEVELOPMENT TRUST        ,314473,Unclassified Non Trade,CHARITIES & VOLUNTARY ORGANISA
SKILLS STRATEGY               ,9120,OTHER AGENCIES                ,05/10/2011,3123175,1673,1571.43,MANOR & CASTLE DEVELOPMENT TRUST        ,314473,Unclassified Non Trade,CHARITIES & VOLUNTARY ORGANISA
TRANSFORMATION TEAM           ,8460,CONSULTANTS FEES              ,05/10/2011,3123204,5215748,950.00,MICHAEL PAGE UK LIMITED                 ,347153,Human Resources,EMPLOYMENT & RECRUITMENT AGENC
LAND                          ,6210,RENTS                         ,05/10/2011,3123399,2734,3975.00,JOHN LEWIS PARTNERSHIP PLC              ,206066,Unclassified Trade,DEPARTMENT STORES             
SCC BALANCE SHEET             ,1540,DEMOLITION CONTROL ACCOUNT    ,05/10/2011,3123404,61160271,546.54,YORKSHIRE WATER PLC                     ,295854,Utilities,WATER COMPANIES               
NEETS 16+                     ,9120,OTHER AGENCIES                ,05/10/2011,3123454,405,1575.00,MEADOWHALL TRAINING LTD                 ,461797,Human Resources,TRAINING SERVICES             
HILLSBOROUGH BARRACKS UNIT 1  ,6240,PREMISES INSURANCE            ,05/10/2011,3123468,7148037,22347.33,WM MORRISON SUPERMARKETS PLC            ,209577,Catering,SUPERMARKETS                  
HILLSBOROUGH BARRACKS UNIT 7  ,6240,PREMISES INSURANCE            ,05/10/2011,3123470,7148034,6412.07,WM MORRISON SUPERMARKETS PLC            ,209577,Catering,SUPERMARKETS                  
TRANSFORMATION TEAM           ,8460,CONSULTANTS FEES              ,05/10/2011,3123475,5218245,950.00,MICHAEL PAGE UK LIMITED                 ,347153,Human Resources,EMPLOYMENT & RECRUITMENT AGENC
SHEAF TRAINING                ,8440,FEE EXPENSES                  ,05/10/2011,3123579,RP\H\11-12/PR21          ,850.00,ASSOCIATION OF ADULT EDUCATION AND TRAIN,335377,Education,EDUCATIONAL SERVICES          
PREVENTATIVE MAINTENANCE      ,6020,REPAIRS AND MTCE - PROGRAMMED ,05/10/2011,3123773,6444,628.50,H2O SERVICING LIMITED                   ,374161,Construction,"SWIMMING POOL CONTRACTORS, REP"
COMPLEX NEEDS                 ,5010,GENERAL BASIC PAY             ,05/10/2011,3123805,2100066128,1442.01,SHEFFIELD CARE TRUST                    ,455262,Unclassified Non Trade,CHARITIES & VOLUNTARY ORGANISA
MANAGEMENT TEAM LD            ,5010,GENERAL BASIC PAY             ,05/10/2011,3123806,2100066123,7105.15,SHEFFIELD CARE TRUST                    ,455262,Unclassified Non Trade,CHARITIES & VOLUNTARY ORGANISA
POSITIVE ACTIVITIES FOR 8-13'S,9120,OTHER AGENCIES                ,05/10/2011,3124107,48,35889.50,WOODTHORPE DEVELOPMENT TRUST            ,419565,Unclassified Non Trade,CHARITIES & VOLUNTARY ORGANISA
SHEFFIELD HOMES ACCOMODATION  ,6210,RENTS                         ,05/10/2011,3124120,98025,2000.00,SOLPRO MANUFACTURING LTD                ,512326,Unclassified Trade,ELECTRONIC COMPONENT MNFRS & D
PUBLIC REALM OH AND SUPPORT   ,7020,VEHICLE FUEL COSTS            ,05/10/2011,3124179,6747438,993.15,CARLTON FUELS LIMITED                   ,490002,Utilities,OIL FUEL DISTRIBUTORS         
HR ADMINISTRATION             ,8100,RECHARGEABLE PURCHASES        ,05/10/2011,3124185,7724142,1624.90,SHEFFIELD NEWSPAPERS LTD                ,208391,Education,NEWSPAPER & MAGAZINE PUBLISHER
PURCHASING & PAYMENTS TEAM    ,5610,AGENCY STAFF                  ,05/10/2011,3124446,C0222857160              ,3808.23,REED SOCIAL CARE                        ,329620,Human Resources,EMPLOYMENT & RECRUITMENT AGENC
SOCIAL SERVICES LOCATION PLACE,9050,OTHER LOCAL AUTHORITIES       ,05/10/2011,3124489,60944884,3551.00,HALTON BOROUGH COUNCIL                  ,326177,Unclassified Non Trade,LOCAL GOVERNMENT              
WORK CHOICE                   ,9120,OTHER AGENCIES                ,05/10/2011,3124589,2100066084,875.01,SHEFFIELD CARE TRUST (SP)               ,366826,Unclassified Non Trade,CHARITIES & VOLUNTARY ORGANISA
FURNISHED ACCOMMODATION       ,8050,FURNITURE PURCHASES           ,05/10/2011,3124601,LPD/342374               ,929.25,LPD FURNITURE                           ,531441,Furniture,FURNITURE - RETAIL            
YOUR ESTATE SERVICES TEAM     ,8010,EQUIPMENT PURCHASE AND REPAIR ,05/10/2011,3124610,414,543.44,STORM ENIRONMENTAL LTD                  ,554884,Environmental Services,RECYCLING SERVICES            
SHEAF TRAINING                ,8440,FEE EXPENSES                  ,05/10/2011,3124662,1133723,836.00,PASUDA (HIRE) LTD                       ,508316,Construction,BUILDINGS - SECTIONAL & PORTAB
FURNISHED ACCOMMODATION       ,6020,VOID PAINTING INITIATIVE      ,05/10/2011,3124721,L06940                   ,584.00,BELL GROUP (LEEDS)                      ,441427,Construction,PAINTERS & DECORATORS         
PD PARTNERSHIP CONTRACTS      ,9160,PARTNERSHIP CONTRACTS         ,05/10/2011,3124756,6663,7776.20,SHEFFIELD ROYAL SOCIETY FOR THE BLIND   ,306116,Unclassified Non Trade,CHARITIES & VOLUNTARY ORGANISA
PD PARTNERSHIP CONTRACTS      ,9160,PARTNERSHIP CONTRACTS         ,05/10/2011,3124757,6664,3757.83,SHEFFIELD ROYAL SOCIETY FOR THE BLIND   ,306116,Unclassified Non Trade,CHARITIES & VOLUNTARY ORGANISA
SUPPORT FOR TARGETED AND VULN ,8440,FEE EXPENSES                  ,05/10/2011,3124759,38,3180.00,MRS NIKKI SHAW                          ,542843,Education,PUBLISHERS' SERVICES          
PURCHASING & PAYMENTS TEAM    ,7020,VEHICLE FUEL COSTS            ,05/10/2011,3125347,1017082569,4748.82,ARVAL PHH LTD                           ,444333,Vehicles Not Buses,CAR & TRUCK LEASING & CONTRACT
SNIPS                         ,8180,GRANTS                        ,05/10/2011,3125368,860,2667.57,REACHOUT CHILDCARE SERVICES LIMITED     ,433768,Social Community Care,AFTER SCHOOL CARE             
DELEGATED BUDGETS             ,8470,LEGAL FEES                    ,05/10/2011,3125372,130647,750.00,REDACTED PERSONAL DATA,558231,Unclassified Non Trade,OUT OF SCOPE FOR SIC MONITORIN
DAY SERVICES RENT             ,6280,HIRE OF PREMISES              ,05/10/2011,3125379,1351,1040.00,WOODVIEW CARE HOME                      ,456477,Social Community Care,NURSING HOMES                 
DAY SERVICES RENT             ,6280,HIRE OF PREMISES              ,05/10/2011,3125382,1336,1300.00,WOODVIEW CARE HOME                      ,456477,Social Community Care,NURSING HOMES                 
LAS TRADED SERVICES           ,8440,FEE EXPENSES                  ,05/10/2011,3125414,683,600.00,NAVIGATE RESOURCING LTD.                ,444872,Human Resources,EMPLOYMENT & RECRUITMENT AGENC
PAYMENT HOLDING ACCOUNT       ,8350,MISCELLANEOUS EXPENSES        ,05/10/2011,3125421,11040001,758125.00,KIER SHEFFIELD LLP                      ,352687,Construction,PROPERTY MAINTENANCE & REPAIRS
PAYMENT HOLDING ACCOUNT       ,8350,MISCELLANEOUS EXPENSES        ,05/10/2011,3125425,11040002,758125.00,KIER SHEFFIELD LLP                      ,352687,Construction,PROPERTY MAINTENANCE & REPAIRS
SHARROW ALMO WORKS            ,1165,NC&A OTHER                    ,05/10/2011,3125655,11030090,13425.09,KIER SHEFFIELD LLP                      ,352687,Construction,PROPERTY MAINTENANCE & REPAIRS
SHARROW ALMO WORKS            ,1165,NC&A OTHER                    ,05/10/2011,3125656,11030089,18405.90,KIER SHEFFIELD LLP                      ,352687,Construction,PROPERTY MAINTENANCE & REPAIRS
CORPORATE DEBT RECOVERY       ,8440,FEE EXPENSES                  ,05/10/2011,3125667,C93757                   ,670.12,ROSSENDALES COLLECT LTD                 ,477656,Financial Services,BAILIFFS                      
CAPITAL GENERAL               ,9650,OTHER SERVICE RECHARGES       ,05/10/2011,3125684,889155,3013.33,NEIGHBOURHOODS DIRECTORATE (HOMES)      ,402953,Unclassified Non Trade,LOCAL GOVERNMENT              
PARKS OPERATIONS SOUTH        ,6150,ELECTRICITY                   ,05/10/2011,3125441,27140784,580.57,NPOWER NORTHERN LTD                     ,207191,Utilities,ELECTRICITY COMPANIES         
PARKS OPERATIONS WEST         ,6150,ELECTRICITY                   ,05/10/2011,3125464,27140658,502.90,NPOWER NORTHERN LTD                     ,207191,Utilities,ELECTRICITY COMPANIES         
DISTRICT HEATING GENERAL      ,6140,SOLID FUEL                    ,05/10/2011,3125465,INV-0648                 ,1380.74,SILVAPOWER LTD                          ,406670,Building Construction Materials,SAWMILLS & WOOD SHAVINGS      
DISTRICT HEATING GENERAL      ,6140,SOLID FUEL                    ,05/10/2011,3125467,INV-0646                 ,3733.80,SILVAPOWER LTD                          ,406670,Building Construction Materials,SAWMILLS & WOOD SHAVINGS      
GRAVES PARK - ANIMAL FARM INC ,6150,ELECTRICITY                   ,05/10/2011,3125481,27140153,603.49,NPOWER NORTHERN LTD                     ,207191,Utilities,ELECTRICITY COMPANIES         
BARKERS POOL                  ,6150,ELECTRICITY                   ,05/10/2011,3125490,27140169,516.96,NPOWER NORTHERN LTD                     ,207191,Utilities,ELECTRICITY COMPANIES         
BARKERS POOL                  ,6150,ELECTRICITY                   ,05/10/2011,3125493,27140169,666.70,NPOWER NORTHERN LTD                     ,207191,Utilities,ELECTRICITY COMPANIES         
STANIFORTH ROAD WORKSHOPS     ,7010,ROUTINE VEHICLE REPAIR & MTCE ,05/10/2011,3125540,35556,700.00,DALE HEATING SERVICES (UK) LIMITED      ,486561,Construction,"BOILERS - SERVICING, REPLACEME"
MEDICO LEGAL CENTRE           ,6150,ELECTRICITY                   ,05/10/2011,3125550,27140759,2471.51,NPOWER NORTHERN LTD                     ,207191,Utilities,ELECTRICITY COMPANIES         
HAZELHURST                    ,6160,GAS                           ,05/10/2011,3125552,27140347,1474.69,NPOWER NORTHERN LTD                     ,207191,Utilities,ELECTRICITY COMPANIES         
HAZELHURST                    ,6160,GAS                           ,05/10/2011,3125559,27140347,2436.24,NPOWER NORTHERN LTD                     ,207191,Utilities,ELECTRICITY COMPANIES         
HURLFIELD                     ,6150,ELECTRICITY                   ,05/10/2011,3125560,27140699,1609.23,NPOWER NORTHERN LTD                     ,207191,Utilities,ELECTRICITY COMPANIES         
MEDICO LEGAL CENTRE           ,6150,ELECTRICITY                   ,05/10/2011,3125561,27140759,3154.67,NPOWER NORTHERN LTD                     ,207191,Utilities,ELECTRICITY COMPANIES         
HURLFIELD                     ,6150,ELECTRICITY                   ,05/10/2011,3125562,27140699,899.11,NPOWER NORTHERN LTD                     ,207191,Utilities,ELECTRICITY COMPANIES         
PHYSICAL DISABILITIES PURCHASI,9190,DIRECT PAYMENTS               ,05/10/2011,3124842,J415489                  ,1718.01,REDACTED PERSONAL DATA,462876,Social Community Care,CAREFIRST DIRECT PAYMENTS     
PURCHASING LEARNING DISABILITI,9190,DIRECT PAYMENTS               ,05/10/2011,3124843,J415489                  ,671.40,REDACTED PERSONAL DATA,516110,Social Community Care,CAREFIRST DIRECT PAYMENTS     
PURCHASING LEARNING DISABILITI,9190,DIRECT PAYMENTS               ,05/10/2011,3124845,J415489                  ,4327.65,REDACTED PERSONAL DATA,530764,Social Community Care,CAREFIRST DIRECT PAYMENTS     
PURCHASING ELDERLY            ,9190,DIRECT PAYMENTS               ,05/10/2011,3124847,J415489                  ,2170.82,REDACTED PERSONAL DATA,546801,Social Community Care,CAREFIRST DIRECT PAYMENTS     
PURCHASING LEARNING DISABILITI,9190,DIRECT PAYMENTS               ,05/10/2011,3124848,J415489                  ,1100.00,REDACTED PERSONAL DATA,550696,Social Community Care,CAREFIRST DIRECT PAYMENTS     
PHYSICAL DISABILITIES PURCHASI,9190,DIRECT PAYMENTS               ,05/10/2011,3124849,J415489                  ,1326.55,REDACTED PERSONAL DATA,556288,Social Community Care,CAREFIRST DIRECT PAYMENTS     
PURCHASING LEARNING DISABILITI,9190,DIRECT PAYMENTS               ,05/10/2011,3124850,J415489                  ,8572.85,REDACTED PERSONAL DATA,556454,Social Community Care,CAREFIRST DIRECT PAYMENTS     
PHYSICAL DISABILITIES PURCHASI,9190,DIRECT PAYMENTS               ,05/10/2011,3124850,J415489                  ,2027.69,REDACTED PERSONAL DATA,556454,Social Community Care,CAREFIRST DIRECT PAYMENTS     
PURCHASING LEARNING DISABILITI,9190,DIRECT PAYMENTS               ,05/10/2011,3124853,J415489                  ,4205.45,REDACTED PERSONAL DATA,557461,Social Community Care,CAREFIRST DIRECT PAYMENTS     
PURCHASING ELDERLY            ,9190,DIRECT PAYMENTS               ,05/10/2011,3124855,J415489                  ,1221.26,REDACTED PERSONAL DATA,557817,Social Community Care,CAREFIRST DIRECT PAYMENTS     
PURCHASING ELDERLY            ,9190,DIRECT PAYMENTS               ,05/10/2011,3124856,J415489                  ,1120.20,REDACTED PERSONAL DATA,558089,Social Community Care,CAREFIRST DIRECT PAYMENTS     
PURCHASING                    ,9190,DIRECT PAYMENTS               ,05/10/2011,3124857,J415489                  ,3444.45,REDACTED PERSONAL DATA,558148,Social Community Care,CAREFIRST DIRECT PAYMENTS     
PURCHASING ELDERLY            ,9190,DIRECT PAYMENTS               ,05/10/2011,3124858,J415489                  ,10704.00,REDACTED PERSONAL DATA,558154,Social Community Care,CAREFIRST DIRECT PAYMENTS     
PURCHASING LEARNING DISABILITI,9190,DIRECT PAYMENTS               ,05/10/2011,3124859,J415489                  ,2721.00,REDACTED PERSONAL DATA,558190,Social Community Care,CAREFIRST DIRECT PAYMENTS     
PHYSICAL DISABILITIES PURCHASI,9190,DIRECT PAYMENTS               ,05/10/2011,3124861,J415489                  ,3425.25,REDACTED PERSONAL DATA,558306,Social Community Care,CAREFIRST DIRECT PAYMENTS     
PURCHASING ELDERLY            ,9190,DIRECT PAYMENTS               ,05/10/2011,3124862,J415489                  ,1688.90,REDACTED PERSONAL DATA,558618,Social Community Care,CAREFIRST DIRECT PAYMENTS     
PURCHASING LEARNING DISABILITI,9250,INDEPENDENT DAY CARE          ,05/10/2011,3124864,A02338                   ,6745.76,AUTISM PLUS LTD                         ,330606,Unclassified Non Trade,CHARITIES & VOLUNTARY ORGANISA
PURCHASING LEARNING DISABILITI,9250,INDEPENDENT DAY CARE          ,05/10/2011,3124865,A02374                   ,2013.92,AUTISM PLUS LTD                         ,330606,Unclassified Non Trade,CHARITIES & VOLUNTARY ORGANISA
PURCHASING LEARNING DISABILITI,9250,INDEPENDENT DAY CARE          ,05/10/2011,3124866,A02375                   ,2013.92,AUTISM PLUS LTD                         ,330606,Unclassified Non Trade,CHARITIES & VOLUNTARY ORGANISA
PURCHASING LEARNING DISABILITI,9250,INDEPENDENT DAY CARE          ,05/10/2011,3124867,A02376                   ,2013.92,AUTISM PLUS LTD                         ,330606,Unclassified Non Trade,CHARITIES & VOLUNTARY ORGANISA
PURCHASING LEARNING DISABILITI,9250,INDEPENDENT DAY CARE          ,05/10/2011,3124868,A02377                   ,1208.32,AUTISM PLUS LTD                         ,330606,Unclassified Non Trade,CHARITIES & VOLUNTARY ORGANISA
PURCHASING LEARNING DISABILITI,9250,INDEPENDENT DAY CARE          ,05/10/2011,3124869,A02379                   ,2013.92,AUTISM PLUS LTD                         ,330606,Unclassified Non Trade,CHARITIES & VOLUNTARY ORGANISA
PURCHASING LEARNING DISABILITI,9250,INDEPENDENT DAY CARE          ,05/10/2011,3124870,A02380                   ,1749.72,AUTISM PLUS LTD                         ,330606,Unclassified Non Trade,CHARITIES & VOLUNTARY ORGANISA
PURCHASING LEARNING DISABILITI,9250,INDEPENDENT DAY CARE          ,05/10/2011,3124871,A02381                   ,2013.92,AUTISM PLUS LTD                         ,330606,Unclassified Non Trade,CHARITIES & VOLUNTARY ORGANISA
PURCHASING LEARNING DISABILITI,9250,INDEPENDENT DAY CARE          ,05/10/2011,3124872,A02383                   ,2013.92,AUTISM PLUS LTD                         ,330606,Unclassified Non Trade,CHARITIES & VOLUNTARY ORGANISA
PURCHASING LEARNING DISABILITI,9250,INDEPENDENT DAY CARE          ,05/10/2011,3124873,A02391                   ,922.48,AUTISM PLUS LTD                         ,330606,Unclassified Non Trade,CHARITIES & VOLUNTARY ORGANISA
PURCHASING LEARNING DISABILITI,9250,INDEPENDENT DAY CARE          ,05/10/2011,3124874,A02401                   ,709.60,AUTISM PLUS LTD                         ,330606,Unclassified Non Trade,CHARITIES & VOLUNTARY ORGANISA
PURCHASING LEARNING DISABILITI,9250,INDEPENDENT DAY CARE          ,05/10/2011,3124875,A02407                   ,620.90,AUTISM PLUS LTD                         ,330606,Unclassified Non Trade,CHARITIES & VOLUNTARY ORGANISA
PURCHASING LEARNING DISABILITI,9250,INDEPENDENT DAY CARE          ,05/10/2011,3124876,A02409                   ,638.64,AUTISM PLUS LTD                         ,330606,Unclassified Non Trade,CHARITIES & VOLUNTARY ORGANISA
PURCHASING LEARNING DISABILITI,9250,INDEPENDENT DAY CARE          ,05/10/2011,3124877,A02337                   ,6745.76,AUTISM PLUS LTD                         ,330606,Unclassified Non Trade,CHARITIES & VOLUNTARY ORGANISA
PURCHASING LEARNING DISABILITI,9190,CITYWIDE SPOT                 ,05/10/2011,3124878,3996,1291.92,NEW ERA HOUSING AUTHORITY               ,505956,Unclassified Non Trade,"HOUSING ASSOCIATIONS, SOCIETIE"
PURCHASING LEARNING DISABILITI,9190,CITYWIDE SPOT                 ,05/10/2011,3124880,A02388                   ,709.60,AUTISM PLUS LTD                         ,330606,Unclassified Non Trade,CHARITIES & VOLUNTARY ORGANISA
PURCHASING LEARNING DISABILITI,9190,CITYWIDE SPOT                 ,05/10/2011,3124882,A02389                   ,1064.40,AUTISM PLUS LTD                         ,330606,Unclassified Non Trade,CHARITIES & VOLUNTARY ORGANISA
PURCHASING LEARNING DISABILITI,9190,CITYWIDE SPOT                 ,05/10/2011,3124883,A02395                   ,709.60,AUTISM PLUS LTD                         ,330606,Unclassified Non Trade,CHARITIES & VOLUNTARY ORGANISA
PURCHASING                    ,9190,CITYWIDE SPOT                 ,05/10/2011,3124884,A02396                   ,851.52,AUTISM PLUS LTD                         ,330606,Unclassified Non Trade,CHARITIES & VOLUNTARY ORGANISA
PURCHASING LEARNING DISABILITI,9190,CITYWIDE SPOT                 ,05/10/2011,3124885,A02399                   ,1844.96,AUTISM PLUS LTD                         ,330606,Unclassified Non Trade,CHARITIES & VOLUNTARY ORGANISA
PURCHASING LEARNING DISABILITI,9190,CITYWIDE SPOT                 ,05/10/2011,3124886,A02404                   ,4626.72,AUTISM PLUS LTD                         ,330606,Unclassified Non Trade,CHARITIES & VOLUNTARY ORGANISA
PURCHASING                    ,9190,CITYWIDE SPOT                 ,05/10/2011,3124888,A02408                   ,1463.55,AUTISM PLUS LTD                         ,330606,Unclassified Non Trade,CHARITIES & VOLUNTARY ORGANISA
PURCHASING LEARNING DISABILITI,9190,CITYWIDE SPOT                 ,05/10/2011,3124889,22373,2334.72,CITIZENSHIP FIRST                       ,329379,Unclassified Non Trade,CHARITIES & VOLUNTARY ORGANISA
PURCHASING                    ,9190,CITYWIDE SPOT                 ,05/10/2011,3124890,A02410                   ,3973.76,AUTISM PLUS LTD                         ,330606,Unclassified Non Trade,CHARITIES & VOLUNTARY ORGANISA
PURCHASING LEARNING DISABILITI,9190,CITYWIDE SPOT                 ,05/10/2011,3124891,22374,1132.32,CITIZENSHIP FIRST                       ,329379,Unclassified Non Trade,CHARITIES & VOLUNTARY ORGANISA
PURCHASING LEARNING DISABILITI,9190,CITYWIDE SPOT                 ,05/10/2011,3124892,22376,718.56,CITIZENSHIP FIRST                       ,329379,Unclassified Non Trade,CHARITIES & VOLUNTARY ORGANISA
PURCHASING LEARNING DISABILITI,9190,CITYWIDE SPOT                 ,05/10/2011,3124893,22378,810.36,CITIZENSHIP FIRST                       ,329379,Unclassified Non Trade,CHARITIES & VOLUNTARY ORGANISA
PURCHASING LEARNING DISABILITI,9190,CITYWIDE SPOT                 ,05/10/2011,3124894,22379,898.20,CITIZENSHIP FIRST                       ,329379,Unclassified Non Trade,CHARITIES & VOLUNTARY ORGANISA
PURCHASING                    ,9190,CITYWIDE SPOT                 ,05/10/2011,3124895,22382,1908.84,CITIZENSHIP FIRST                       ,329379,Unclassified Non Trade,CHARITIES & VOLUNTARY ORGANISA
PURCHASING LEARNING DISABILITI,9190,CITYWIDE SPOT                 ,05/10/2011,3124899,22389,881.32,CITIZENSHIP FIRST                       ,329379,Unclassified Non Trade,CHARITIES & VOLUNTARY ORGANISA
PURCHASING LEARNING DISABILITI,9190,CITYWIDE SPOT                 ,05/10/2011,3124905,22390,1887.20,CITIZENSHIP FIRST                       ,329379,Unclassified Non Trade,CHARITIES & VOLUNTARY ORGANISA
PHYSICAL DISABILITIES PURCHASI,9190,CITYWIDE SPOT                 ,05/10/2011,3124906,22391,898.20,CITIZENSHIP FIRST                       ,329379,Unclassified Non Trade,CHARITIES & VOLUNTARY ORGANISA
PURCHASING LEARNING DISABILITI,9190,CITYWIDE SPOT                 ,05/10/2011,3124907,22394,2658.36,CITIZENSHIP FIRST                       ,329379,Unclassified Non Trade,CHARITIES & VOLUNTARY ORGANISA
PURCHASING LEARNING DISABILITI,9190,CITYWIDE SPOT                 ,05/10/2011,3124908,22396,4009.04,CITIZENSHIP FIRST                       ,329379,Unclassified Non Trade,CHARITIES & VOLUNTARY ORGANISA
PURCHASING LEARNING DISABILITI,9190,CITYWIDE SPOT                 ,05/10/2011,3124909,22397,902.08,CITIZENSHIP FIRST                       ,329379,Unclassified Non Trade,CHARITIES & VOLUNTARY ORGANISA
PURCHASING ELDERLY            ,9190,CITYWIDE SPOT                 ,05/10/2011,3124910,22398,956.72,CITIZENSHIP FIRST                       ,329379,Unclassified Non Trade,CHARITIES & VOLUNTARY ORGANISA
PURCHASING LEARNING DISABILITI,9190,CITYWIDE SPOT                 ,05/10/2011,3124911,22401,568.88,CITIZENSHIP FIRST                       ,329379,Unclassified Non Trade,CHARITIES & VOLUNTARY ORGANISA
PURCHASING LEARNING DISABILITI,9190,CITYWIDE SPOT                 ,05/10/2011,3124912,22402,1132.32,CITIZENSHIP FIRST                       ,329379,Unclassified Non Trade,CHARITIES & VOLUNTARY ORGANISA
PURCHASING LEARNING DISABILITI,9190,CITYWIDE SPOT                 ,05/10/2011,3124915,22415,2021.28,CITIZENSHIP FIRST                       ,329379,Unclassified Non Trade,CHARITIES & VOLUNTARY ORGANISA
PURCHASING LEARNING DISABILITI,9190,CITYWIDE SPOT                 ,05/10/2011,3124916,22416,1348.72,CITIZENSHIP FIRST                       ,329379,Unclassified Non Trade,CHARITIES & VOLUNTARY ORGANISA
PURCHASING LEARNING DISABILITI,9190,CITYWIDE SPOT                 ,05/10/2011,3124917,22417,647.04,CITIZENSHIP FIRST                       ,329379,Unclassified Non Trade,CHARITIES & VOLUNTARY ORGANISA
PURCHASING LEARNING DISABILITI,9190,CITYWIDE SPOT                 ,05/10/2011,3124919,22420,1676.64,CITIZENSHIP FIRST                       ,329379,Unclassified Non Trade,CHARITIES & VOLUNTARY ORGANISA
PURCHASING LEARNING DISABILITI,9190,CITYWIDE SPOT                 ,05/10/2011,3124920,22425,902.08,CITIZENSHIP FIRST                       ,329379,Unclassified Non Trade,CHARITIES & VOLUNTARY ORGANISA
PURCHASING LEARNING DISABILITI,9190,CITYWIDE SPOT                 ,05/10/2011,3124921,22426,2879.40,CITIZENSHIP FIRST                       ,329379,Unclassified Non Trade,CHARITIES & VOLUNTARY ORGANISA
PURCHASING LEARNING DISABILITI,9190,CITYWIDE SPOT                 ,05/10/2011,3124922,22429,1694.92,CITIZENSHIP FIRST                       ,329379,Unclassified Non Trade,CHARITIES & VOLUNTARY ORGANISA
PURCHASING LEARNING DISABILITI,9190,CITYWIDE SPOT                 ,05/10/2011,3124923,22430,658.68,CITIZENSHIP FIRST                       ,329379,Unclassified Non Trade,CHARITIES & VOLUNTARY ORGANISA
PURCHASING LEARNING DISABILITI,9190,CITYWIDE SPOT                 ,05/10/2011,3124925,22431,754.88,CITIZENSHIP FIRST                       ,329379,Unclassified Non Trade,CHARITIES & VOLUNTARY ORGANISA
PURCHASING LEARNING DISABILITI,9190,CITYWIDE SPOT                 ,05/10/2011,3124926,22432,647.40,CITIZENSHIP FIRST                       ,329379,Unclassified Non Trade,CHARITIES & VOLUNTARY ORGANISA
PURCHASING LEARNING DISABILITI,9190,CITYWIDE SPOT                 ,05/10/2011,3124927,22435,808.80,CITIZENSHIP FIRST                       ,329379,Unclassified Non Trade,CHARITIES & VOLUNTARY ORGANISA
PURCHASING                    ,9190,CITYWIDE SPOT                 ,05/10/2011,3124928,22437,1294.08,CITIZENSHIP FIRST                       ,329379,Unclassified Non Trade,CHARITIES & VOLUNTARY ORGANISA
PURCHASING LEARNING DISABILITI,9190,CITYWIDE SPOT                 ,05/10/2011,3124929,22438+22439              ,4912.20,CITIZENSHIP FIRST                       ,329379,Unclassified Non Trade,CHARITIES & VOLUNTARY ORGANISA
PURCHASING LEARNING DISABILITI,9190,CITYWIDE SPOT                 ,05/10/2011,3124930,22440,2879.40,CITIZENSHIP FIRST                       ,329379,Unclassified Non Trade,CHARITIES & VOLUNTARY ORGANISA
PURCHASING LEARNING DISABILITI,9190,CITYWIDE SPOT                 ,05/10/2011,3124931,22441,658.68,CITIZENSHIP FIRST                       ,329379,Unclassified Non Trade,CHARITIES & VOLUNTARY ORGANISA
PURCHASING LEARNING DISABILITI,9190,CITYWIDE SPOT                 ,05/10/2011,3124934,22445,598.80,CITIZENSHIP FIRST                       ,329379,Unclassified Non Trade,CHARITIES & VOLUNTARY ORGANISA
PURCHASING LEARNING DISABILITI,9190,CITYWIDE SPOT                 ,05/10/2011,3124936,22450,1849.52,CITIZENSHIP FIRST                       ,329379,Unclassified Non Trade,CHARITIES & VOLUNTARY ORGANISA
PURCHASING LEARNING DISABILITI,9190,CITYWIDE SPOT                 ,05/10/2011,3124937,22454,628.76,CITIZENSHIP FIRST                       ,329379,Unclassified Non Trade,CHARITIES & VOLUNTARY ORGANISA
PURCHASING LEARNING DISABILITI,9190,CITYWIDE SPOT                 ,05/10/2011,3124938,22473,1914.16,CITIZENSHIP FIRST                       ,329379,Unclassified Non Trade,CHARITIES & VOLUNTARY ORGANISA
PURCHASING LEARNING DISABILITI,9190,CITYWIDE SPOT                 ,05/10/2011,3124939,22476,1253.64,CITIZENSHIP FIRST                       ,329379,Unclassified Non Trade,CHARITIES & VOLUNTARY ORGANISA
PURCHASING LEARNING DISABILITI,9190,CITYWIDE SPOT                 ,05/10/2011,3124941,265-004499               ,841.00,LEONARD CHESHIRE SERVICES               ,329306,Unclassified Non Trade,CHARITIES & VOLUNTARY ORGANISA
PURCHASING ELDERLY            ,9190,CITYWIDE SPOT                 ,05/10/2011,3124942,265-004500               ,696.00,LEONARD CHESHIRE SERVICES               ,329306,Unclassified Non Trade,CHARITIES & VOLUNTARY ORGANISA
PURCHASING LEARNING DISABILITI,9190,CITYWIDE SPOT                 ,05/10/2011,3124943,265-004501               ,862.75,LEONARD CHESHIRE SERVICES               ,329306,Unclassified Non Trade,CHARITIES & VOLUNTARY ORGANISA
PURCHASING LEARNING DISABILITI,9190,CITYWIDE SPOT                 ,05/10/2011,3124949,265-004507               ,1102.00,LEONARD CHESHIRE SERVICES               ,329306,Unclassified Non Trade,CHARITIES & VOLUNTARY ORGANISA
PHYSICAL DISABILITIES PURCHASI,9190,CITYWIDE SPOT                 ,05/10/2011,3124951,265-004509               ,5751.67,LEONARD CHESHIRE SERVICES               ,329306,Unclassified Non Trade,CHARITIES & VOLUNTARY ORGANISA
PURCHASING LEARNING DISABILITI,9250,INDEPENDENT DAY CARE          ,05/10/2011,3124955,3497,834.68,CAMPHILL VILLAGE TRUST                  ,361868,Unclassified Non Trade,CHARITIES & VOLUNTARY ORGANISA
PURCHASING LEARNING DISABILITI,9190,CITYWIDE SPOT                 ,05/10/2011,3124957,7384,1812.40,NOTTS SOCIETY AUTISTIC CHILD / ADULT    ,368343,Unclassified Non Trade,CHARITIES & VOLUNTARY ORGANISA
PURCHASING LEARNING DISABILITI,9190,CITYWIDE SPOT                 ,05/10/2011,3124958,7385,1721.78,NOTTS SOCIETY AUTISTIC CHILD / ADULT    ,368343,Unclassified Non Trade,CHARITIES & VOLUNTARY ORGANISA
PURCHASING LEARNING DISABILITI,9190,CITYWIDE SPOT                 ,05/10/2011,3124959,7406,1097.04,NOTTS SOCIETY AUTISTIC CHILD / ADULT    ,368343,Unclassified Non Trade,CHARITIES & VOLUNTARY ORGANISA
PURCHASING LEARNING DISABILITI,9190,CITYWIDE SPOT                 ,05/10/2011,3124960,7407,1097.04,NOTTS SOCIETY AUTISTIC CHILD / ADULT    ,368343,Unclassified Non Trade,CHARITIES & VOLUNTARY ORGANISA
PURCHASING LEARNING DISABILITI,9190,CITYWIDE SPOT                 ,05/10/2011,3124961,7412,966.40,NOTTS SOCIETY AUTISTIC CHILD / ADULT    ,368343,Unclassified Non Trade,CHARITIES & VOLUNTARY ORGANISA
PURCHASING LEARNING DISABILITI,9190,CITYWIDE SPOT                 ,05/10/2011,3124962,7413,966.40,NOTTS SOCIETY AUTISTIC CHILD / ADULT    ,368343,Unclassified Non Trade,CHARITIES & VOLUNTARY ORGANISA
PURCHASING LEARNING DISABILITI,9190,CITYWIDE SPOT                 ,05/10/2011,3124963,98727,1825.16,UNITED RESPONSE                         ,329604,Unclassified Non Trade,CHARITIES & VOLUNTARY ORGANISA
PURCHASING LEARNING DISABILITI,9190,CITYWIDE SPOT                 ,05/10/2011,3124964,98879,779.52,UNITED RESPONSE                         ,329604,Unclassified Non Trade,CHARITIES & VOLUNTARY ORGANISA
PURCHASING LEARNING DISABILITI,9190,CITYWIDE SPOT                 ,05/10/2011,3124965,98880,812.00,UNITED RESPONSE                         ,329604,Unclassified Non Trade,CHARITIES & VOLUNTARY ORGANISA
PURCHASING LEARNING DISABILITI,9190,CITYWIDE SPOT                 ,05/10/2011,3124969,98928,2143.68,UNITED RESPONSE                         ,329604,Unclassified Non Trade,CHARITIES & VOLUNTARY ORGANISA
PURCHASING ELDERLY            ,9190,CITYWIDE SPOT                 ,05/10/2011,3124971,98954,860.72,UNITED RESPONSE                         ,329604,Unclassified Non Trade,CHARITIES & VOLUNTARY ORGANISA
PHYSICAL DISABILITIES PURCHASI,9190,CITYWIDE SPOT                 ,05/10/2011,3124972,99019,871.92,UNITED RESPONSE                         ,329604,Unclassified Non Trade,CHARITIES & VOLUNTARY ORGANISA
PURCHASING LEARNING DISABILITI,9190,CITYWIDE SPOT                 ,05/10/2011,3124973,99020,560.52,UNITED RESPONSE                         ,329604,Unclassified Non Trade,CHARITIES & VOLUNTARY ORGANISA
TRANSITIONS                   ,9190,CITYWIDE SPOT                 ,05/10/2011,3124974,99095,777.60,UNITED RESPONSE                         ,329604,Unclassified Non Trade,CHARITIES & VOLUNTARY ORGANISA
PURCHASING LEARNING DISABILITI,9190,CITYWIDE SPOT                 ,05/10/2011,3124975,99418,844.48,UNITED RESPONSE                         ,329604,Unclassified Non Trade,CHARITIES & VOLUNTARY ORGANISA
PURCHASING ELDERLY            ,9190,CITYWIDE SPOT                 ,05/10/2011,3124976,99424,1970.72,UNITED RESPONSE                         ,329604,Unclassified Non Trade,CHARITIES & VOLUNTARY ORGANISA
PURCHASING LEARNING DISABILITI,9190,CITYWIDE SPOT                 ,05/10/2011,3124977,99429,649.60,UNITED RESPONSE                         ,329604,Unclassified Non Trade,CHARITIES & VOLUNTARY ORGANISA
PURCHASING LEARNING DISABILITI,9190,CITYWIDE SPOT                 ,05/10/2011,3124979,99451,2143.68,UNITED RESPONSE                         ,329604,Unclassified Non Trade,CHARITIES & VOLUNTARY ORGANISA
PURCHASING LEARNING DISABILITI,9190,CITYWIDE SPOT                 ,05/10/2011,3124980,99452+6964               ,1753.92,UNITED RESPONSE                         ,329604,Unclassified Non Trade,CHARITIES & VOLUNTARY ORGANISA
PURCHASING LEARNING DISABILITI,9190,CITYWIDE SPOT                 ,05/10/2011,3124981,99453,665.84,UNITED RESPONSE                         ,329604,Unclassified Non Trade,CHARITIES & VOLUNTARY ORGANISA
PURCHASING LEARNING DISABILITI,9190,CITYWIDE SPOT                 ,05/10/2011,3124982,99456,876.96,UNITED RESPONSE                         ,329604,Unclassified Non Trade,CHARITIES & VOLUNTARY ORGANISA
PURCHASING LEARNING DISABILITI,9190,CITYWIDE SPOT                 ,05/10/2011,3124983,99457,1591.52,UNITED RESPONSE                         ,329604,Unclassified Non Trade,CHARITIES & VOLUNTARY ORGANISA
PURCHASING LEARNING DISABILITI,9240,SUPPORTED LIVING CARE         ,05/10/2011,3124784,J410885 161011           ,5781.28,ABBEYFIELD / SCOTT ROAD                 ,362162,Unclassified Non Trade,HOSPITALS                     
PURCHASING LEARNING DISABILITI,9240,SUPPORTED LIVING CARE         ,05/10/2011,3124785,J410891 161011           ,3061.24,STEVEN CLOSE                            ,362157,Unclassified Non Trade,HOSPITALS                     
PURCHASING LEARNING DISABILITI,9240,SUPPORTED LIVING CARE         ,05/10/2011,3124786,J411005 161011           ,6649.16,15 COLLEY ROAD                          ,361823,Social Community Care,DISABILITY & SPECIAL NEEDS - S
PURCHASING LEARNING DISABILITI,9240,SUPPORTED LIVING CARE         ,05/10/2011,3124787,J411008 161011           ,3401.76,261 HIGH GREAVE                         ,362155,Social Community Care,DISABILITY & SPECIAL NEEDS - S
PURCHASING ELDERLY            ,9240,SUPPORTED LIVING CARE         ,05/10/2011,3124787,J411008 161011           ,2267.84,261 HIGH GREAVE                         ,362155,Social Community Care,DISABILITY & SPECIAL NEEDS - S
PURCHASING LEARNING DISABILITI,9240,SUPPORTED LIVING CARE         ,05/10/2011,3124788,J411009 161011           ,1494.88,2-8 STALKER LEES COURT                  ,362161,Social Community Care,DISABILITY & SPECIAL NEEDS - S
PURCHASING LEARNING DISABILITI,9240,SUPPORTED LIVING CARE         ,05/10/2011,3124789,J411012 161011           ,1098.48,4 FRANCE ROAD                           ,362156,Social Community Care,DISABILITY & SPECIAL NEEDS - S
PURCHASING ELDERLY            ,9240,SUPPORTED LIVING CARE         ,05/10/2011,3124789,J411012 161011           ,1098.48,4 FRANCE ROAD                           ,362156,Social Community Care,DISABILITY & SPECIAL NEEDS - S
PURCHASING LEARNING DISABILITI,9240,SUPPORTED LIVING CARE         ,05/10/2011,3124790,J411014 161011           ,1098.48,6 FRANCE ROAD                           ,361876,Social Community Care,DISABILITY & SPECIAL NEEDS - S
PURCHASING LEARNING DISABILITI,9240,SUPPORTED LIVING CARE         ,05/10/2011,3124791,J411015 161011           ,3082.68,759 GLEADLESS ROAD                      ,361806,Social Community Care,DISABILITY & SPECIAL NEEDS - S
PURCHASING LEARNING DISABILITI,9240,SUPPORTED LIVING CARE         ,05/10/2011,3124792,J411017 161011           ,4110.24,930 GLEADLESS ROAD                      ,361807,Social Community Care,DISABILITY & SPECIAL NEEDS - S
PURCHASING LEARNING DISABILITI,9240,SUPPORTED LIVING CARE         ,05/10/2011,3124793,J411062 161011           ,2196.96,4 FRANCE ROAD                           ,362156,Social Community Care,DISABILITY & SPECIAL NEEDS - S
PURCHASING ELDERLY            ,9240,SUPPORTED LIVING CARE         ,05/10/2011,3124794,J411063 161011           ,992.20,2-8 STALKER LEES COURT                  ,362161,Social Community Care,DISABILITY & SPECIAL NEEDS - S
PURCHASING LEARNING DISABILITI,9240,SUPPORTED LIVING CARE         ,05/10/2011,3124794,J411063 161011           ,992.20,2-8 STALKER LEES COURT                  ,362161,Social Community Care,DISABILITY & SPECIAL NEEDS - S
PURCHASING LEARNING DISABILITI,9240,SUPPORTED LIVING CARE         ,05/10/2011,3124795,J411064 161011           ,992.20,2-8 STALKER LEES COURT                  ,362161,Social Community Care,DISABILITY & SPECIAL NEEDS - S
PURCHASING LEARNING DISABILITI,9240,SUPPORTED LIVING CARE         ,05/10/2011,3124796,J411065 161011           ,992.20,2-8 STALKER LEES COURT                  ,362161,Social Community Care,DISABILITY & SPECIAL NEEDS - S
PURCHASING LEARNING DISABILITI,9240,SUPPORTED LIVING CARE         ,05/10/2011,3124797,J411066 161011           ,2056.00,DIMENSIONS (UK) LTD (SP)                ,365809,Unclassified Non Trade,CHARITIES & VOLUNTARY ORGANISA
PURCHASING ELDERLY            ,9240,SUPPORTED LIVING CARE         ,05/10/2011,3124798,J411069 161011           ,1611.12,STEVEN CLOSE                            ,362157,Unclassified Non Trade,HOSPITALS                     
PURCHASING LEARNING DISABILITI,9240,SUPPORTED LIVING CARE         ,05/10/2011,3124798,J411069 161011           ,3619.92,STEVEN CLOSE                            ,362157,Unclassified Non Trade,HOSPITALS                     
PURCHASING LEARNING DISABILITI,9240,SUPPORTED LIVING CARE         ,05/10/2011,3124799,J411070 161011           ,3093.56,STEVEN CLOSE                            ,362157,Unclassified Non Trade,HOSPITALS                     
PURCHASING LEARNING DISABILITI,9240,SUPPORTED LIVING CARE         ,05/10/2011,3124800,J411071 161011           ,2556.84,SHEFFIELD HEALTH & SOCIAL CARE NHS      ,353994,Unclassified Non Trade,HOSPITALS                     
PURCHASING LEARNING DISABILITI,9240,SUPPORTED LIVING CARE         ,05/10/2011,3124801,J411072 161011           ,2720.68,DARESBURY ROAD                          ,362153,Unclassified Non Trade,HOSPITALS                     
PURCHASING ELDERLY            ,9240,SUPPORTED LIVING CARE         ,05/10/2011,3124801,J411072 161011           ,1179.52,DARESBURY ROAD                          ,362153,Unclassified Non Trade,HOSPITALS                     
PURCHASING LEARNING DISABILITI,9240,SUPPORTED LIVING CARE         ,05/10/2011,3124802,J411073 161011           ,2790.48,SHEFFIELD HEALTH & SOCIAL CARE NHS      ,353994,Unclassified Non Trade,HOSPITALS                     
PURCHASING ELDERLY            ,9240,SUPPORTED LIVING CARE         ,05/10/2011,3124802,J411073 161011           ,2532.92,SHEFFIELD HEALTH & SOCIAL CARE NHS      ,353994,Unclassified Non Trade,HOSPITALS                     
PURCHASING LEARNING DISABILITI,9240,SUPPORTED LIVING CARE         ,05/10/2011,3124803,J411075 161011           ,2629.60,SHEFFIELD HEALTH & SOCIAL CARE NHS      ,353994,Unclassified Non Trade,HOSPITALS                     
PURCHASING LEARNING DISABILITI,9240,SUPPORTED LIVING CARE         ,05/10/2011,3124804,J411076 161011           ,2417.00,SHEFFIELD HEALTH & SOCIAL CARE NHS      ,353994,Unclassified Non Trade,HOSPITALS                     
PURCHASING ELDERLY            ,9240,SUPPORTED LIVING CARE         ,05/10/2011,3124805,J411077 161011           ,1450.12,SHEFFIELD HEALTH & SOCIAL CARE NHS      ,353994,Unclassified Non Trade,HOSPITALS                     
PURCHASING LEARNING DISABILITI,9240,SUPPORTED LIVING CARE         ,05/10/2011,3124805,J411077 161011           ,4755.80,SHEFFIELD HEALTH & SOCIAL CARE NHS      ,353994,Unclassified Non Trade,HOSPITALS                     
PURCHASING LEARNING DISABILITI,9240,SUPPORTED LIVING CARE         ,05/10/2011,3124806,J411078 161011           ,4400.88,MENCAP                                  ,361774,Unclassified Non Trade,CHARITIES & VOLUNTARY ORGANISA
PURCHASING LEARNING DISABILITI,9240,SUPPORTED LIVING CARE         ,05/10/2011,3124807,J411079 161011           ,5174.40,MENCAP                                  ,361774,Unclassified Non Trade,CHARITIES & VOLUNTARY ORGANISA
PURCHASING LEARNING DISABILITI,9240,SUPPORTED LIVING CARE         ,05/10/2011,3124809,J411081 161011           ,8610.48,SHEFFIELD HEALTH & SOCIAL CARE NHS      ,353994,Unclassified Non Trade,HOSPITALS                     
PURCHASING LEARNING DISABILITI,9240,SUPPORTED LIVING CARE         ,05/10/2011,3124810,J411084 161011           ,1534.12,SHEFFIELD HEALTH & SOCIAL CARE NHS      ,353994,Unclassified Non Trade,HOSPITALS                     
PURCHASING LEARNING DISABILITI,9240,SUPPORTED LIVING CARE         ,05/10/2011,3124811,J411085 161011           ,3751.12,SHEFFIELD HEALTH & SOCIAL CARE NHS      ,353994,Unclassified Non Trade,HOSPITALS                     
PURCHASING LEARNING DISABILITI,9240,SUPPORTED LIVING CARE         ,05/10/2011,3124812,J411086 161011           ,2397.56,SHEFFIELD HEALTH & SOCIAL CARE NHS      ,353994,Unclassified Non Trade,HOSPITALS                     
PURCHASING ELDERLY            ,9200,CONTINUING RESIDENTIAL CARE   ,05/10/2011,3124814,J411104 161011           ,1287.92,SAXILBY HOUSE RESIDENTIAL HOME          ,433431,Social Community Care,RESIDENTIAL CARE HOMES        
PURCHASING LEARNING DISABILITI,9240,SUPPORTED LIVING CARE         ,05/10/2011,3124815,J411108 161011           ,2861.80,146 WENSLEY STREET                      ,461550,Unclassified Non Trade,HOSPITALS                     
PURCHASING LEARNING DISABILITI,9240,SUPPORTED LIVING CARE         ,05/10/2011,3124816,J411124 161011           ,4433.44,131 STRADBROKE ROAD                     ,463771,Unclassified Non Trade,HOSPITALS                     
PURCHASING ELDERLY            ,9240,SUPPORTED LIVING CARE         ,05/10/2011,3124817,J411138 161011           ,2021.12,31 ANGLETON AVENUE                      ,492722,Social Community Care,SHELTERED HOUSING             
PURCHASING LEARNING DISABILITI,9240,SUPPORTED LIVING CARE         ,05/10/2011,3124818,J411140 161011           ,1347.52,212 SICEY AVENUE                        ,492717,Social Community Care,DISABILITY & SPECIAL NEEDS - S
PURCHASING LEARNING DISABILITI,9240,SUPPORTED LIVING CARE         ,05/10/2011,3124819,J411141 161011           ,4771.04,51 VIKINGLEA DRIVE                      ,492715,Social Community Care,SHELTERED HOUSING             
PURCHASING ELDERLY            ,9240,SUPPORTED LIVING CARE         ,05/10/2011,3124819,J411141 161011           ,2498.32,51 VIKINGLEA DRIVE                      ,492715,Social Community Care,SHELTERED HOUSING             
PURCHASING ELDERLY            ,9240,SUPPORTED LIVING CARE         ,05/10/2011,3124820,J411142 161011           ,894.56,1 BLACKBERRY FLATS                      ,493437,Social Community Care,SHELTERED HOUSING             
PURCHASING LEARNING DISABILITI,9240,SUPPORTED LIVING CARE         ,05/10/2011,3124821,J411143 161011           ,894.56,37 HOLLINSEND ROAD                      ,493438,Social Community Care,DISABILITY & SPECIAL NEEDS - S
PURCHASING LEARNING DISABILITI,9240,SUPPORTED LIVING CARE         ,05/10/2011,3124822,J411311 161011           ,3002.00,NORTHERN LIFE CARE LTD T/A UBU          ,361991,Social Community Care,RESIDENTIAL CARE HOMES        
PURCHASING ELDERLY            ,9200,CONTINUING RESIDENTIAL CARE   ,05/10/2011,3124823,J412148 161011           ,18814.29,IDEAL CARE HOMES                        ,524235,Social Community Care,RESIDENTIAL CARE HOMES        
PURCHASING ELDERLY            ,9200,CONTINUING RESIDENTIAL CARE   ,05/10/2011,3124824,J414748 161011           ,8788.00,HALLAMSHIRE REST HOME                   ,362093,Social Community Care,REST & RETIREMENT HOMES       
PURCHASING ELDERLY            ,9200,CONTINUING RESIDENTIAL CARE   ,05/10/2011,3124825,J415487 161011           ,2946.43,ALEXANDER COURT                         ,361889,Social Community Care,RESIDENTIAL CARE HOMES        
PURCHASING ELDERLY            ,9200,CONTINUING RESIDENTIAL CARE   ,05/10/2011,3124826,J415661 161011           ,6605.43,CROFT ACRES                             ,361758,Social Community Care,RESIDENTIAL CARE HOMES        
PURCHASING ELDERLY            ,9200,CONTINUING RESIDENTIAL CARE   ,05/10/2011,3124827,J415662 161011           ,15066.57,HADDON COURT NURSING HOME               ,361916,Social Community Care,NURSING HOMES                 
PURCHASING ELDERLY            ,9210,CONTINUING NURSING CARE       ,05/10/2011,3124828,J417673 161011           ,5839.29,LITTLEDALE NURSING HOME                 ,361783,Social Community Care,NURSING HOMES                 
PURCHASING ELDERLY            ,9200,SHORT TERM RESIDENTIAL CARE   ,05/10/2011,3124829,J410465 210811           ,4200.85,ABBEY GRANGE RESIDENTIAL HOME           ,361753,Social Community Care,RESIDENTIAL CARE HOMES        
PURCHASING ELDERLY            ,9200,SHORT TERM RESIDENTIAL CARE   ,05/10/2011,3124830,J412975 180911           ,1690.00,BURNT TREE CROFT                        ,361793,Social Community Care,RESIDENTIAL CARE HOMES        
PURCHASING ELDERLY            ,9200,SHORT TERM RESIDENTIAL CARE   ,05/10/2011,3124832,J413706 180911           ,1014.00,APRIL PARK                              ,361944,Social Community Care,RESIDENTIAL CARE HOMES        
PURCHASING ELDERLY            ,9200,SHORT TERM RESIDENTIAL CARE   ,05/10/2011,3124833,J413707 180911           ,3106.28,DEVAGLADE LIMITED T/A AARON VIEW        ,486043,Social Community Care,NURSING HOMES                 
PURCHASING ELDERLY            ,9200,SHORT TERM RESIDENTIAL CARE   ,05/10/2011,3124834,J415462 180911           ,746.58,BELMONT HOUSE NURSING HOME              ,361754,Social Community Care,RESIDENTIAL CARE HOMES        
PURCHASING ELDERLY            ,9200,SHORT TERM RESIDENTIAL CARE   ,05/10/2011,3124836,J417657 180911           ,1643.00,WHITE ROSE COURT RES HOME               ,361964,Social Community Care,RESIDENTIAL CARE HOMES        
PURCHASING ELDERLY            ,9210,SHORT TERM NURSING CARE       ,05/10/2011,3124837,J417659 180911           ,750.00,NORTHFIELD NURSING HOME                 ,361770,Social Community Care,NURSING HOMES                 
PURCHASING LEARNING DISABILITI,9200,SHORT TERM RESIDENTIAL CARE   ,05/10/2011,3124838,J417660 180911           ,540.00,HENLEIGH HALL                           ,362109,Social Community Care,NURSING HOMES                 
KING EDWARDS (UP)             ,1161,NC&A MAIN CONTRACT            ,06/10/2011,3122364,736,752569.75,SHEFFIELD LEP LTD                       ,482230,Unclassified Non Trade,LOCAL GOVERNMENT              
STREET FORCE BALANCE SHEET    ,776,4332101 INVOICES PAID         ,06/10/2011,3125923,9027303909,713.40,TARMAC LTD                              ,463393,Building Construction Materials,BUILDING BLOCK MNFRS & DISTRIB
STREET FORCE BALANCE SHEET    ,776,4332101 INVOICES PAID         ,06/10/2011,3125933,I1ID0127                 ,23190.11,COLAS LTD                               ,502094,Construction,ROAD CONSTRUCTION CONTRACTORS 
STREET FORCE BALANCE SHEET    ,776,4332101 INVOICES PAID         ,06/10/2011,3125934,I1ID0130                 ,16843.81,COLAS LTD                               ,502094,Construction,ROAD CONSTRUCTION CONTRACTORS 
STREET FORCE BALANCE SHEET    ,776,4332101 INVOICES PAID         ,06/10/2011,3125936,I1ID0132                 ,787.97,COLAS LTD                               ,502094,Construction,ROAD CONSTRUCTION CONTRACTORS 
STREET FORCE BALANCE SHEET    ,776,4332101 INVOICES PAID         ,06/10/2011,3125941,1/458679                 ,1700.16,BUILDERS CENTRE (SHEFFIELD) LTD         ,203585,Building Construction Materials,BUILDERS' MERCHANTS           
STREET FORCE BALANCE SHEET    ,776,4332101 INVOICES PAID         ,06/10/2011,3125949,152456,1157.50,SMITH BROTHERS (CAER CONAN) LIMITED     ,493148,Utilities,ELECTRICAL DISTRIBUTION COMPAN
STREET FORCE BALANCE SHEET    ,776,4332101 INVOICES PAID         ,06/10/2011,3125951,152458,584.00,SMITH BROTHERS (CAER CONAN) LIMITED     ,493148,Utilities,ELECTRICAL DISTRIBUTION COMPAN
STREET FORCE BALANCE SHEET    ,776,4332101 INVOICES PAID         ,06/10/2011,3125956,15313159,1253.32,BRADSTONE AND CHARCON                   ,493137,Building Construction Materials,CONCRETE PRODUCTS             
STREET FORCE BALANCE SHEET    ,776,4332101 INVOICES PAID         ,06/10/2011,3125957,15326690,1608.38,BRADSTONE AND CHARCON                   ,493137,Building Construction Materials,CONCRETE PRODUCTS             
STREET FORCE BALANCE SHEET    ,776,4332101 INVOICES PAID         ,06/10/2011,3125959,156474,6724.93,SALT UNION LIMITED                      ,493089,Unclassified Trade,CHEMICALS & ALLIED PRODUCTS   
STREET FORCE BALANCE SHEET    ,776,4332101 INVOICES PAID         ,06/10/2011,3125960,157843RI                 ,9258.48,HARSCO METALS GROUP LTD                 ,493119,Vehicles Not Buses,PLANT & MACHINERY HIRE & LEASI
STREET FORCE BALANCE SHEET    ,776,4332101 INVOICES PAID         ,06/10/2011,3125961,157854RI                 ,811.00,HARSCO METALS GROUP LTD                 ,493119,Vehicles Not Buses,PLANT & MACHINERY HIRE & LEASI
STREET FORCE BALANCE SHEET    ,776,4332101 INVOICES PAID         ,06/10/2011,3125962,157855RI                 ,892.10,HARSCO METALS GROUP LTD                 ,493119,Vehicles Not Buses,PLANT & MACHINERY HIRE & LEASI
STREET FORCE BALANCE SHEET    ,776,4332101 INVOICES PAID         ,06/10/2011,3125963,157856RI                 ,2805.90,HARSCO METALS GROUP LTD                 ,493119,Vehicles Not Buses,PLANT & MACHINERY HIRE & LEASI
STREET FORCE BALANCE SHEET    ,776,4332101 INVOICES PAID         ,06/10/2011,3125964,157858RI                 ,782.00,HARSCO METALS GROUP LTD                 ,493119,Vehicles Not Buses,PLANT & MACHINERY HIRE & LEASI
STREET FORCE BALANCE SHEET    ,776,4332101 INVOICES PAID         ,06/10/2011,3125965,157869RI                 ,7935.48,HARSCO METALS GROUP LTD                 ,493119,Vehicles Not Buses,PLANT & MACHINERY HIRE & LEASI
STREET FORCE BALANCE SHEET    ,776,4332101 INVOICES PAID         ,06/10/2011,3125966,157875RI                 ,2571.84,HARSCO METALS GROUP LTD                 ,493119,Vehicles Not Buses,PLANT & MACHINERY HIRE & LEASI
STREET FORCE BALANCE SHEET    ,776,4332101 INVOICES PAID         ,06/10/2011,3125967,157888RI                 ,1005.00,HARSCO METALS GROUP LTD                 ,493119,Vehicles Not Buses,PLANT & MACHINERY HIRE & LEASI
STREET FORCE BALANCE SHEET    ,776,4332101 INVOICES PAID         ,06/10/2011,3125968,157889RI/3261RM          ,749.00,HARSCO METALS GROUP LTD                 ,493119,Vehicles Not Buses,PLANT & MACHINERY HIRE & LEASI
STREET FORCE BALANCE SHEET    ,776,4332101 INVOICES PAID         ,06/10/2011,3125970,157896RI                 ,5494.44,HARSCO METALS GROUP LTD                 ,493119,Vehicles Not Buses,PLANT & MACHINERY HIRE & LEASI
STREET FORCE BALANCE SHEET    ,776,4332101 INVOICES PAID         ,06/10/2011,3125971,157902RI                 ,2829.40,HARSCO METALS GROUP LTD                 ,493119,Vehicles Not Buses,PLANT & MACHINERY HIRE & LEASI
STREET FORCE BALANCE SHEET    ,776,4332101 INVOICES PAID         ,06/10/2011,3125972,157912RI                 ,1006.00,HARSCO METALS GROUP LTD                 ,493119,Vehicles Not Buses,PLANT & MACHINERY HIRE & LEASI
STREET FORCE BALANCE SHEET    ,776,4332101 INVOICES PAID         ,06/10/2011,3125973,157913RI/3261RM          ,581.00,HARSCO METALS GROUP LTD                 ,493119,Vehicles Not Buses,PLANT & MACHINERY HIRE & LEASI
STREET FORCE BALANCE SHEET    ,776,4332101 INVOICES PAID         ,06/10/2011,3125974,157914RI/3261RM          ,695.00,HARSCO METALS GROUP LTD                 ,493119,Vehicles Not Buses,PLANT & MACHINERY HIRE & LEASI
STREET FORCE BALANCE SHEET    ,776,4332101 INVOICES PAID         ,06/10/2011,3125975,157942RI                 ,4610.76,HARSCO METALS GROUP LTD                 ,493119,Vehicles Not Buses,PLANT & MACHINERY HIRE & LEASI
STREET FORCE BALANCE SHEET    ,776,4332101 INVOICES PAID         ,06/10/2011,3125976,157964RI                 ,797.00,HARSCO METALS GROUP LTD                 ,493119,Vehicles Not Buses,PLANT & MACHINERY HIRE & LEASI
STREET FORCE BALANCE SHEET    ,776,4332101 INVOICES PAID         ,06/10/2011,3125977,157966RI/3261RM          ,660.00,HARSCO METALS GROUP LTD                 ,493119,Vehicles Not Buses,PLANT & MACHINERY HIRE & LEASI
STREET FORCE BALANCE SHEET    ,776,4332101 INVOICES PAID         ,06/10/2011,3125978,157967RI/3261RM          ,566.00,HARSCO METALS GROUP LTD                 ,493119,Vehicles Not Buses,PLANT & MACHINERY HIRE & LEASI
STREET FORCE BALANCE SHEET    ,776,4332101 INVOICES PAID         ,06/10/2011,3125980,1I01034661               ,706.48,LAFARGE AGGREGATES LTD                  ,311166,Building Construction Materials,CONCRETE & MORTAR READY MIXED 
STREET FORCE BALANCE SHEET    ,776,4332101 INVOICES PAID         ,06/10/2011,3125981,1I01273261               ,752.54,LAFARGE AGGREGATES LTD                  ,311166,Building Construction Materials,CONCRETE & MORTAR READY MIXED 
STREET FORCE BALANCE SHEET    ,776,4332101 INVOICES PAID         ,06/10/2011,3125984,214430,1554.22,WILLIAM SMITH AND SONS (BARNARD CASTLE) ,493116,Facilities Management,SIGN WRITERS                  
STREET FORCE BALANCE SHEET    ,776,4332101 INVOICES PAID         ,06/10/2011,3125985,214649,903.66,WILLIAM SMITH AND SONS (BARNARD CASTLE) ,493116,Facilities Management,SIGN WRITERS                  
STREET FORCE BALANCE SHEET    ,776,4332101 INVOICES PAID         ,06/10/2011,3125986,23475,2800.00,ARRIVING LIMITED                        ,493335,Vehicles Not Buses,PLANT & MACHINERY HIRE & LEASI
STREET FORCE BALANCE SHEET    ,776,4332101 INVOICES PAID         ,06/10/2011,3125987,23490,3995.99,ARRIVING LIMITED                        ,493335,Vehicles Not Buses,PLANT & MACHINERY HIRE & LEASI
STREET FORCE BALANCE SHEET    ,776,4332101 INVOICES PAID         ,06/10/2011,3125988,23496,1876.33,ARRIVING LIMITED                        ,493335,Vehicles Not Buses,PLANT & MACHINERY HIRE & LEASI
STREET FORCE BALANCE SHEET    ,776,4332101 INVOICES PAID         ,06/10/2011,3125991,23544,1465.33,ARRIVING LIMITED                        ,493335,Vehicles Not Buses,PLANT & MACHINERY HIRE & LEASI
STREET FORCE BALANCE SHEET    ,776,4332101 INVOICES PAID         ,06/10/2011,3125992,23545,785.33,ARRIVING LIMITED                        ,493335,Vehicles Not Buses,PLANT & MACHINERY HIRE & LEASI
STREET FORCE BALANCE SHEET    ,776,4332101 INVOICES PAID         ,06/10/2011,3125993,2656,14206.63,MOTUS TRAFFIC LIMITED                   ,343110,Traffic Management,TRAFFIC MANAGEMENT SYSTEMS    
STREET FORCE BALANCE SHEET    ,776,4332101 INVOICES PAID         ,06/10/2011,3125994,2657,15741.28,MOTUS TRAFFIC LIMITED                   ,343110,Traffic Management,TRAFFIC MANAGEMENT SYSTEMS    
STREET FORCE BALANCE SHEET    ,776,4332101 INVOICES PAID         ,06/10/2011,3125995,2679,18485.29,MOTUS TRAFFIC LIMITED                   ,343110,Traffic Management,TRAFFIC MANAGEMENT SYSTEMS    
STREET FORCE BALANCE SHEET    ,776,4332101 INVOICES PAID         ,06/10/2011,3125996,30657,4381.44,MARTIN HAGUE                            ,205329,Construction,EXCAVATION & GROUNDWORK CONTRA
STREET FORCE BALANCE SHEET    ,776,4332101 INVOICES PAID         ,06/10/2011,3126002,351305,1169.28,INSTARMAC GROUP PLC                     ,483173,Building Construction Materials,CONCRETE PRODUCTS             
STREET FORCE BALANCE SHEET    ,776,4332101 INVOICES PAID         ,06/10/2011,3126004,414554,7701.43,SALT UNION LIMITED                      ,493089,Unclassified Trade,CHEMICALS & ALLIED PRODUCTS   
STREET FORCE BALANCE SHEET    ,776,4332101 INVOICES PAID         ,06/10/2011,3126005,414602,7695.31,SALT UNION LIMITED                      ,493089,Unclassified Trade,CHEMICALS & ALLIED PRODUCTS   
STREET FORCE BALANCE SHEET    ,776,4332101 INVOICES PAID         ,06/10/2011,3126006,612461,1410.54,GLASDON UK LIMITED                      ,493120,Environmental Services,PLASTIC PRODUCTS - MNFRS      
STREET FORCE BALANCE SHEET    ,776,4332101 INVOICES PAID         ,06/10/2011,3126009,6227,612.00,A & W HELLIWELL & SONS LTD              ,202556,Unclassified Trade,FARMING - LIVESTOCK & OTHER AN
STREET FORCE BALANCE SHEET    ,776,4332101 INVOICES PAID         ,06/10/2011,3126010,6228,529.25,A & W HELLIWELL & SONS LTD              ,202556,Unclassified Trade,FARMING - LIVESTOCK & OTHER AN
STREET FORCE BALANCE SHEET    ,776,4332101 INVOICES PAID         ,06/10/2011,3126015,6232,787.35,A & W HELLIWELL & SONS LTD              ,202556,Unclassified Trade,FARMING - LIVESTOCK & OTHER AN
STREET FORCE BALANCE SHEET    ,776,4332101 INVOICES PAID         ,06/10/2011,3126019,73011,997.50,HILLSBOROUGH STEELSTOCK LTD             ,205532,Unclassified Trade,STEEL STOCKHOLDERS            
STREET FORCE BALANCE SHEET    ,776,4332101 INVOICES PAID         ,06/10/2011,3126025,75197,1612.80,CEM-SPEC LIMITED                        ,493158,Building Construction Materials,DO IT YOURSELF SHOPS          
STREET FORCE BALANCE SHEET    ,776,4332101 INVOICES PAID         ,06/10/2011,3126030,89255,564.00,TOFCO LIMITED                           ,493156,Domestic Goods,"ELECTRICAL GOODS SALES, MNFRS "
STREET FORCE BALANCE SHEET    ,776,4332101 INVOICES PAID         ,06/10/2011,3126032,9027291043,956.42,TARMAC LTD                              ,463393,Building Construction Materials,BUILDING BLOCK MNFRS & DISTRIB
MINOR WORK GRANTS             ,1165,NC&A OTHER                    ,06/10/2011,3126265,ERS INVOICE57517         ,1902.00,PROTEN SERVICES LTD.                    ,207707,Environmental Services,DAMP & DRY ROT CONTROL        
DISABLED GRANTS               ,1165,NC&A OTHER                    ,06/10/2011,3126266,ERS INVOICE57518         ,1601.00,STANNAH LIFT SERVICES LTD.              ,208625,Social Community Care,STAIRLIFTS - MNFRS & INSTALLER
DISABLED GRANTS               ,1165,NC&A OTHER                    ,06/10/2011,3126267,ERS INVOICE57519         ,1601.00,STANNAH LIFT SERVICES LTD.              ,208625,Social Community Care,STAIRLIFTS - MNFRS & INSTALLER
LAS TRADED SERVICES           ,8440,FEE EXPENSES                  ,06/10/2011,3126269,ERS INVOICE57521         ,3600.00,PENNINE EDUCATIONAL CONSULTANCY         ,509853,Consultancy,BUSINESS & MANAGEMENT CONSULTA
DISABLED GRANTS               ,1165,NC&A OTHER                    ,06/10/2011,3126470,ERS INVOICE57526         ,3885.00,ABBEYDALE SHOWERS                       ,302256,Construction,ELECTRICIANS & ELECTRICAL CONT
DISABLED GRANTS               ,1165,NC&A OTHER                    ,06/10/2011,3126471,ERS INVOICE57527         ,3420.00,REDACTED PERSONAL DATA,505403,Unclassified Non Trade,OUT OF SCOPE FOR SIC MONITORIN
DISABLED GRANTS               ,1165,NC&A OTHER                    ,06/10/2011,3126472,ERS INVOICE57528         ,3215.00,FOGG & GIBBS                            ,296259,Construction,PLUMBERS                      
DISABLED GRANTS               ,1165,NC&A OTHER                    ,06/10/2011,3126475,ERS INVOICE57535         ,4376.00,STANNAH LIFT SERVICES LTD.              ,208625,Social Community Care,STAIRLIFTS - MNFRS & INSTALLER
DISABLED GRANTS               ,1165,NC&A OTHER                    ,06/10/2011,3126476,ERS INVOICE57536         ,3708.00,WOODSEATS PLUMBING CO LTD               ,209595,Construction,PLUMBERS                      
RESPONSIVE REPAIRS            ,6030,OTHER RESPONSIVE REPAIRS      ,06/10/2011,3115734,10638547,3181.75,RENTOKIL INITIAL UK LTD                 ,437082,Cleaning and Janitorial,CLEANING SERVICES - COMMERCIAL
AREA TEAM 6                   ,6280,HIRE OF PREMISES              ,06/10/2011,3116232,VSH5192                  ,900.00,INTERSERVE CONSTRUCTION LTD             ,369244,Construction,BUILDING SERVICES             
MGT  & DELIVERY (BIG)         ,8440,FEE EXPENSES                  ,06/10/2011,3117512,3651,3666.67,SCEDU                                   ,366068,Unclassified Non Trade,DEVELOPMENT AGENCIES          
BOLE HILL VIEW                ,5610,AGENCY STAFF                  ,06/10/2011,3118187,52678,506.95,LYNX SERVICES LTD                       ,349384,Human Resources,EMPLOYMENT & RECRUITMENT AGENC
LAND                          ,8490,OTHER PROFESSIONAL FEES       ,06/10/2011,3118370,1133378,1148.22,WAKE SMITH & TOFIELDS SOLICITORS        ,209393,Legal Services,SOLICITORS                    
CREATIVE SERVICES             ,9120,OTHER AGENCIES                ,06/10/2011,3118578,INV148263                ,2800.00,A PINDER LTD                            ,202627,Facilities Management,COPYING & DUPLICATING SERVICES
CREATIVE SERVICES             ,9120,OTHER AGENCIES                ,06/10/2011,3118580,INV148264                ,995.00,A PINDER LTD                            ,202627,Facilities Management,COPYING & DUPLICATING SERVICES
CONTACT CONTRACTS             ,9280,CONTACT                       ,06/10/2011,3119697,18862/506                ,15329.21,SSA SOCIAL WORK LTD                     ,329517,Human Resources,NURSING AGENCIES              
HIGHWAYS - FORGE VALLEY       ,1165,NC&A OTHER                    ,06/10/2011,3119737,1019923,850.00,TELENT (TRAFFIC SIGNALS UK) LTD         ,503759,Traffic Management,TRAFFIC MANAGEMENT SYSTEMS    
CARE PROCEEDINGS (LEGAL FEES) ,8470,LEGAL FEES                    ,06/10/2011,3120518,126108,600.00,MR A M WYNNE                            ,487888,Legal Services,BARRISTERS                    
CARE PROCEEDINGS (LEGAL FEES) ,8470,LEGAL FEES                    ,06/10/2011,3120529,202506,550.00,MISS JULIA NELSON                       ,508638,Legal Services,BARRISTERS                    
CARE PROCEEDINGS (LEGAL FEES) ,8470,LEGAL FEES                    ,06/10/2011,3120530,129664,4300.00,MR GORDON SEMPLE                        ,532712,Legal Services,BARRISTERS                    
CARE PROCEEDINGS (LEGAL FEES) ,8470,LEGAL FEES                    ,06/10/2011,3120602,1853,3599.17,BROWNING HOUSE                          ,395768,Unclassified Non Trade,CHARITIES & VOLUNTARY ORGANISA
BIRLEY                        ,1161,NC&A MAIN CONTRACT            ,06/10/2011,3121324,732,1118197.00,SHEFFIELD LEP LTD                       ,482230,Unclassified Non Trade,LOCAL GOVERNMENT              
CARE PROCEEDINGS (LEGAL FEES) ,8470,LEGAL FEES                    ,06/10/2011,3121390,130121,600.00,MISS N G ERLEN                          ,465151,Legal Services,BARRISTERS                    
CARE PROCEEDINGS (LEGAL FEES) ,8470,LEGAL FEES                    ,06/10/2011,3121392,128952,600.00,MISS N G ERLEN                          ,465151,Legal Services,BARRISTERS                    
CARE PROCEEDINGS (LEGAL FEES) ,8470,LEGAL FEES                    ,06/10/2011,3121394,129756,1200.00,MS A M EDWARDS                          ,504927,Legal Services,BARRISTERS                    
CREATIVE SERVICES             ,9120,OTHER AGENCIES                ,06/10/2011,3121776,2526,5217.00,REAL451                                 ,547310,Facilities Management,ADVERTISING - MEDIA           
KENNELLING                    ,8010,EQUIPMENT PURCHASE AND REPAIR ,06/10/2011,3122166,10876,822.50,HOPEWELLS PET & ANIMAL FEEDS LTD        ,552250,Unclassified Trade,PET FOODS & ANIMAL FEEDS      
FURNISHED ACCOMMODATION       ,8050,ELECTRICAL GOODS              ,06/10/2011,3122258,CSD2755692               ,2725.00,DOMESTIC APPLIANCE DISTRIBUTORS         ,527171,Domestic Goods,ELECTRICAL GOODS - SALES      
CREATIVE SERVICES             ,9120,OTHER AGENCIES                ,06/10/2011,3122292,59664,1034.00,PRINT AND DESIGN FACTORY LTD.           ,207663,Facilities Management,PRINTERS                      
MCA SUPPORT TEAM              ,8440,FEE EXPENSES                  ,06/10/2011,3123104,40892,1580.25,SHEFFIELD MENTAL HEALTH C.A.B.          ,316902,Medical ,COUNSELLING & ADVICE SERVICES 
STATUTORY ADVERTISING         ,8420,ADVERTISING AND PUBL-INVOICED ,06/10/2011,3123130,20694034,2160.00,REED BUSINESS INFORMATION LIMITED       ,350053,Education,PUBLISHERS                    
CONTACT CONTRACTS             ,9280,CONTACT                       ,06/10/2011,3123354,394,3097.77,SHEFFIELD CHILDREN'S CENTRE             ,311908,Social Community Care,NURSERIES & CRECHES           
CONTACT CONTRACTS             ,9280,CONTACT                       ,06/10/2011,3123374,393,2730.99,SHEFFIELD CHILDREN'S CENTRE             ,311908,Social Community Care,NURSERIES & CRECHES           
CARE PROCEEDINGS (LEGAL FEES) ,8470,LEGAL FEES                    ,06/10/2011,3123466,130165,1250.00,MS C E FORD                             ,544033,Legal Services,SOLICITORS                    
CARE PROCEEDINGS (LEGAL FEES) ,8470,LEGAL FEES                    ,06/10/2011,3123486,93467,1064.00,CARTER BROWN ASSOCIATES LTD             ,417243,Medical ,PSYCHOLOGISTS                 
PROJECTS MANAGEMENT           ,6020,REPAIRS AND MTCE - PROGRAMMED ,06/10/2011,3123536,312185,1500.00,OVE ARUP & PARTNERS INTERNATIONAL LTD   ,321129,Consultancy,ENGINEERS - CONSULTING        
RECRUITMENT ADVERTISING       ,5720,RECRUIT. ADV. - INVOICE       ,06/10/2011,3123739,745242,900.00,GUARDIAN NEWSPAPERS LTD                 ,205256,Education,NEWSPAPER & MAGAZINE PUBLISHER
ACCOMMODATION & DEVEL TEAM    ,8490,OTHER PROFESSIONAL FEES       ,06/10/2011,3123804,2100066121,3414.10,SHEFFIELD CARE TRUST (SP)               ,366826,Unclassified Non Trade,CHARITIES & VOLUNTARY ORGANISA
ACCOMMODATION & DEVEL TEAM    ,8490,OTHER PROFESSIONAL FEES       ,06/10/2011,3123807,2100066119,3327.12,SHEFFIELD CARE TRUST (SP)               ,366826,Unclassified Non Trade,CHARITIES & VOLUNTARY ORGANISA
ACCOMMODATION & DEVEL TEAM    ,8490,OTHER PROFESSIONAL FEES       ,06/10/2011,3124121,2100066117,3376.24,SHEFFIELD CARE TRUST (SP)               ,366826,Unclassified Non Trade,CHARITIES & VOLUNTARY ORGANISA
ACCOMMODATION & DEVEL TEAM    ,8490,OTHER PROFESSIONAL FEES       ,06/10/2011,3124123,2100066116,1783.56,SHEFFIELD CARE TRUST (SP)               ,366826,Unclassified Non Trade,CHARITIES & VOLUNTARY ORGANISA
CLAIMS                        ,8490,OTHER PROFESSIONAL FEES       ,06/10/2011,3124136,Q72784                   ,888.71,QM COSTS                                ,518667,Legal Services,LEGAL SERVICES                
SECURE PLACEMENTS             ,9270,SECURE PLACEMENTS - REMAND    ,06/10/2011,3124181,QC10416                  ,810.75,QUAYSIDE CARE                           ,317889,Social Community Care,SOCIAL SERVICES               
NLDC 2010/11                  ,9120,OTHER AGENCIES                ,06/10/2011,3124186,NLDC2010/11              ,3603.00,BROOMHALL FORUM                         ,479084,Unclassified Non Trade,CHARITIES & VOLUNTARY ORGANISA
STATUTORY ADVERTISING         ,8420,ADVERTISING AND PUBL-INVOICED ,06/10/2011,3124196,7724334,834.76,SHEFFIELD NEWSPAPERS LTD                ,208391,Education,NEWSPAPER & MAGAZINE PUBLISHER
TRANSFORMATION TEAM           ,8460,CONSULTANTS FEES              ,06/10/2011,3124363,3191,14175.00,INSIGHT MANAGEMENT & SYSTEMS            ,424598,Consultancy,COMPUTER SYSTEMS & SOFTWARE (D
FURNISHED ACCOMMODATION       ,8050,FLOOR COVERINGS               ,06/10/2011,3124365,13994,678.00,PYRAMID CARPETS                         ,243612,Building Construction Materials,CARPETS & RUGS - RETAIL       
FURNISHED ACCOMMODATION       ,8050,FLOOR COVERINGS               ,06/10/2011,3124402,13996,664.00,PYRAMID CARPETS                         ,243612,Building Construction Materials,CARPETS & RUGS - RETAIL       
REGISTER OFFICE               ,6030,REPAIRS AND MTCE - RESPONSIVE ,06/10/2011,3124437,37239,2262.00,SIS WORKSPACE LTD                       ,466606,Construction,OFFICE REFURBISHMENT SERVICES 
EAST AREA ESTATE OFFICERS     ,8060,MATERIALS AND SUPPLIES GENERAL,06/10/2011,3124581,327875,827.84,ARDEN WINCH & CO LTD                    ,203023,Clothing,SAFETY EQUIPMENT & CLOTHING   
RECRUITMENT ADVERTISING       ,5720,RECRUIT. ADV. - INVOICE       ,06/10/2011,3124595,PKGI/00674               ,1500.00,HEMMING GROUP LTD                       ,205456,Education,PUBLISHERS                    
ACCOMMODATION & DEVEL TEAM    ,8490,OTHER PROFESSIONAL FEES       ,06/10/2011,3124596,2100066098,3147.09,SHEFFIELD CARE TRUST (SP)               ,366826,Unclassified Non Trade,CHARITIES & VOLUNTARY ORGANISA
ACCOMMODATION & DEVEL TEAM    ,8490,OTHER PROFESSIONAL FEES       ,06/10/2011,3124597,2100066097,2014.65,SHEFFIELD CARE TRUST (SP)               ,366826,Unclassified Non Trade,CHARITIES & VOLUNTARY ORGANISA
SCC BALANCE SHEET             ,1540,DEMOLITION CONTROL ACCOUNT    ,06/10/2011,3124629,926930,2170.00,BT                                      ,379335,ICT,TELECOMMUNICATION SERVICES    
FURNISHED ACCOMMODATION       ,8050,SOFT FURNISHINGS              ,06/10/2011,3124641,15503,2480.00,ALLEN UPHOLSTERY                        ,295763,Furniture,FURNITURE MNFRS - HOME & OFFIC
SUPPORT FOR TARGETED AND VULN ,8440,FEE EXPENSES                  ,06/10/2011,3124729,118,1500.00,CVED LTD                                ,557659,Unclassified Non Trade,SCHOOLS - LOCAL AUTHORITY     
STATUTORY ADVERTISING         ,8420,ADVERTISING AND PUBL-INVOICED ,06/10/2011,3124752,7739423,567.13,SHEFFIELD NEWSPAPERS LTD                ,208391,Education,NEWSPAPER & MAGAZINE PUBLISHER
PROGRAMME DELIVERY TEAM       ,5010,GENERAL BASIC PAY             ,06/10/2011,3125282,113081839,12969.00,ROTHERHAM M B C                         ,296984,Unclassified Non Trade,LOCAL GOVERNMENT              
CREATIVE SERVICES             ,9120,OTHER AGENCIES                ,06/10/2011,3125296,INV148524                ,500.00,A PINDER LTD                            ,202627,Facilities Management,COPYING & DUPLICATING SERVICES
MOBILITY STRATEGY TEAM        ,5610,AGENCY STAFF                  ,06/10/2011,3125299,CTL5190                  ,1173.00,CENTRAL TRAVEL SHEFFIELD LTD            ,203630,Transport,TAXIS & PRIVATE HIRE          
CARE PROCEEDINGS (LEGAL FEES) ,8470,LEGAL FEES                    ,06/10/2011,3125319,129179,2100.00,MS J L PEMBERTON                        ,470025,Legal Services,BARRISTERS                    
CARE PROCEEDINGS (LEGAL FEES) ,8470,LEGAL FEES                    ,06/10/2011,3125320,129795,1540.00,MR GORDON SEMPLE                        ,532712,Legal Services,BARRISTERS                    
FURNISHED ACCOMMODATION       ,8050,FLOOR COVERINGS               ,06/10/2011,3125331,14000,822.00,PYRAMID CARPETS                         ,243612,Building Construction Materials,CARPETS & RUGS - RETAIL       
FURNISHED ACCOMMODATION       ,8050,FLOOR COVERINGS               ,06/10/2011,3125336,14808,550.00,PYRAMID CARPETS                         ,243612,Building Construction Materials,CARPETS & RUGS - RETAIL       
HIST                          ,8620,COMPUTER MAINTENANCE          ,06/10/2011,3125339,91180935,5958.33,NORTHGATE INFORMATION SOLUTIONS LTD     ,432617,Consultancy,COMPUTER SYSTEMS & SOFTWARE (D
CONTRACT PROVIDER 2010/11     ,9120,OTHER AGENCIES                ,06/10/2011,3125342,43426,520.59,DARNALL FORUM                           ,375452,Unclassified Non Trade,CHARITIES & VOLUNTARY ORGANISA
CONTRACT PROVIDER 2010/11     ,9120,OTHER AGENCIES                ,06/10/2011,3125343,43425,557.98,DARNALL FORUM                           ,375452,Unclassified Non Trade,CHARITIES & VOLUNTARY ORGANISA
ESTATE SERVICES               ,6090,TIPPING COSTS                 ,06/10/2011,3125348,37134/1                  ,3465.88,R FLETCHER WASTE DISPOSAL LTD           ,473104,Environmental Services,WASTE DISPOSAL SERVICES       
MOBILITY STRATEGY TEAM        ,5610,AGENCY STAFF                  ,06/10/2011,3125387,CTL5189                  ,943.50,CENTRAL TRAVEL SHEFFIELD LTD            ,203630,Transport,TAXIS & PRIVATE HIRE          
CREATIVE SERVICES             ,9120,OTHER AGENCIES                ,06/10/2011,3125405,INV148525                ,840.00,A PINDER LTD                            ,202627,Facilities Management,COPYING & DUPLICATING SERVICES
MARKETING SHEFFIELD           ,8250,MARKETING EXPENSES            ,06/10/2011,3125407,3233,740.20,BAG IT DON'T BIN LTD                    ,479220,Clothing,"BAGS, BELTS & ACCESSORIES - MN"
EXTENDED LEARNING & SUPPORT   ,8440,FEE EXPENSES                  ,06/10/2011,3125420,550,1000.00,CHILDRENS UNIVERSITY                    ,515644,Unclassified Non Trade,UNIVERSITIES & MEDICAL SCHOOLS
SNIPS                         ,8180,GRANTS                        ,06/10/2011,3125595,40815,933.06,KIDZ @ WORK                             ,449345,Social Community Care,NURSERIES & CRECHES           
CREATIVE SERVICES             ,9120,OTHER AGENCIES                ,06/10/2011,3125619,769526A                  ,4134.00,INTOPRINT (UK) LIMITED                  ,319560,Facilities Management,PRINTERS                      
ELECTRIC WORKS BUSINESS CENTRE,8410,GENERAL OFFICE EXPENSES       ,06/10/2011,3125642,4552,11204.44,CREATIVE SPACE MANAGEMENT LTD (ELECTRIC ,464280,Unclassified Trade,PROPERTY & ESTATE MANAGEMENT  
YOUTH JUSTICE ISSP GRANT      ,6280,HIRE OF PREMISES              ,06/10/2011,3125651,12182,1058.00,BURTON STREET PROJECT                   ,342774,Unclassified Non Trade,CHARITIES & VOLUNTARY ORGANISA
SEN TRANSPORT                 ,7140,PUBLIC TRANSPORT COSTS        ,06/10/2011,3125652,2202034097,1854.54,WORCESTERSHIRE COUNTY COUNCIL           ,319571,Unclassified Non Trade,LOCAL GOVERNMENT              
MEETING ROOMS SOUTH WEST AREA ,8010,EQUIPMENT PURCHASE AND REPAIR ,06/10/2011,3125658,680733348,833.31,KONE PLC                                ,391508,Construction,DOORS - REPAIRING             
DELEGATED BUDGETS             ,6030,REPAIRS AND MTCE - RESPONSIVE ,06/10/2011,3125661,SKI0552396               ,927.00,CHUBB ELECTRONIC SECURITY               ,415902,Facilities Management,SECURITY SERVICES             
DOUGLAS ROAD                  ,8440,FEE EXPENSES                  ,06/10/2011,3125669,72233,2195.60,HARPERS ENVIRONMENTAL LTD               ,537022,Consultancy,ENVIRONMENTAL CONSULTANTS     
AGENCY STAFF                  ,5610,AGENCY STAFF - INVOICE        ,06/10/2011,3125672,CE020316525M             ,69867.24,REED                                    ,341818,Human Resources,EMPLOYMENT & RECRUITMENT AGENC
MINOR ADAPTATIONS             ,6020,REPAIRS AND MTCE - PROGRAMMED ,06/10/2011,3125881,1580/11                  ,653.00,PIKE JOINERY LIMITED                    ,453858,Construction,CARPENTERS & JOINERS          
MINOR ADAPTATIONS             ,6020,REPAIRS AND MTCE - PROGRAMMED ,06/10/2011,3125884,1577/11                  ,828.00,PIKE JOINERY LIMITED                    ,453858,Construction,CARPENTERS & JOINERS          
CREATIVE SERVICES             ,9120,OTHER AGENCIES                ,06/10/2011,3125898,17861,540.00,P & N CORPORATE MEDIA LTD               ,308965,Facilities Management,DESIGNERS - GRAPHIC           
CREATIVE SERVICES             ,9120,OTHER AGENCIES                ,06/10/2011,3125900,17844,555.00,P & N CORPORATE MEDIA LTD               ,308965,Facilities Management,DESIGNERS - GRAPHIC           
SPORTS EVENTS                 ,8230,HOSPITALITY                   ,06/10/2011,3126033,CFK0000086               ,1000.00,CLEARLY FOOD KITCHEN                    ,558797,Catering,CATERING FOOD & DRINK SUPPLIER
CENTRAL OPEN SPACE MAINTENANCE,6370,GROUNDS MTCE AND ARBORICULTURE,06/10/2011,3126035,121962,519.10,HILLSBOROUGH FENCING                    ,205531,Construction,FENCING CONTRACTORS           
PROGRAMME DELIVERY TEAM       ,8350,MISCELLANEOUS EXPENSES        ,06/10/2011,3126075,N2314                    ,1007.07,NIAGARA SPORTS & SOCIAL CLUB            ,446529,Human Resources,CONFERENCE SERVICES           
SHEFFIELD HOMES ACCOMODATION  ,6210,RENTS                         ,06/10/2011,3126090,ARC1112-56               ,916.67,STOCKSBRIDGE TOWN COUNCIL               ,295752,Unclassified Non Trade,LOCAL GOVERNMENT              
ALDINE HOUSE                  ,8350,MISCELLANEOUS EXPENSES        ,06/10/2011,3126092,SINCC3F17073             ,1801.69,OFSTED                                  ,466395,Unclassified Non Trade,EDUCATION AGENCIES & AUTHORITI
ELECTRIC WORKS BUSINESS CENTRE,8410,GENERAL OFFICE EXPENSES       ,06/10/2011,3126166,732,7555.08,CREATIVE SPACE MANAGEMENT               ,519562,Unclassified Trade,PROPERTY & ESTATE MANAGEMENT  
ECCLESFIELD SUPPORT UNIT      ,6150,ELECTRICITY                   ,06/10/2011,3126187,27140261,760.36,NPOWER NORTHERN LTD                     ,207191,Utilities,ELECTRICITY COMPANIES         
MFDS                          ,8370,MFD CHARGES                   ,06/10/2011,3126190,1100443018,6394.22,KONICA MINOLTA BUSINESS SOLUTIONS EAST  ,206267,ICT,OFFICE EQUIPMENT MNFRS & DISTR
OLIVE GROVE WORKSHOPS         ,7010,ROUTINE VEHICLE REPAIR & MTCE ,06/10/2011,3126191,216042187,1199.00,FUCHS LUBRICANTS (UK) PLC               ,443227,Vehicles Not Buses,LUBRICANT MNFRS & DISTRIBUTORS
MFDS                          ,8370,MFD CHARGES                   ,06/10/2011,3126194,1100473603,8252.96,KONICA MINOLTA BUSINESS SOLUTIONS EAST  ,206267,ICT,OFFICE EQUIPMENT MNFRS & DISTR
MFDS                          ,8370,MFD CHARGES                   ,06/10/2011,3126196,1100521890,12490.68,KONICA MINOLTA BUSINESS SOLUTIONS EAST  ,206267,ICT,OFFICE EQUIPMENT MNFRS & DISTR
MFDS                          ,8370,MFD CHARGES                   ,06/10/2011,3126197,1100457482,616.60,KONICA MINOLTA BUSINESS SOLUTIONS EAST  ,206267,ICT,OFFICE EQUIPMENT MNFRS & DISTR
MFDS                          ,8370,MFD CHARGES                   ,06/10/2011,3126198,1100521737,8732.84,KONICA MINOLTA BUSINESS SOLUTIONS EAST  ,206267,ICT,OFFICE EQUIPMENT MNFRS & DISTR
MFDS                          ,8370,MFD CHARGES                   ,06/10/2011,3126200,1100457476,589.35,KONICA MINOLTA BUSINESS SOLUTIONS EAST  ,206267,ICT,OFFICE EQUIPMENT MNFRS & DISTR
OLIVE GROVE WORKSHOPS         ,7010,ROUTINE VEHICLE REPAIR & MTCE ,06/10/2011,3126210,14214,519.22,G M C PARTSLINET/A KESP LTD             ,205021,Building Construction Materials,"NUTS, BOLTS & FIXINGS         "
STANIFORTH ROAD WORKSHOPS     ,7010,ROUTINE VEHICLE REPAIR & MTCE ,06/10/2011,3126217,14194,522.82,G M C PARTSLINET/A KESP LTD             ,205021,Building Construction Materials,"NUTS, BOLTS & FIXINGS         "
BIS TELECOMMS                 ,8600,MOBILE TELEPHONES - INVOICE   ,06/10/2011,3126236,703878070,15287.85,ORANGE PERSONAL COMMUNICATIONS          ,207254,ICT,MOBILE PHONES                 
BIS TELECOMMS                 ,8600,MOBILE TELEPHONES - INVOICE   ,06/10/2011,3126238,703853588,32201.85,ORANGE PERSONAL COMMUNICATIONS          ,207254,ICT,MOBILE PHONES                 
OLIVE GROVE WORKSHOPS         ,7010,ROUTINE VEHICLE REPAIR & MTCE ,06/10/2011,3126239,151021,517.20,F R SHARROCK LTD                        ,440994,Unclassified Trade,AGRICULTURAL ENGINEERS        
ALDINE HOUSE                  ,6150,ELECTRICITY                   ,06/10/2011,3126246,27140147,5896.45,NPOWER NORTHERN LTD                     ,207191,Utilities,ELECTRICITY COMPANIES         
FIRTH PARK BUILDING           ,6150,ELECTRICITY                   ,06/10/2011,3126252,27140281,2115.03,NPOWER NORTHERN LTD                     ,207191,Utilities,ELECTRICITY COMPANIES         
TRAINING - BROCKWOOD          ,6150,ELECTRICITY                   ,06/10/2011,3126259,27140189,1222.07,NPOWER NORTHERN LTD                     ,207191,Utilities,ELECTRICITY COMPANIES         
MULBERRY LODGE                ,6150,ELECTRICITY                   ,06/10/2011,3126339,27140444,562.88,NPOWER NORTHERN LTD                     ,207191,Utilities,ELECTRICITY COMPANIES         
MEERSBROOK PARK               ,6150,ELECTRICITY                   ,06/10/2011,3126342,27140423,955.76,NPOWER NORTHERN LTD                     ,207191,Utilities,ELECTRICITY COMPANIES         
CARBROOK HALL                 ,6150,ELECTRICITY                   ,06/10/2011,3126343,27140105,1934.10,NPOWER NORTHERN LTD                     ,207191,Utilities,ELECTRICITY COMPANIES         
WOODLANE COUNTRYSIDE CENTRE   ,6150,ELECTRICITY                   ,06/10/2011,3126352,27140674,1048.47,NPOWER NORTHERN LTD                     ,207191,Utilities,ELECTRICITY COMPANIES         
OLIVE GROVE WORKSHOPS         ,7010,ROUTINE VEHICLE REPAIR & MTCE ,06/10/2011,3126353,60858147,595.43,JOHNSTON SWEEPERS LTD                   ,440985,Vehicles Not Buses,COMMERCIAL VEHICLE MNFRS      
ACRES HILL                    ,6150,ELECTRICITY                   ,06/10/2011,3126354,27140144,1969.68,NPOWER NORTHERN LTD                     ,207191,Utilities,ELECTRICITY COMPANIES         
CARBROOK HALL                 ,6150,ELECTRICITY                   ,06/10/2011,3126357,27140106,3092.12,NPOWER NORTHERN LTD                     ,207191,Utilities,ELECTRICITY COMPANIES         
CORPORATE MAIL                ,8570,POSTAGE & DELIVERY            ,06/10/2011,3126360,9035739080,10722.26,ROYAL MAIL GROUP PLC                    ,295326,Mail Services,DELIVERY SERVICES             
PURCHASING ELDERLY            ,9190,DIRECT PAYMENTS               ,06/10/2011,3126042,J418139                  ,1619.76,REDACTED PERSONAL DATA,557470,Social Community Care,CAREFIRST DIRECT PAYMENTS     
PURCHASING ELDERLY            ,9190,DIRECT PAYMENTS               ,06/10/2011,3126043,J418139                  ,1834.20,REDACTED PERSONAL DATA,557844,Social Community Care,CAREFIRST DIRECT PAYMENTS     
PURCHASING                    ,9190,DIRECT PAYMENTS               ,06/10/2011,3126044,J418139                  ,3780.00,REDACTED PERSONAL DATA,558068,Social Community Care,CAREFIRST DIRECT PAYMENTS     
PURCHASING ELDERLY            ,9190,DIRECT PAYMENTS               ,06/10/2011,3126045,J418139                  ,2697.67,REDACTED PERSONAL DATA,558812,Social Community Care,CAREFIRST DIRECT PAYMENTS     
PURCHASING ELDERLY            ,9190,DIRECT PAYMENTS               ,06/10/2011,3126046,J418139                  ,5815.16,REDACTED PERSONAL DATA,556288,Social Community Care,CAREFIRST DIRECT PAYMENTS     
PURCHASING                    ,9190,DIRECT PAYMENTS               ,06/10/2011,3126047,J418139                  ,6143.60,REDACTED PERSONAL DATA,556296,Social Community Care,CAREFIRST DIRECT PAYMENTS     
PURCHASING LEARNING DISABILITI,9190,DIRECT PAYMENTS               ,06/10/2011,3126048,J418139                  ,5285.54,REDACTED PERSONAL DATA,556454,Social Community Care,CAREFIRST DIRECT PAYMENTS     
PHYSICAL DISABILITIES PURCHASI,9190,DIRECT PAYMENTS               ,06/10/2011,3126049,J418139                  ,1102.49,REDACTED PERSONAL DATA,556457,Social Community Care,CAREFIRST DIRECT PAYMENTS     
PURCHASING ELDERLY            ,9190,DIRECT PAYMENTS               ,06/10/2011,3126049,J418139                  ,2140.26,REDACTED PERSONAL DATA,556457,Social Community Care,CAREFIRST DIRECT PAYMENTS     
PURCHASING ELDERLY            ,9190,DIRECT PAYMENTS               ,06/10/2011,3126050,J418139                  ,1159.12,REDACTED PERSONAL DATA,557468,Social Community Care,CAREFIRST DIRECT PAYMENTS     
LEAVING CARE                  ,9270,INDEPENDENT FOSTERING         ,07/10/2011,3126703,308493,3604.44,REDACTED PERSONAL DATA,328618,Social Community Care,ADOPTION & FOSTERING          
INDEPENDENT FOSTERING PLACEMEN,9270,INDEPENDENT FOSTERING         ,07/10/2011,3126668,22645,3703.00,REDACTED PERSONAL DATA,366456,Social Community Care,ADOPTION & FOSTERING          
INDEPENDENT FOSTERING PLACEMEN,9270,INDEPENDENT FOSTERING         ,07/10/2011,3126669,22646,3703.00,REDACTED PERSONAL DATA,366456,Social Community Care,ADOPTION & FOSTERING          
INDEPENDENT FOSTERING PLACEMEN,9270,INDEPENDENT FOSTERING         ,07/10/2011,3126670,22647,2955.68,REDACTED PERSONAL DATA,366456,Social Community Care,ADOPTION & FOSTERING          
LEAVING CARE                  ,9270,INDEPENDENT FOSTERING         ,07/10/2011,3126671,22660,3664.08,REDACTED PERSONAL DATA,366456,Social Community Care,ADOPTION & FOSTERING          
INDEPENDENT FOSTERING PLACEMEN,9270,INDEPENDENT FOSTERING         ,07/10/2011,3126672,2412,2832.44,REDACTED PERSONAL DATA,344830,Social Community Care,ADOPTION & FOSTERING          
INDEPENDENT FOSTERING PLACEMEN,9270,INDEPENDENT FOSTERING         ,07/10/2011,3126673,2413,2507.96,REDACTED PERSONAL DATA,344830,Social Community Care,ADOPTION & FOSTERING          
INDEPENDENT FOSTERING PLACEMEN,9270,INDEPENDENT FOSTERING         ,07/10/2011,3126674,3014,3151.68,REDACTED PERSONAL DATA,452499,Social Community Care,ADOPTION & FOSTERING          
INDEPENDENT FOSTERING PLACEMEN,9270,INDEPENDENT FOSTERING         ,07/10/2011,3126675,3015,3250.52,REDACTED PERSONAL DATA,452499,Social Community Care,ADOPTION & FOSTERING          
INDEPENDENT FOSTERING PLACEMEN,9270,INDEPENDENT FOSTERING         ,07/10/2011,3126676,3016,3250.52,REDACTED PERSONAL DATA,452499,Social Community Care,ADOPTION & FOSTERING          
INDEPENDENT FOSTERING PLACEMEN,9270,INDEPENDENT FOSTERING         ,07/10/2011,3126677,3017,3320.52,REDACTED PERSONAL DATA,452499,Social Community Care,ADOPTION & FOSTERING          
INDEPENDENT FOSTERING PLACEMEN,9270,INDEPENDENT FOSTERING         ,07/10/2011,3126678,3018,4677.96,REDACTED PERSONAL DATA,452499,Social Community Care,ADOPTION & FOSTERING          
LEAVING CARE                  ,9270,INDEPENDENT FOSTERING         ,07/10/2011,3126679,308469,3604.44,REDACTED PERSONAL DATA,328618,Social Community Care,ADOPTION & FOSTERING          
INDEPENDENT FOSTERING PLACEMEN,9270,INDEPENDENT FOSTERING         ,07/10/2011,3126680,308470,3178.00,REDACTED PERSONAL DATA,328618,Social Community Care,ADOPTION & FOSTERING          
INDEPENDENT FOSTERING PLACEMEN,9270,INDEPENDENT FOSTERING         ,07/10/2011,3126681,308471,3676.40,REDACTED PERSONAL DATA,328618,Social Community Care,ADOPTION & FOSTERING          
INDEPENDENT FOSTERING PLACEMEN,9270,INDEPENDENT FOSTERING         ,07/10/2011,3126682,308472,2886.80,REDACTED PERSONAL DATA,328618,Social Community Care,ADOPTION & FOSTERING          
INDEPENDENT FOSTERING PLACEMEN,9270,INDEPENDENT FOSTERING         ,07/10/2011,3126683,308473,2886.80,REDACTED PERSONAL DATA,328618,Social Community Care,ADOPTION & FOSTERING          
INDEPENDENT FOSTERING PLACEMEN,9270,INDEPENDENT FOSTERING         ,07/10/2011,3126684,308474,2886.80,REDACTED PERSONAL DATA,328618,Social Community Care,ADOPTION & FOSTERING          
INDEPENDENT FOSTERING PLACEMEN,9270,INDEPENDENT FOSTERING         ,07/10/2011,3126685,308475,5776.96,REDACTED PERSONAL DATA,328618,Social Community Care,ADOPTION & FOSTERING          
INDEPENDENT FOSTERING PLACEMEN,9270,INDEPENDENT FOSTERING         ,07/10/2011,3126686,308476,3676.40,REDACTED PERSONAL DATA,328618,Social Community Care,ADOPTION & FOSTERING          
INDEPENDENT FOSTERING PLACEMEN,9270,INDEPENDENT FOSTERING         ,07/10/2011,3126687,308477,2970.24,REDACTED PERSONAL DATA,328618,Social Community Care,ADOPTION & FOSTERING          
LEAVING CARE                  ,9270,INDEPENDENT FOSTERING         ,07/10/2011,3126688,308478,3604.44,REDACTED PERSONAL DATA,328618,Social Community Care,ADOPTION & FOSTERING          
INDEPENDENT FOSTERING PLACEMEN,9270,INDEPENDENT FOSTERING         ,07/10/2011,3126692,308482,3604.44,REDACTED PERSONAL DATA,328618,Social Community Care,ADOPTION & FOSTERING          
CWD INDEPENDENT PLACEMENTS    ,9270,INDEPENDENT FOSTERING         ,07/10/2011,3126689,308479,5061.00,REDACTED PERSONAL DATA,328618,Social Community Care,ADOPTION & FOSTERING          
INDEPENDENT FOSTERING PLACEMEN,9270,INDEPENDENT FOSTERING         ,07/10/2011,3126693,308483,3604.44,REDACTED PERSONAL DATA,328618,Social Community Care,ADOPTION & FOSTERING          
INDEPENDENT FOSTERING PLACEMEN,9270,INDEPENDENT FOSTERING         ,07/10/2011,3126690,308480,3676.40,REDACTED PERSONAL DATA,328618,Social Community Care,ADOPTION & FOSTERING          
LEAVING CARE                  ,9270,INDEPENDENT FOSTERING         ,07/10/2011,3126694,308484,3604.44,REDACTED PERSONAL DATA,328618,Social Community Care,ADOPTION & FOSTERING          
INDEPENDENT FOSTERING PLACEMEN,9270,INDEPENDENT FOSTERING         ,07/10/2011,3126691,308481,3604.44,REDACTED PERSONAL DATA,328618,Social Community Care,ADOPTION & FOSTERING          
INDEPENDENT FOSTERING PLACEMEN,9270,INDEPENDENT FOSTERING         ,07/10/2011,3126695,308485,3604.44,REDACTED PERSONAL DATA,328618,Social Community Care,ADOPTION & FOSTERING          
LEAVING CARE                  ,9270,INDEPENDENT FOSTERING         ,07/10/2011,3126696,308486,3604.44,REDACTED PERSONAL DATA,328618,Social Community Care,ADOPTION & FOSTERING          
INDEPENDENT FOSTERING PLACEMEN,9270,INDEPENDENT FOSTERING         ,07/10/2011,3126697,308487,3604.44,REDACTED PERSONAL DATA,328618,Social Community Care,ADOPTION & FOSTERING          
INDEPENDENT FOSTERING PLACEMEN,9270,INDEPENDENT FOSTERING         ,07/10/2011,3126698,308488,2843.40,REDACTED PERSONAL DATA,328618,Social Community Care,ADOPTION & FOSTERING          
INDEPENDENT FOSTERING PLACEMEN,9270,INDEPENDENT FOSTERING         ,07/10/2011,3126699,308489,3047.80,REDACTED PERSONAL DATA,328618,Social Community Care,ADOPTION & FOSTERING          
INDEPENDENT FOSTERING PLACEMEN,9270,INDEPENDENT FOSTERING         ,07/10/2011,3126700,308490,3604.44,REDACTED PERSONAL DATA,328618,Social Community Care,ADOPTION & FOSTERING          
INDEPENDENT FOSTERING PLACEMEN,9270,INDEPENDENT FOSTERING         ,07/10/2011,3126701,308491,2723.56,REDACTED PERSONAL DATA,328618,Social Community Care,ADOPTION & FOSTERING          
INDEPENDENT FOSTERING PLACEMEN,9270,INDEPENDENT FOSTERING         ,07/10/2011,3126702,308492,2723.56,REDACTED PERSONAL DATA,328618,Social Community Care,ADOPTION & FOSTERING          
INDEPENDENT FOSTERING PLACEMEN,9270,INDEPENDENT FOSTERING         ,07/10/2011,3126704,101457,830.00,REDACTED PERSONAL DATA,349291,Social Community Care,ADOPTION & FOSTERING          
CWD INDEPENDENT PLACEMENTS    ,9270,INDEPENDENT FOSTERING         ,07/10/2011,3126705,308494,6006.00,REDACTED PERSONAL DATA,328618,Social Community Care,ADOPTION & FOSTERING          
CWD INDEPENDENT PLACEMENTS    ,9270,INDEPENDENT FOSTERING         ,07/10/2011,3126706,308495,5243.28,REDACTED PERSONAL DATA,328618,Social Community Care,ADOPTION & FOSTERING          
LEAVING CARE                  ,9270,INDEPENDENT FOSTERING         ,07/10/2011,3126707,308496,3604.44,REDACTED PERSONAL DATA,328618,Social Community Care,ADOPTION & FOSTERING          
LEAVING CARE                  ,9270,INDEPENDENT FOSTERING         ,07/10/2011,3126708,308497,3604.44,REDACTED PERSONAL DATA,328618,Social Community Care,ADOPTION & FOSTERING          
INDEPENDENT FOSTERING PLACEMEN,9270,INDEPENDENT FOSTERING         ,07/10/2011,3126709,308498,4423.72,REDACTED PERSONAL DATA,328618,Social Community Care,ADOPTION & FOSTERING          
INDEPENDENT FOSTERING PLACEMEN,9270,INDEPENDENT FOSTERING         ,07/10/2011,3126710,308499,4692.52,REDACTED PERSONAL DATA,328618,Social Community Care,ADOPTION & FOSTERING          
LEAVING CARE                  ,9270,INDEPENDENT FOSTERING         ,07/10/2011,3126711,308500,3604.44,REDACTED PERSONAL DATA,328618,Social Community Care,ADOPTION & FOSTERING          
LEAVING CARE                  ,9270,INDEPENDENT FOSTERING         ,07/10/2011,3126712,308502,3604.44,REDACTED PERSONAL DATA,328618,Social Community Care,ADOPTION & FOSTERING          
INDEPENDENT FOSTERING PLACEMEN,9270,INDEPENDENT FOSTERING         ,07/10/2011,3126713,308503,3604.44,REDACTED PERSONAL DATA,328618,Social Community Care,ADOPTION & FOSTERING          
LEAVING CARE                  ,9270,INDEPENDENT FOSTERING         ,07/10/2011,3126714,308504,3604.44,REDACTED PERSONAL DATA,328618,Social Community Care,ADOPTION & FOSTERING          
INDEPENDENT FOSTERING PLACEMEN,9270,INDEPENDENT FOSTERING         ,07/10/2011,3126715,101458,874.00,REDACTED PERSONAL DATA,349291,Social Community Care,ADOPTION & FOSTERING          
INDEPENDENT FOSTERING PLACEMEN,9270,INDEPENDENT FOSTERING         ,07/10/2011,3126716,308505,5160.40,REDACTED PERSONAL DATA,328618,Social Community Care,ADOPTION & FOSTERING          
INDEPENDENT FOSTERING PLACEMEN,9270,INDEPENDENT FOSTERING         ,07/10/2011,3126717,308506,5868.80,REDACTED PERSONAL DATA,328618,Social Community Care,ADOPTION & FOSTERING          
INDEPENDENT FOSTERING PLACEMEN,9270,INDEPENDENT FOSTERING         ,07/10/2011,3126718,308507,3604.44,REDACTED PERSONAL DATA,328618,Social Community Care,ADOPTION & FOSTERING          
INDEPENDENT FOSTERING PLACEMEN,9270,INDEPENDENT FOSTERING         ,07/10/2011,3126719,308508,3604.44,REDACTED PERSONAL DATA,328618,Social Community Care,ADOPTION & FOSTERING          
LEAVING CARE                  ,9270,INDEPENDENT FOSTERING         ,07/10/2011,3126720,308510,3604.44,REDACTED PERSONAL DATA,328618,Social Community Care,ADOPTION & FOSTERING          
INDEPENDENT FOSTERING PLACEMEN,9270,INDEPENDENT FOSTERING         ,07/10/2011,3126721,308511,2843.40,REDACTED PERSONAL DATA,328618,Social Community Care,ADOPTION & FOSTERING          
INDEPENDENT FOSTERING PLACEMEN,9270,INDEPENDENT FOSTERING         ,07/10/2011,3126722,308512,2843.40,REDACTED PERSONAL DATA,328618,Social Community Care,ADOPTION & FOSTERING          
INDEPENDENT FOSTERING PLACEMEN,9270,INDEPENDENT FOSTERING         ,07/10/2011,3126723,308513,3604.44,REDACTED PERSONAL DATA,328618,Social Community Care,ADOPTION & FOSTERING          
LEAVING CARE                  ,9270,INDEPENDENT FOSTERING         ,07/10/2011,3126724,308515,3290.00,REDACTED PERSONAL DATA,328618,Social Community Care,ADOPTION & FOSTERING          
LEAVING CARE                  ,9270,INDEPENDENT FOSTERING         ,07/10/2011,3126725,308516,3604.44,REDACTED PERSONAL DATA,328618,Social Community Care,ADOPTION & FOSTERING          
INDEPENDENT FOSTERING PLACEMEN,9270,INDEPENDENT FOSTERING         ,07/10/2011,3126726,101459,855.00,REDACTED PERSONAL DATA,349291,Social Community Care,ADOPTION & FOSTERING          
INDEPENDENT FOSTERING PLACEMEN,9270,INDEPENDENT FOSTERING         ,07/10/2011,3126727,308517,3459.96,REDACTED PERSONAL DATA,328618,Social Community Care,ADOPTION & FOSTERING          
INDEPENDENT FOSTERING PLACEMEN,9270,INDEPENDENT FOSTERING         ,07/10/2011,3126728,308518,3604.44,REDACTED PERSONAL DATA,328618,Social Community Care,ADOPTION & FOSTERING          
INDEPENDENT FOSTERING PLACEMEN,9270,INDEPENDENT FOSTERING         ,07/10/2011,3126729,308519,3532.20,REDACTED PERSONAL DATA,328618,Social Community Care,ADOPTION & FOSTERING          
LEAVING CARE                  ,9270,INDEPENDENT FOSTERING         ,07/10/2011,3126730,308521,3604.44,REDACTED PERSONAL DATA,328618,Social Community Care,ADOPTION & FOSTERING          
INDEPENDENT FOSTERING PLACEMEN,9270,INDEPENDENT FOSTERING         ,07/10/2011,3126731,308522,3604.44,REDACTED PERSONAL DATA,328618,Social Community Care,ADOPTION & FOSTERING          
INDEPENDENT FOSTERING PLACEMEN,9270,INDEPENDENT FOSTERING         ,07/10/2011,3126732,308523,3604.44,REDACTED PERSONAL DATA,328618,Social Community Care,ADOPTION & FOSTERING          
CWD INDEPENDENT PLACEMENTS    ,9270,INDEPENDENT FOSTERING         ,07/10/2011,3126733,308524,5593.28,REDACTED PERSONAL DATA,328618,Social Community Care,ADOPTION & FOSTERING          
INDEPENDENT FOSTERING PLACEMEN,9270,INDEPENDENT FOSTERING         ,07/10/2011,3126741,308535,2843.40,REDACTED PERSONAL DATA,328618,Social Community Care,ADOPTION & FOSTERING          
INDEPENDENT FOSTERING PLACEMEN,9270,INDEPENDENT FOSTERING         ,07/10/2011,3126734,308525,2886.80,REDACTED PERSONAL DATA,328618,Social Community Care,ADOPTION & FOSTERING          
INDEPENDENT FOSTERING PLACEMEN,9270,INDEPENDENT FOSTERING         ,07/10/2011,3126735,308526,2886.80,REDACTED PERSONAL DATA,328618,Social Community Care,ADOPTION & FOSTERING          
INDEPENDENT FOSTERING PLACEMEN,9270,INDEPENDENT FOSTERING         ,07/10/2011,3126736,308527,2886.80,REDACTED PERSONAL DATA,328618,Social Community Care,ADOPTION & FOSTERING          
INDEPENDENT FOSTERING PLACEMEN,9270,INDEPENDENT FOSTERING         ,07/10/2011,3126737,101460,855.00,REDACTED PERSONAL DATA,349291,Social Community Care,ADOPTION & FOSTERING          
INDEPENDENT FOSTERING PLACEMEN,9270,INDEPENDENT FOSTERING         ,07/10/2011,3126738,308528,5246.92,REDACTED PERSONAL DATA,328618,Social Community Care,ADOPTION & FOSTERING          
INDEPENDENT FOSTERING PLACEMEN,9270,INDEPENDENT FOSTERING         ,07/10/2011,3126739,308530,3604.44,REDACTED PERSONAL DATA,328618,Social Community Care,ADOPTION & FOSTERING          
INDEPENDENT FOSTERING PLACEMEN,9270,INDEPENDENT FOSTERING         ,07/10/2011,3126748,308544,2741.85,REDACTED PERSONAL DATA,328618,Social Community Care,ADOPTION & FOSTERING          
INDEPENDENT FOSTERING PLACEMEN,9270,INDEPENDENT FOSTERING         ,07/10/2011,3126740,308533,3047.80,REDACTED PERSONAL DATA,328618,Social Community Care,ADOPTION & FOSTERING          
LEAVING CARE                  ,9270,INDEPENDENT FOSTERING         ,07/10/2011,3126742,308537,3676.40,REDACTED PERSONAL DATA,328618,Social Community Care,ADOPTION & FOSTERING          
INDEPENDENT FOSTERING PLACEMEN,9270,INDEPENDENT FOSTERING         ,07/10/2011,3126743,308538,3676.40,REDACTED PERSONAL DATA,328618,Social Community Care,ADOPTION & FOSTERING          
INDEPENDENT FOSTERING PLACEMEN,9270,INDEPENDENT FOSTERING         ,07/10/2011,3126744,308539,3604.44,REDACTED PERSONAL DATA,328618,Social Community Care,ADOPTION & FOSTERING          
LEAVING CARE                  ,9270,INDEPENDENT FOSTERING         ,07/10/2011,3126745,308540,3604.44,REDACTED PERSONAL DATA,328618,Social Community Care,ADOPTION & FOSTERING          
INDEPENDENT FOSTERING PLACEMEN,9270,INDEPENDENT FOSTERING         ,07/10/2011,3126746,308541,3604.44,REDACTED PERSONAL DATA,328618,Social Community Care,ADOPTION & FOSTERING          
INDEPENDENT FOSTERING PLACEMEN,9270,INDEPENDENT FOSTERING         ,07/10/2011,3126747,308543,2843.40,REDACTED PERSONAL DATA,328618,Social Community Care,ADOPTION & FOSTERING          
INDEPENDENT FOSTERING PLACEMEN,9270,INDEPENDENT FOSTERING         ,07/10/2011,3126772,15205,3411.80,REDACTED PERSONAL DATA,352082,Social Community Care,ADOPTION & FOSTERING          
LEAVING CARE                  ,9270,INDEPENDENT FOSTERING         ,07/10/2011,3126769,12407,3412.44,REDACTED PERSONAL DATA,433761,Social Community Care,ADOPTION & FOSTERING          
INDEPENDENT FOSTERING PLACEMEN,9270,INDEPENDENT FOSTERING         ,07/10/2011,3126770,12408,3412.08,REDACTED PERSONAL DATA,433761,Social Community Care,ADOPTION & FOSTERING          
INDEPENDENT FOSTERING PLACEMEN,9270,INDEPENDENT FOSTERING         ,07/10/2011,3126771,12409,2731.96,REDACTED PERSONAL DATA,433761,Social Community Care,ADOPTION & FOSTERING          
INDEPENDENT FOSTERING PLACEMEN,9270,INDEPENDENT FOSTERING         ,07/10/2011,3126773,15208,3411.80,REDACTED PERSONAL DATA,352082,Social Community Care,ADOPTION & FOSTERING          
INDEPENDENT FOSTERING PLACEMEN,9270,INDEPENDENT FOSTERING         ,07/10/2011,3126774,15211,3411.80,REDACTED PERSONAL DATA,352082,Social Community Care,ADOPTION & FOSTERING          
INDEPENDENT FOSTERING PLACEMEN,9270,INDEPENDENT FOSTERING         ,07/10/2011,3126775,15212,3411.80,REDACTED PERSONAL DATA,352082,Social Community Care,ADOPTION & FOSTERING          
INDEPENDENT FOSTERING PLACEMEN,9270,INDEPENDENT FOSTERING         ,07/10/2011,3126776,15213,3411.80,REDACTED PERSONAL DATA,352082,Social Community Care,ADOPTION & FOSTERING          
INDEPENDENT FOSTERING PLACEMEN,9270,INDEPENDENT FOSTERING         ,07/10/2011,3126777,15214,3411.80,REDACTED PERSONAL DATA,352082,Social Community Care,ADOPTION & FOSTERING          
INDEPENDENT FOSTERING PLACEMEN,9270,INDEPENDENT FOSTERING         ,07/10/2011,3126778,15216,3411.80,REDACTED PERSONAL DATA,352082,Social Community Care,ADOPTION & FOSTERING          
INDEPENDENT FOSTERING PLACEMEN,9270,INDEPENDENT FOSTERING         ,07/10/2011,3126779,15217,3411.80,REDACTED PERSONAL DATA,352082,Social Community Care,ADOPTION & FOSTERING          
INDEPENDENT FOSTERING PLACEMEN,9270,INDEPENDENT FOSTERING         ,07/10/2011,3126780,15218,3411.80,REDACTED PERSONAL DATA,352082,Social Community Care,ADOPTION & FOSTERING          
INDEPENDENT FOSTERING PLACEMEN,9270,INDEPENDENT FOSTERING         ,07/10/2011,3126781,15219,3411.80,REDACTED PERSONAL DATA,352082,Social Community Care,ADOPTION & FOSTERING          
INDEPENDENT FOSTERING PLACEMEN,9270,INDEPENDENT FOSTERING         ,07/10/2011,3126782,15220,3411.80,REDACTED PERSONAL DATA,352082,Social Community Care,ADOPTION & FOSTERING          
INDEPENDENT FOSTERING PLACEMEN,9270,INDEPENDENT FOSTERING         ,07/10/2011,3126783,15221,3411.80,REDACTED PERSONAL DATA,352082,Social Community Care,ADOPTION & FOSTERING          
INDEPENDENT FOSTERING PLACEMEN,9270,INDEPENDENT FOSTERING         ,07/10/2011,3126784,15222,3411.80,REDACTED PERSONAL DATA,352082,Social Community Care,ADOPTION & FOSTERING          
LEAVING CARE                  ,9270,INDEPENDENT FOSTERING         ,07/10/2011,3126785,15223,3411.80,REDACTED PERSONAL DATA,352082,Social Community Care,ADOPTION & FOSTERING          
INDEPENDENT FOSTERING PLACEMEN,9270,INDEPENDENT FOSTERING         ,07/10/2011,3126786,15226,3411.80,REDACTED PERSONAL DATA,352082,Social Community Care,ADOPTION & FOSTERING          
INDEPENDENT FOSTERING PLACEMEN,9270,INDEPENDENT FOSTERING         ,07/10/2011,3126787,15227,3411.80,REDACTED PERSONAL DATA,352082,Social Community Care,ADOPTION & FOSTERING          
INDEPENDENT FOSTERING PLACEMEN,9270,INDEPENDENT FOSTERING         ,07/10/2011,3126788,15228,3411.80,REDACTED PERSONAL DATA,352082,Social Community Care,ADOPTION & FOSTERING          
INDEPENDENT FOSTERING PLACEMEN,9270,INDEPENDENT FOSTERING         ,07/10/2011,3126789,15229,3411.80,REDACTED PERSONAL DATA,352082,Social Community Care,ADOPTION & FOSTERING          
INDEPENDENT FOSTERING PLACEMEN,9270,INDEPENDENT FOSTERING         ,07/10/2011,3126790,15230,3411.80,REDACTED PERSONAL DATA,352082,Social Community Care,ADOPTION & FOSTERING          
INDEPENDENT FOSTERING PLACEMEN,9270,INDEPENDENT FOSTERING         ,07/10/2011,3126791,15232,3411.80,REDACTED PERSONAL DATA,352082,Social Community Care,ADOPTION & FOSTERING          
INDEPENDENT FOSTERING PLACEMEN,9270,INDEPENDENT FOSTERING         ,07/10/2011,3126792,15236,3411.80,REDACTED PERSONAL DATA,352082,Social Community Care,ADOPTION & FOSTERING          
INDEPENDENT FOSTERING PLACEMEN,9270,INDEPENDENT FOSTERING         ,07/10/2011,3126793,15240,3411.80,REDACTED PERSONAL DATA,352082,Social Community Care,ADOPTION & FOSTERING          
INDEPENDENT FOSTERING PLACEMEN,9270,INDEPENDENT FOSTERING         ,07/10/2011,3126794,15241,3411.80,REDACTED PERSONAL DATA,352082,Social Community Care,ADOPTION & FOSTERING          
UASC/ASYLUM UNDER 16 BUDGET   ,9270,INDEPENDENT FOSTERING         ,07/10/2011,3126903,308542,3604.44,REDACTED PERSONAL DATA,328618,Social Community Care,ADOPTION & FOSTERING          
IN HOUSE FOSTER PLACEMENT     ,9270,IN-HOUSE FOSTERING            ,07/10/2011,3126948,100069 20111006 32615    ,996.00,REDACTED PERSONAL DATA,333449,Social Community Care,ADOPTION & FOSTERING          
IN HOUSE FOSTER PLACEMENT     ,9270,IN-HOUSE FOSTERING            ,07/10/2011,3126953,149394 20111006 32615    ,1851.00,REDACTED PERSONAL DATA,453957,Social Community Care,ADOPTION & FOSTERING          
IN HOUSE FOSTER PLACEMENT     ,9270,IN-HOUSE FOSTERING            ,07/10/2011,3126954,149405 20111006 32615    ,1244.00,REDACTED PERSONAL DATA,408920,Social Community Care,ADOPTION & FOSTERING          
IN HOUSE FOSTER PLACEMENT     ,9270,IN-HOUSE FOSTERING            ,07/10/2011,3126958,151365 20111006 32615    ,961.86,REDACTED PERSONAL DATA,442473,Social Community Care,ADOPTION & FOSTERING          
IN HOUSE FOSTER PLACEMENT     ,9270,IN-HOUSE FOSTERING            ,07/10/2011,3126963,156226 20111006 32615    ,622.00,REDACTED PERSONAL DATA,549255,Social Community Care,ADOPTION & FOSTERING          
IN HOUSE FOSTER PLACEMENT     ,9270,IN-HOUSE FOSTERING            ,07/10/2011,3126973,160246 20111006 32615    ,674.42,REDACTED PERSONAL DATA,459061,Social Community Care,ADOPTION & FOSTERING          
IN HOUSE FOSTER PLACEMENT     ,9270,IN-HOUSE FOSTERING            ,07/10/2011,3126975,16180 20111006 32615     ,996.00,REDACTED PERSONAL DATA,333718,Social Community Care,ADOPTION & FOSTERING          
IN HOUSE FOSTER PLACEMENT     ,9270,IN-HOUSE FOSTERING            ,07/10/2011,3126976,161854 20111006 32615    ,1550.56,REDACTED PERSONAL DATA,502396,Social Community Care,ADOPTION & FOSTERING          
RESIDENCE ORDERS              ,9270,RESIDENCE ORDERS              ,07/10/2011,3126982,104921 20111006 32615    ,667.14,REDACTED PERSONAL DATA,550266,Unclassified Non Trade,OUT OF SCOPE FOR SIC MONITORIN
ADOPTION ALLOWANCES           ,9270,ADOPTION ALLOWANCES           ,07/10/2011,3126984,162849 20111006 32615    ,616.46,REDACTED PERSONAL DATA,383481,Social Community Care,ADOPTION & FOSTERING          
IN HOUSE FOSTER PLACEMENT     ,9270,IN-HOUSE FOSTERING            ,07/10/2011,3126996,167097 20111006 32615    ,996.00,REDACTED PERSONAL DATA,424791,Social Community Care,ADOPTION & FOSTERING          
IN HOUSE FOSTER PLACEMENT     ,9270,IN-HOUSE FOSTERING            ,07/10/2011,3126999,16889 20111006 32615     ,548.57,REDACTED PERSONAL DATA,368064,Social Community Care,ADOPTION & FOSTERING          
ADOPTION ALLOWANCES           ,9270,ADOPTION ALLOWANCES           ,07/10/2011,3127008,173483 20111006 32615    ,524.84,REDACTED PERSONAL DATA,534228,Social Community Care,ADOPTION & FOSTERING          
ADOPTION ALLOWANCES           ,9270,ADOPTION ALLOWANCES           ,07/10/2011,3127019,179524 20111006 32615    ,615.30,REDACTED PERSONAL DATA,338804,Social Community Care,ADOPTION & FOSTERING          
IN HOUSE FOSTER PLACEMENT     ,9270,IN-HOUSE FOSTERING            ,07/10/2011,3127021,179693 20111006 32615    ,1156.00,REDACTED PERSONAL DATA,521983,Social Community Care,ADOPTION & FOSTERING          
IN HOUSE FOSTER PLACEMENT     ,9270,IN-HOUSE FOSTERING            ,07/10/2011,3127033,18403 20111006 32615     ,663.71,REDACTED PERSONAL DATA,333624,Social Community Care,ADOPTION & FOSTERING          
RESIDENCE ORDERS              ,9270,RESIDENCE ORDERS              ,07/10/2011,3127035,184267 20111006 32615    ,513.96,REDACTED PERSONAL DATA,455207,Social Community Care,ADOPTION & FOSTERING          
ADOPTION ALLOWANCES           ,9270,ADOPTION ALLOWANCES           ,07/10/2011,3127038,184782 20111006 32615    ,615.30,REDACTED PERSONAL DATA,373269,Social Community Care,ADOPTION & FOSTERING          
IN HOUSE FOSTER PLACEMENT     ,9270,IN-HOUSE FOSTERING            ,07/10/2011,3127039,185557 20111006 32615    ,1044.00,REDACTED PERSONAL DATA,462682,Social Community Care,ADOPTION & FOSTERING          
IN HOUSE FOSTER PLACEMENT     ,9270,IN-HOUSE FOSTERING            ,07/10/2011,3127047,187984 20111006 32615    ,740.00,REDACTED PERSONAL DATA,467299,Social Community Care,ADOPTION & FOSTERING          
IN HOUSE FOSTER PLACEMENT     ,9270,IN-HOUSE FOSTERING            ,07/10/2011,3127050,188969 20111006 32615    ,622.00,REDACTED PERSONAL DATA,467300,Social Community Care,ADOPTION & FOSTERING          
IN HOUSE FOSTER PLACEMENT     ,9270,IN-HOUSE FOSTERING            ,07/10/2011,3127052,189523 20111006 32615    ,598.00,REDACTED PERSONAL DATA,464101,Social Community Care,ADOPTION & FOSTERING          
SPECIAL GUARDIANSHIP          ,9270,RESIDENCE ORDERS              ,07/10/2011,3127055,191065 20111006 32615    ,592.52,REDACTED PERSONAL DATA,444008,Social Community Care,ADOPTION & FOSTERING          
SPECIAL GUARDIANSHIP          ,9270,RESIDENCE ORDERS              ,07/10/2011,3127058,191801 20111006 32615    ,1439.20,REDACTED PERSONAL DATA,492572,Social Community Care,ADOPTION & FOSTERING          
IN HOUSE FOSTER PLACEMENT     ,9270,IN-HOUSE FOSTERING            ,07/10/2011,3127059,100191 20111006 32615    ,598.00,REDACTED PERSONAL DATA,332848,Social Community Care,ADOPTION & FOSTERING          
IN HOUSE FOSTER PLACEMENT     ,9270,IN-HOUSE FOSTERING            ,07/10/2011,3127061,191832 20111006 32615    ,996.00,REDACTED PERSONAL DATA,473384,Social Community Care,ADOPTION & FOSTERING          
IN HOUSE FOSTER PLACEMENT     ,9270,IN-HOUSE FOSTERING            ,07/10/2011,3127063,19266 20111006 32615     ,776.00,REDACTED PERSONAL DATA,332852,Social Community Care,ADOPTION & FOSTERING          
IN HOUSE FOSTER PLACEMENT     ,9270,IN-HOUSE FOSTERING            ,07/10/2011,3127064,193350 20111006 32615    ,1504.00,REDACTED PERSONAL DATA,471003,Social Community Care,ADOPTION & FOSTERING          
IN HOUSE FOSTER PLACEMENT     ,9270,IN-HOUSE FOSTERING            ,07/10/2011,3127072,194407 20111006 32615    ,576.00,REDACTED PERSONAL DATA,502500,Social Community Care,ADOPTION & FOSTERING          
ADOPTION ALLOWANCES           ,9270,ADOPTION ALLOWANCES           ,07/10/2011,3127078,195074 20111006 32615    ,662.98,REDACTED PERSONAL DATA,333341,Social Community Care,ADOPTION & FOSTERING          
ADOPTION ALLOWANCES           ,9270,ADOPTION ALLOWANCES           ,07/10/2011,3127079,195134 20111006 32615    ,718.98,REDACTED PERSONAL DATA,332998,Social Community Care,ADOPTION & FOSTERING          
IN HOUSE FOSTER PLACEMENT     ,9270,IN-HOUSE FOSTERING            ,07/10/2011,3127081,195731 20111006 32615    ,996.00,REDACTED PERSONAL DATA,509843,Social Community Care,ADOPTION & FOSTERING          
IN HOUSE FOSTER PLACEMENT     ,9270,IN-HOUSE FOSTERING            ,07/10/2011,3127083,19623 20111006 32615     ,1886.00,REDACTED PERSONAL DATA,333147,Social Community Care,ADOPTION & FOSTERING          
SPECIAL GUARDIANSHIP          ,9270,RESIDENCE ORDERS              ,07/10/2011,3127083,19623 20111006 32615     ,577.96,REDACTED PERSONAL DATA,333147,Social Community Care,ADOPTION & FOSTERING          
IN HOUSE FOSTER PLACEMENT     ,9270,IN-HOUSE FOSTERING            ,07/10/2011,3127088,197337 20111006 32615    ,660.00,REDACTED PERSONAL DATA,483157,Social Community Care,ADOPTION & FOSTERING          
IN HOUSE FOSTER PLACEMENT     ,9270,IN-HOUSE FOSTERING            ,07/10/2011,3127093,110839 20111006 32615    ,790.00,REDACTED PERSONAL DATA,537589,Social Community Care,ADOPTION & FOSTERING          
IN HOUSE FOSTER PLACEMENT     ,9270,IN-HOUSE FOSTERING            ,07/10/2011,3127101,204113 20111006 32615    ,598.00,REDACTED PERSONAL DATA,479993,Social Community Care,ADOPTION & FOSTERING          
IN HOUSE FOSTER PLACEMENT     ,9270,IN-HOUSE FOSTERING            ,07/10/2011,3127106,206213 20111006 32615    ,598.00,REDACTED PERSONAL DATA,502739,Social Community Care,ADOPTION & FOSTERING          
SPECIAL GUARDIANSHIP          ,9270,RESIDENCE ORDERS              ,07/10/2011,3127109,207629 20111006 32615    ,1607.60,REDACTED PERSONAL DATA,487226,Social Community Care,ADOPTION & FOSTERING          
IN HOUSE FOSTER PLACEMENT     ,9270,IN-HOUSE FOSTERING            ,07/10/2011,3127111,20809 20111006 32615     ,598.00,REDACTED PERSONAL DATA,333830,Social Community Care,ADOPTION & FOSTERING          
CARELEAVERS NON-ACCOMMODATION ,9270,IN-HOUSE FOSTERING            ,07/10/2011,3127115,111778 20111006 32615    ,780.50,REDACTED PERSONAL DATA,545879,Social Community Care,ADOPTION & FOSTERING          
IN HOUSE FOSTER PLACEMENT     ,9270,IN-HOUSE FOSTERING            ,07/10/2011,3127116,208906 20111006 32615    ,598.00,REDACTED PERSONAL DATA,502527,Social Community Care,ADOPTION & FOSTERING          
IN HOUSE FOSTER PLACEMENT     ,9270,IN-HOUSE FOSTERING            ,07/10/2011,3127118,210431 20111006 32615    ,1065.47,REDACTED PERSONAL DATA,502737,Social Community Care,ADOPTION & FOSTERING          
IN HOUSE FOSTER PLACEMENT     ,9270,IN-HOUSE FOSTERING            ,07/10/2011,3127124,21312 20111006 32615     ,766.00,REDACTED PERSONAL DATA,333655,Social Community Care,ADOPTION & FOSTERING          
SPECIAL GUARDIANSHIP          ,9270,RESIDENCE ORDERS              ,07/10/2011,3127125,213411 20111006 32615    ,819.96,REDACTED PERSONAL DATA,502164,Social Community Care,ADOPTION & FOSTERING          
IN HOUSE FOSTER PLACEMENT     ,9270,IN-HOUSE FOSTERING            ,07/10/2011,3127126,111911 20111006 32615    ,1480.00,REDACTED PERSONAL DATA,338765,Social Community Care,ADOPTION & FOSTERING          
IN HOUSE FOSTER PLACEMENT     ,9270,IN-HOUSE FOSTERING            ,07/10/2011,3127129,21439 20111006 32615     ,598.00,REDACTED PERSONAL DATA,338747,Social Community Care,ADOPTION & FOSTERING          
SPECIAL GUARDIANSHIP          ,9270,RESIDENCE ORDERS              ,07/10/2011,3127134,215348 20111006 32615    ,522.26,REDACTED PERSONAL DATA,477472,Social Community Care,ADOPTION & FOSTERING          
RESIDENCE ORDERS              ,9270,RESIDENCE ORDERS              ,07/10/2011,3127137,11214 20111006 32615     ,522.26,REDACTED PERSONAL DATA,328124,Social Community Care,ADOPTION & FOSTERING          
IN HOUSE FOSTER PLACEMENT     ,9270,IN-HOUSE FOSTERING            ,07/10/2011,3127143,21654 20111006 32615     ,648.09,REDACTED PERSONAL DATA,333123,Social Community Care,ADOPTION & FOSTERING          
IN HOUSE FOSTER PLACEMENT     ,9270,IN-HOUSE FOSTERING            ,07/10/2011,3127159,113481 20111006 32615    ,780.00,REDACTED PERSONAL DATA,333743,Social Community Care,ADOPTION & FOSTERING          
IN HOUSE FOSTER PLACEMENT     ,9270,IN-HOUSE FOSTERING            ,07/10/2011,3127170,10113 20111006 32615     ,1162.00,REDACTED PERSONAL DATA,371949,Social Community Care,ADOPTION & FOSTERING          
RESIDENCE ORDERS              ,9270,RESIDENCE ORDERS              ,07/10/2011,3127176,217984 20111006 32615    ,574.10,REDACTED PERSONAL DATA,466697,Social Community Care,ADOPTION & FOSTERING          
IN HOUSE FOSTER PLACEMENT     ,9270,IN-HOUSE FOSTERING            ,07/10/2011,3127194,11584 20111006 32615     ,1174.00,REDACTED PERSONAL DATA,338799,Social Community Care,ADOPTION & FOSTERING          
RESIDENCE ORDERS              ,9270,RESIDENCE ORDERS              ,07/10/2011,3127196,218299 20111006 32615    ,629.10,REDACTED PERSONAL DATA,425879,Social Community Care,ADOPTION & FOSTERING          
IN HOUSE FOSTER PLACEMENT     ,9270,IN-HOUSE FOSTERING            ,07/10/2011,3127216,118120 20111006 32615    ,1226.00,REDACTED PERSONAL DATA,333453,Social Community Care,ADOPTION & FOSTERING          
IN HOUSE FOSTER PLACEMENT     ,9270,IN-HOUSE FOSTERING            ,07/10/2011,3127221,224702 20111006 32615    ,766.00,REDACTED PERSONAL DATA,545493,Unclassified Non Trade,OUT OF SCOPE FOR SIC MONITORIN
IN HOUSE FOSTER PLACEMENT     ,9270,IN-HOUSE FOSTERING            ,07/10/2011,3127222,224962 20111006 32615    ,1068.86,REDACTED PERSONAL DATA,505290,Social Community Care,ADOPTION & FOSTERING          
IN HOUSE FOSTER PLACEMENT     ,9270,IN-HOUSE FOSTERING            ,07/10/2011,3127223,225284 20111006 32615    ,2026.01,REDACTED PERSONAL DATA,521455,Social Community Care,ADOPTION & FOSTERING          
IN HOUSE FOSTER PLACEMENT     ,9270,IN-HOUSE FOSTERING            ,07/10/2011,3127231,23 20111006 32615        ,800.58,REDACTED PERSONAL DATA,333139,Social Community Care,ADOPTION & FOSTERING          
ADOPTION ALLOWANCES           ,9270,ADOPTION ALLOWANCES           ,07/10/2011,3127231,23 20111006 32615        ,576.68,REDACTED PERSONAL DATA,333139,Social Community Care,ADOPTION & FOSTERING          
IN HOUSE FOSTER PLACEMENT     ,9270,IN-HOUSE FOSTERING            ,07/10/2011,3127235,232766 20111006 32615    ,766.00,REDACTED PERSONAL DATA,518348,Social Community Care,ADOPTION & FOSTERING          
IN HOUSE FOSTER PLACEMENT     ,9270,IN-HOUSE FOSTERING            ,07/10/2011,3127236,233078 20111006 32615    ,1082.00,REDACTED PERSONAL DATA,520205,Social Community Care,ADOPTION & FOSTERING          
IN HOUSE FOSTER PLACEMENT     ,9270,IN-HOUSE FOSTERING            ,07/10/2011,3127240,234568 20111006 32615    ,784.58,REDACTED PERSONAL DATA,530876,Social Community Care,ADOPTION & FOSTERING          
IN HOUSE FOSTER PLACEMENT     ,9270,IN-HOUSE FOSTERING            ,07/10/2011,3127244,23882 20111006 32615     ,598.00,REDACTED PERSONAL DATA,333142,Social Community Care,ADOPTION & FOSTERING          
IN HOUSE FOSTER PLACEMENT     ,9270,IN-HOUSE FOSTERING            ,07/10/2011,3127250,24220 20111006 32615     ,740.86,REDACTED PERSONAL DATA,333435,Social Community Care,ADOPTION & FOSTERING          
IN HOUSE FOSTER PLACEMENT     ,9270,IN-HOUSE FOSTERING            ,07/10/2011,3127251,242672 20111006 32615    ,766.00,REDACTED PERSONAL DATA,533358,Social Community Care,ADOPTION & FOSTERING          
IN HOUSE FOSTER PLACEMENT     ,9270,IN-HOUSE FOSTERING            ,07/10/2011,3127252,243392 20111006 32615    ,932.98,REDACTED PERSONAL DATA,521458,Social Community Care,ADOPTION & FOSTERING          
IN HOUSE FOSTER PLACEMENT     ,9270,IN-HOUSE FOSTERING            ,07/10/2011,3127258,248781 20111006 32615    ,598.00,REDACTED PERSONAL DATA,527968,Social Community Care,ADOPTION & FOSTERING          
IN HOUSE FOSTER PLACEMENT     ,9270,IN-HOUSE FOSTERING            ,07/10/2011,3127262,250606 20111006 32615    ,890.00,REDACTED PERSONAL DATA,544195,Social Community Care,ADOPTION & FOSTERING          
IN HOUSE FOSTER PLACEMENT     ,9270,IN-HOUSE FOSTERING            ,07/10/2011,3127269,26212 20111006 32615     ,1740.00,REDACTED PERSONAL DATA,333838,Social Community Care,ADOPTION & FOSTERING          
IN HOUSE FOSTER PLACEMENT     ,9270,IN-HOUSE FOSTERING            ,07/10/2011,3127272,26454 20111006 32615     ,1876.42,REDACTED PERSONAL DATA,333025,Social Community Care,ADOPTION & FOSTERING          
SPECIAL GUARDIANSHIP          ,9270,RESIDENCE ORDERS              ,07/10/2011,3127275,267388 20111006 32615    ,536.06,REDACTED PERSONAL DATA,526295,Social Community Care,ADOPTION & FOSTERING          
IN HOUSE FOSTER PLACEMENT     ,9270,IN-HOUSE FOSTERING            ,07/10/2011,3127278,270182 20111006 32615    ,598.00,REDACTED PERSONAL DATA,536491,Social Community Care,ADOPTION & FOSTERING          
IN HOUSE FOSTER PLACEMENT     ,9270,IN-HOUSE FOSTERING            ,07/10/2011,3127279,27047 20111006 32615     ,996.00,REDACTED PERSONAL DATA,338866,Social Community Care,ADOPTION & FOSTERING          
IN HOUSE FOSTER PLACEMENT     ,9270,IN-HOUSE FOSTERING            ,07/10/2011,3127280,271426 20111006 32615    ,996.00,REDACTED PERSONAL DATA,527967,Social Community Care,ADOPTION & FOSTERING          
SPECIAL GUARDIANSHIP          ,9270,RESIDENCE ORDERS              ,07/10/2011,3127290,284355 20111006 32615    ,2439.90,REDACTED PERSONAL DATA,515224,Social Community Care,ADOPTION & FOSTERING          
ADOPTION SERVICE              ,9270,ADOPTION ALLOWANCES           ,07/10/2011,3127298,29473 20111006 32615     ,715.50,REDACTED PERSONAL DATA,557434,Unclassified Non Trade,OUT OF SCOPE FOR SIC MONITORIN
IN HOUSE FOSTER PLACEMENT     ,9270,IN-HOUSE FOSTERING            ,07/10/2011,3127301,295330 20111006 32615    ,598.00,REDACTED PERSONAL DATA,539221,Social Community Care,ADOPTION & FOSTERING          
IN HOUSE FOSTER PLACEMENT     ,9270,IN-HOUSE FOSTERING            ,07/10/2011,3127303,295830 20111006 32615    ,540.00,REDACTED PERSONAL DATA,539977,Social Community Care,ADOPTION & FOSTERING          
IN HOUSE FOSTER PLACEMENT     ,9270,IN-HOUSE FOSTERING            ,07/10/2011,3127305,121470 20111006 32615    ,1081.86,REDACTED PERSONAL DATA,453239,Social Community Care,ADOPTION & FOSTERING          
IN HOUSE FOSTER PLACEMENT     ,9270,IN-HOUSE FOSTERING            ,07/10/2011,3127307,297028 20111006 32615    ,554.86,REDACTED PERSONAL DATA,543572,Social Community Care,ADOPTION & FOSTERING          
